{"text_format":"1","workbook":"xlsx","n_sheets":8,"sheets":["Home","Instructions","Hazard","Exposure","Sensitivity","Adaptive Capacity","RVAT_Output","Responses"],"not_rendered":{"charts":30,"images":2,"macros":1,"external_links":0,"defined_names":0,"comments":0,"pivot_tables":0},"unopened":[],"bounds":{"document_bytes":16777216,"sheet_cells":100000,"rows_first":2000,"rows_last":500,"rows_between":2000,"halvings":0,"cell_chars":16384,"cell_head_chars":4096},"cells_cut":0,"cells_raw":0,"read":"whole","date_system":"1900"}

{"sheet":"Home","index":0,"n_rows":9,"n_cols":18,"rows_kept":9,"cut":false,"hidden":false,"merged":[[7,17,7,26],[8,17,8,26],[1,2,1,26],[3,2,3,26],[6,4,6,13],[7,4,7,13],[8,4,8,13],[6,17,6,26]]}
[]
[null,null,"Climate Risk and Vulnerability Assessment Tool: Communities and Water Infrastructure Projects"]
[]
[null,null,"Creating Climate Resilient Communities and Infrastructure"]
[]
[]
[null,null,null,"Project Name:","Enter here",null,null,null,null,null,null,null,null,null,null,null,"Project Lead:","Enter here"]
[null,null,null,"Project Location:","Enter here",null,null,null,null,null,null,null,null,null,null,null,"Name of Assessor:","Enter here"]
[null,null,null,"Project Code:","Enter here",null,null,null,null,null,null,null,null,null,null,null,"No. of Beneficiaries:","Enter here"]

{"sheet":"Instructions","index":1,"n_rows":72,"n_cols":21,"rows_kept":72,"cut":false,"hidden":false,"merged":[[64,1,70,22],[55,1,55,22],[7,1,10,22],[34,1,37,22],[13,1,18,22],[21,1,21,22],[22,2,32,22],[61,1,63,22],[40,1,52,22]]}
[]
[]
[]
[]
[]
[]
[null,"AIM:"]
[null,"The objective of the tool is to evaluate the climate risk and vulnerability of communities, as well as water infrastructure projects in communities. The tool assesses how current and future climate hazards (such as temperature, rainfall, droughts and floods) impact the broader community, as well as existing and potential water infrastructure projects in communities. Based on the prevailing risk and vulnerability, the tool explores potential interventions that will improve climate resilience. \n"]
[]
[]
[]
[]
[null,"NEED FOR THIS TOOL:"]
[null,"This tool is a revised version of the previous tool, which only focused on assessing the current risk and vulnerability levels for communities. In addition to the infrastructure lens that has been included in the updated tool, green infrastructure and the socio-ecological benefits that it provides, is also explored. \n\nThe tool also utilises the updated Intergovernmental Panel on Climate Change (IPCC) methodology, as discussed in detail in the section below.  The Vulnerability Sourcebook by Deutsche Gesellschaft für Internationale Zusammenarbeit GmbH (GIZ) also provided a useful framework for the tool."]
[]
[]
[]
[]
[]
[]
[null,"FRAMEWORK:"]
[null,"In line with the Fifth Assessment Report (AR5) by the IPCC, the tool includes the following aspects: "]
[null,"• ","Hazard: the occurrence or potential occurrence of a climate-related event (such as rainfall or temperature) and/or a natural or human-induced impact (such as flood or droughts), that has or may cause harm, injury, damage or the loss of a system, species or asset. \nExposure: the degree to which a system, species or asset is ‘exposed’, due to its location or presence in a place or setting that is or could be impacted by a climate-related hazard. \nSensitivity: the susceptibility of a system, species or asset to climate-related impacts, or the degree to which system, species or asset is or can be directly or indirectly impacted by a climate-related hazard. \nAdaptive Capacity: the proven or perceived ability of a system, species or asset to respond to existing or potential climate-related impacts and adjust to damage, so as to cope with consequences and take advantage of opportunities. \nVulnerability: the inclination of a system, species or asset to be impacted by climate-related hazards, encompassing its sensitivity and its ability to cope or adapt to climate-related impacts. \nRisk: refers to the potential for (and the likelihood of) adverse climate-related impacts on a system, species or asset, resulting from the interaction of vulnerability, exposure, and hazard."]
[]
[null,"• "]
[null,"• "]
[]
[null,"• "]
[]
[null,"• "]
[]
[null,"• "]
[]
[]
[null,"The tool relies on several questions that assess hazard, exposure, sensitivity and adaptive capacity.  As shown above, the responses to these categories, will enable an assessment of risk and vulnerability will be assessed. Based on the prevalent risk and vulnerability, the tool explores potential response measures that will improve climate resilience by either decreasing sensitivity or increasing adaptive capacity. In addition, whenever possible, measures to decrease exposure will be explored. "]
[]
[]
[]
[]
[null,"HOW TO USE THIS TOOL:"]
[null,"The grey boxes enable the user to navigate through the tool. The boxes will either lead the user to a different place in the same tab, or to a new tab. Therefore, please click on any grey box to navigate and to complete the tool. \n\nThe user is required to answer the questions provided under the \"Hazard\" tab, \"Exposure\" tab, \"Sensitivity\" tab, as well as the \"Adaptive Capacity\" tab. The user can access these tabs by clicking on the \"Hazard\", \"Exposure\", \"Sensitivity\", and the \"Adaptive Capacity\" boxes. In these tabs, questions are provided for current and future \"Hazard\", \"Exposure\", \"Sensitivity\", and \"Adaptive Capacity\". \n\nThe \"Output\" box leads the user to the \"RVAT\" tab, where the responses to each question are analysed using the framework, assessed and graphed. Specifically, the tool provides outputs for \"Vulnerability\" and \"Risk\".  Based on the “Risk” output, which incorporates “vulnerability”, the tool provides response options. These can be accessed by clicking on the \"Responses\" box at the top of your screen, or by clicking the \"Responses\" tab.\n"]
[]
[]
[]
[]
[]
[]
[]
[]
[]
[]
[]
[]
[]
[null,"USEFUL RESOURCES:"]
[null,"Below is a series of sources to help answer some of the questions:"]
[null,"1.","The CRIDF Climate Vulnerability Tool. Click on  the following link: ",null,null,null,null,null,null,null,null,"http://geoservergisweb2.hrwallingford.co.uk/CRIDF/metadata.htm  "]
[null,"2.","WRI - Aqueduct Water Risk Atlas. Click on  the following link: ",null,null,null,null,null,null,null,null,"http://www.wri.org/resources/maps/aqueduct-water-risk-atlas "]
[null,"3.","CRIDF - Resilience Screening and Climate Change Risk Assessment Guidelines (Protocol)"]
[]
[null,"WHAT THIS TOOL IS NOT:"]
[null,"This tool is intended to  assess the climate risk and vulnerability of the broader community and water infrastructure, as well as to provide response options to manage these risks. This tool is not intended to provide strategic recommendations, but is merely intended to provide various response options on how to minimise and/or mitigate climate-related impacts."]
[]
[]
[null,"NOTE: \n1. This tool has been developed using MS Excel 2016, and therefore, any verions before 2016 may have limited funcitonality. \n2. As this tool uses several macros to enable functionality, the user is required to click on the \"Enable macros\" button when prompted. \n3. To ensure the usability of the tool is maintained, please avoid deleting any rows and columns.  As the functionality of the tool is maximised with coding, any modifications of the spreadsheets will render it useless. "]
[]
[]
[]
[]
[]
[]
[null,null,null,null,null,null,null,null,null,null,null,null,null,null,null,null,null,null,null,null,"Developed for CRIDF by: "]

{"sheet":"Hazard","index":2,"n_rows":64,"n_cols":11,"rows_kept":64,"cut":false,"hidden":false,"merged":[[9,1,9,3],[39,1,39,3],[35,1,35,4],[7,1,7,4],[37,1,37,5]]}
[]
[]
[]
[]
[]
[]
[null,null,null,null,null,"NOTE: ONCE YOU CLICK THIS BUTTON YOU CANNOT UNDO YOUR ACTIONS "]
[null,"CURRENT HAZARDS"]
[]
[null,"Hazard",null,null,"Question ","Comments/Description","Answer?","list?","Rating?","List 1","yes/no is bad"]
[1,1,"Temperature","Seasons","Does your area experience seasonal temperature variability?","During the year (across seasons), is temperature higher/lower than usual?",null,1,{"$f":"IF(G11=$J$11,$K$11,IF(G11=$J$12,$K$12,$K$13))","v":3},"Yes, higher than usual",3]
[{"$f":"A11+1","v":2},null,null,"Annual Trends","Does your area experience inter-annual temperature variability?","Over multiple years (i.e. trend), is temperature higher/lower than usual?",null,1,{"$f":"IF(G12=$J$11,$K$11,IF(G12=$J$12,$K$12,$K$13))","v":3},"No, not really",1]
[{"$f":"A12+1","v":3},null,null,"Hot days","During the hottest days, are you impacted by heat-related stress","How often do you experience heat-related water stress?",null,2,{"$f":"IF(G13=$J$16,$K$16,IF(G13=$J$17,$K$17,$K$18))","v":1},"Yes, lower than usual",3]
[null,null,null,null,null,null,null,null,{"$f":"\"\"","v":""}]
[{"$f":"A13+1","v":4},2,"Rainfall","Seasons","Does your area experience seasonal rainfall variability?","During the year (across seasons), is rainfall higher/lower than usual?",null,1,{"$f":"IF(G15=$J$11,$K$11,IF(G15=$J$12,$K$12,$K$13))","v":3},"List 2","yes is bad"]
[5,null,null,"Annual Trends","Does your area experience inter-annual rainfall variability?","Over multiple years (i.e. trend), is rainfall higher/lower than usual?",null,1,3,"Yes",3]
[6,null,null,"Heavy Rainfall","Are heavy rainfall events prevalent in your area? ","Do you often have high rainfall events?",null,2,{"$f":"IF(G17=$J$16,$K$16,IF(G17=$J$17,$K$17,$K$18))","v":1},"Sometimes",2]
[null,null,null,null,null,null,null,null,{"$f":"\"\"","v":""},"No",1]
[{"$f":"A17+1","v":7},3,"Droughts","Events","Are droughts prevalent in your area?","Do you often experience droughts?",null,2,{"$f":"IF(G19=$J$16,$K$16,IF(G19=$J$17,$K$17,$K$18))","v":1}]
[8,null,null,"Timing","If droughts do occur, do they occur at the same time of the year?","Is the timing of droughts consistent?",null,3,{"$f":"IF(G20=$J$21,$K$21,IF(G20=$J$22,$K$22,$K$23))","v":0.1},"List 3","yes is bad"]
[9,null,null,"Extent","If droughts do occur, is the extent and intensity of the drought changing?","Are droughts getting worse or better?",null,4,{"$f":"IF(G21=$J$26,$K$26,IF(G21=$J$28,$K$28,$K$29))","v":0.1},"Often",3]
[10,null,null,"Effect","When droughts do occur, do they impact any part/aspect of your area?","Are you affected by droughts?",null,3,{"$f":"IF(G22=$J$21,$K$21,IF(G22=$J$22,$K$22,$K$23))","v":0.1},"Sometimes",2]
[null,null,null,null,null,null,null,null,{"$f":"\"\"","v":""},"Not applicable",0.1]
[{"$f":"A22+1","v":11},4,"Floods","Events","Are floods prevalent in your area?","Do you often experience floods?",null,2,{"$f":"IF(G24=$J$16,$K$16,IF(G24=$J$17,$K$17,$K$18))","v":1}]
[12,null,null,"Timing","If floods do occur, do they occur at the same time of the year?","Is the timing of floods consistent?",null,3,{"$f":"IF(G25=$J$21,$K$21,IF(G25=$J$22,$K$22,$K$23))","v":0.1},"List 4","yes is bad"]
[13,null,null,"Extent","If floods do occur, is the extent and intensity of the floods changing?","Are floods getting worse (more impact/intensity) or better (less impact/intensity)?",null,4,{"$f":"IF(G26=$J$26,$K$26,IF(G26=$J$27,$K$27,IF(G26=$J$28,$K$28,$K$29)))","v":0.1},"Yes, but more",3]
[14,null,null,"Effect","When floods do occur, do they impact any part/aspect of your area?","Are you affected by floods?",null,3,{"$f":"IF(G27=$J$21,$K$21,IF(G27=$J$22,$K$22,$K$23))","v":0.1},"No change",2]
[null,null,null,null,null,null,null,null,{"$f":"\"\"","v":""},"Yes, but less",1]
[{"$f":"A27+1","v":15},5,"Other Factors","Fire","Do you frequently experience fires? And if yes, are you impacted?","Are you impacted by fire in and around your area?",null,5,{"$f":"IF(G29=$J$32,$K$32,IF(G29=$J$33,$K$33,$K$34))","v":1},"Not applicable",0.1]
[16,null,null,"Snow","Do you frequently experience snowfall? And if yes, are you impacted?","Are you impacted by snowfall in and around your area?",null,5,1]
[17,null,null,"Hail","Do you frequently experience hail storms? And if yes, are you impacted?","Are you impacted by hail in and around your area?",null,5,1,"List 5","yes is bad"]
[18,null,null,"Tornado","Do you frequently experience tornadoes? And if yes, are you impacted?","Are you impacted by tornadoes in and around your area?",null,5,1,"Yes, and impacted",3]
[19,null,null,"Earthquake","Do you frequently experience earthquakes? And if yes, are you impacted?","Are you impacted by earthquakes in and around your area?",null,5,1,"Yes, but not impacted",2]
[20,null,null,"Volcano","Do you frequently experience volcanoes? And if yes, are you impacted?","Are you impacted by volcanoes in and around your area?",null,5,1,"No",1]
[]
[null,"FUTURE HAZARDS"]
[null,"NOTE: THIS SECTION SHOULD BE COMPLETED BY THE PROJECT ASSESSOR / TECHNICAL EXPERT BASED ON ADEQUATES DESKTOP RESEARCH."]
[null,"Period of assessmet (for future climate and hazard conditions)?"]
[]
[null,"Hazard",null,null,"Question ","Comments/Description","Answer?","list?","Rating?"]
[1,1,"Temperature","Seasons","Do climate projections indicate that your area will experience seasonal temperature variability?","During the year (across seasons), will temperature be higher/lower than usual?",null,1,{"$f":"IF(G41=$J$11,$K$11,IF(G41=$J$12,$K$12,$K$13))","v":3}]
[{"$f":"A41+1","v":2},null,null,"Annual Trends","Do climate projections indicate that your area will experience inter-annual temperature variability?","Over multiple years (i.e. trend), will temperature be higher/lower than usual?",null,1,{"$f":"IF(G42=$J$11,$K$11,IF(G42=$J$12,$K$12,$K$13))","v":3}]
[{"$f":"A42+1","v":3},null,null,"Changes","Do climate projections indicate a change in the temperature? ","Temperature - Increase, decrease, or constant?",null,2,{"$f":"IF(G43=$J$16,$K$16,IF(G43=$J$17,$K$17,$K$18))","v":1}]
[null,null,null,null,null,null,null,null,{"$f":"\"\"","v":""}]
[{"$f":"A43+1","v":4},2,"Rainfall","Seasons","Do climate projections indicate that your area will experience seasonal rainfall variability?","During the year (across seasons), will rainfall be higher/lower than usual?",null,1,{"$f":"IF(G45=$J$11,$K$11,IF(G45=$J$12,$K$12,$K$13))","v":3}]
[{"$f":"A45+1","v":5},null,null,"Annual Trends","Do climate projections indicate that your area will experience inter-annual rainfall variability?","Over multiple years (i.e. trend), will rainfall be higher/lower than usual?",null,1,3]
[6,null,null,"Changes","Do climate projections indicate a change in the rainfall patterns? ","Rainfall - Increase, decrease, or constant?",null,2,{"$f":"IF(G47=$J$16,$K$16,IF(G47=$J$17,$K$17,$K$18))","v":1}]
[null,null,null,null,null,null,null,null,{"$f":"\"\"","v":""}]
[{"$f":"A47+1","v":7},3,"Droughts","Events","In future, will droughts be prevalent in your area?","Will you often experience droughts?",null,2,{"$f":"IF(G49=$J$16,$K$16,IF(G49=$J$17,$K$17,$K$18))","v":1}]
[{"$f":"A49+1","v":8},null,null,"Timing","If droughts will occur, will they occur at the same time of the year?","Will the timing of droughts be consistent?",null,3,{"$f":"IF(G50=$J$21,$K$21,IF(G50=$J$22,$K$22,$K$23))","v":0.1}]
[9,null,null,"Extent","If droughts will occur, will the extent and intensity of the drought change (from current conditions)?","Will droughts get worse or better?",null,4,{"$f":"IF(G51=$J$26,$K$26,IF(G51=$J$28,$K$28,$K$29))","v":0.1}]
[10,null,null,"Effect","When droughts do occur, will they impact any part/aspect of your area?","Will you be affected by droughts?",null,3,{"$f":"IF(G52=$J$21,$K$21,IF(G52=$J$22,$K$22,$K$23))","v":0.1}]
[null,null,null,null,null,null,null,null,{"$f":"\"\"","v":""}]
[{"$f":"A52+1","v":11},4,"Floods","Events","In future, will floods be prevalent in your area?","Will you often experience floods?",null,2,{"$f":"IF(G54=$J$16,$K$16,IF(G54=$J$17,$K$17,$K$18))","v":1}]
[{"$f":"A54+1","v":12},null,null,"Timing","If floods will occur, will they occur at the same time of the year?","Will the timing of floods be consistent?",null,3,{"$f":"IF(G55=$J$21,$K$21,IF(G55=$J$22,$K$22,$K$23))","v":0.1}]
[13,null,null,"Extent","If floods will occur, will the extent and intensity of the floods change (from current conditions)?","Will floods get worse (more impact/intensity) or better (less impact/intensity)?",null,4,{"$f":"IF(G56=$J$26,$K$26,IF(G56=$J$27,$K$27,IF(G56=$J$28,$K$28,$K$29)))","v":0.1}]
[14,null,null,"Effect","When floods do occur, will they impact any part/aspect of your area?","Will you be affected by floods?",null,3,{"$f":"IF(G57=$J$21,$K$21,IF(G57=$J$22,$K$22,$K$23))","v":0.1}]
[null,null,null,null,null,null,null,null,{"$f":"\"\"","v":""}]
[{"$f":"A57+1","v":15},5,"Other Factors","Fire","Will you frequently experience fires? And if yes, will you be impacted?","Will you be impacted by fire in and around your area?",null,5,{"$f":"IF(G59=$J$32,$K$32,IF(G59=$J$33,$K$33,$K$34))","v":1}]
[{"$f":"A59+1","v":16},null,null,"Snow","Will you frequently experience snowfall? And if yes, will you be impacted?","Will you be impacted by snowfall in and around your area?",null,5,1]
[17,null,null,"Hail","Will you frequently experience hail storms? And if yes, will you be impacted?","Will you be impacted by hail in and around your area?",null,5,1]
[18,null,null,"Tornado","Will you frequently experience tornadoes? And if yes, will you be impacted?","Will you be impacted by tornadoes in and around your area?",null,5,1]
[19,null,null,"Earthquake","Will you frequently experience earthquakes? And if yes, will you be impacted?","Will you be impacted by earthquakes in and around your area?",null,5,1]
[20,null,null,"Volcano","Will you frequently experience volcanoes? And if yes, will you be impacted?","Will you be impacted by volcanoes in and around your area?",null,5,1]

{"sheet":"Exposure","index":3,"n_rows":68,"n_cols":12,"rows_kept":68,"cut":false,"hidden":false,"merged":[[41,1,41,3],[9,1,9,3],[7,1,7,4],[37,1,37,4],[39,1,39,5],[40,1,40,5]]}
[]
[]
[]
[]
[]
[]
[null,null,null,null,null,"NOTE: ONCE YOU CLICK THIS BUTTON YOU CANNOT UNDO YOUR ACTIONS "]
[null,"CURRENT EXPOSURE",null,null,null,null,null,null,null,null,"Invalid Entry!"]
[null,null,null,null,null,null,null,null,null,null,{"$f":"\"\"","v":""}]
[null,"Exposure",null,null,"Question ","Comments/Description","Answer?",null,"list?","Rating?","List 1","yes is bad"]
[1,1,"Livelihoods","Food security","Is your food security influenced by different climatic conditions, and is it affordable? ","Consider food security at different at different times of the year (i.e. rainy season)?"," ",{"$f":"IF(OR(G11=$K$11,G11=$K$12,G11=$K$13),$K$9,$K$8)","v":"Invalid Entry!"},1,{"$f":"IF(G11=$K$11,$L$11,IF(G11=$K$12,$L$12,$L$13))","v":1},"Yes, but not affordable",3]
[{"$f":"A11+1","v":2},null,null,"Crops","Are you dependent on our own crop for food? If yes, is your crop impacted by climate events/diseases?","Consider your ability to have seeds for the following year"," ",{"$f":"IF(OR(G12=$K$16,G12=$K$17,G12=$K$18),$K$9,$K$8)","v":"Invalid Entry!"},2,{"$f":"IF(G12=$K$16,$L$16,IF(G12=$K$17,$L$17,$L$18))","v":1},"Yes, and affordable",2]
[{"$f":"A12+1","v":3},null,null,"Livestock","Are you dependent on our own livestock for food? If yes, is your livestock impacted by climate events?","This includes impacts from temperature, rainfall, droughts and/or floods"," ",{"$f":"IF(OR(G13=$K$16,G13=$K$17,G13=$K$18),$K$9,$K$8)","v":"Invalid Entry!"},2,{"$f":"IF(G13=$K$16,$L$16,IF(G13=$K$17,$L$17,$L$18))","v":1},"No",1]
[null,null,null,null,null,null," ",null,null,{"$f":"\"\"","v":""}]
[{"$f":"A13+1","v":4},2,"Health & Safety","Water Borne Diseases ","Are you affected by water-borne diseases?","Water-borne diseases include typhoid fever, cholera, leptospirosis and hepatitis A."," ",{"$f":"IF(OR(G15=$K$21,G15=$K$22,G15=$K$23),$K$9,$K$8)","v":"Invalid Entry!"},3,{"$f":"IF(G15=$K$21,$L$21,IF(G15=$K$22,$L$22,$L$23))","v":1},"List 2","yes is bad"]
[{"$f":"A15+1","v":5},null,null,"Vector Diseases","Are you affected by vector diseases?","Vector diseases include malaria, dengue fever, yellow fever, and West Nile Fever"," ",{"$f":"IF(OR(G16=$K$21,G16=$K$22,G16=$K$23),$K$9,$K$8)","v":"Invalid Entry!"},3,{"$f":"IF(G16=$K$21,$L$21,IF(G16=$K$22,$L$22,$L$23))","v":1},"Yes, and impacted",3]
[{"$f":"A16+1","v":6},null,null,"Safety","Is your human safety & livelihoods impacted by floods? ","Do floods ever cause death or loss of property/food? "," ",{"$f":"IF(OR(G17=$K$21,G17=$K$22,G17=$K$23),$K$9,$K$8)","v":"Invalid Entry!"},3,{"$f":"IF(G17=$K$21,$L$21,IF(G17=$K$22,$L$22,$L$23))","v":1},"Yes, but not impacted",2]
[null,null,null,null,null,null," ",null,null,{"$f":"\"\"","v":""},"No",1]
[{"$f":"A17+1","v":7},3,"Services","Housing","Do you have adequate housing? If yes, is it impacted by climate hazards?","This includes impacts from temperature, rainfall and/or floods"," ",{"$f":"IF(OR(G19=$K$31,G19=$K$32,G19=$K$33),$K$9,$K$8)","v":"Invalid Entry!"},5,{"$f":"IF(G19=$K$31,$L$31,IF(G19=$K$32,$L$32,$L$33))","v":3}]
[{"$f":"A19+1","v":8},null,null,"Land","Do you have adequate access to land? If yes, is it impacted by climate hazards?","This includes land needed for food, crops and livestock"," ",{"$f":"IF(OR(G20=$K$31,G20=$K$32,G20=$K$33),$K$9,$K$8)","v":"Invalid Entry!"},5,{"$f":"IF(G20=$K$31,$L$31,IF(G20=$K$32,$L$32,$L$33))","v":3},"List 3","yes is bad"]
[{"$f":"A20+1","v":9},null,null,"Community","Are your community services impacted by climate hazards?","This includes clinics, school, religious buildings, etc."," ",{"$f":"IF(OR(G21=$K$21,G21=$K$22,G21=$K$23),$K$9,$K$8)","v":"Invalid Entry!"},3,{"$f":"IF(G21=$K$21,$L$21,IF(G21=$K$22,$L$22,$L$23))","v":1},"Yes",3]
[{"$f":"A21+1","v":10},null,null,"Sanitation","Do you have access to adequate sanitation? If yes, is it impacted by climate hazards?","This is specific to household sanitation"," ",{"$f":"IF(OR(G22=$K$31,G22=$K$32,G22=$K$33),$K$9,$K$8)","v":"Invalid Entry!"},5,{"$f":"IF(G22=$K$31,$L$31,IF(G22=$K$32,$L$32,$L$33))","v":3},"Sometimes",2]
[{"$f":"A22+1","v":11},null,null,"Energy","Do you have reliable access to energy? If yes, is it impacted by climate hazards?","This includes impacts from temperature, rainfall, droughts and/or floods"," ",{"$f":"IF(OR(G23=$K$31,G23=$K$32,G23=$K$33),$K$9,$K$8)","v":"Invalid Entry!"},5,{"$f":"IF(G23=$K$31,$L$31,IF(G23=$K$32,$L$32,$L$33))","v":3},"No",1]
[null,null,null,null,null,null," ",null,null,{"$f":"\"\"","v":""}]
[{"$f":"A23+1","v":12},4,"Water Supply","Access","Is water sufficient for the needs of your household?","This includes water needed for food, crops, livestock, health"," ",{"$f":"IF(OR(G25=$K$26,G25=$K$27,G25=$K$28),$K$9,$K$8)","v":"Invalid Entry!"},4,{"$f":"IF(G25=$K$26,$L$26,IF(G25=$K$27,$L$27,$L$28))","v":3},"List 4","yes is good"]
[{"$f":"A25+1","v":13},null,null,"Quality","Is the quality of your water supply adequate for your needs?","This includes water needed for food, crops, livestock, health"," ",{"$f":"IF(OR(G26=$K$26,G26=$K$27,G26=$K$28),$K$9,$K$8)","v":"Invalid Entry!"},4,{"$f":"IF(G26=$K$26,$L$26,IF(G26=$K$27,$L$27,$L$28))","v":3},"Yes",1]
[{"$f":"A26+1","v":14},null,null,"Droughts","Are you affected by seasonal droughts","Do you experience water shortages during droughts?"," ",{"$f":"IF(OR(G27=$K$21,G27=$K$22,G27=$K$23),$K$9,$K$8)","v":"Invalid Entry!"},3,{"$f":"IF(G27=$K$21,$L$21,IF(G27=$K$22,$L$22,$L$23))","v":1},"Sometimes",2]
[{"$f":"A27+1","v":15},null,null,"Floods","Is your water access impacted by floods?","This includes water needed for food, crops, livestock, health"," ",{"$f":"IF(OR(G28=$K$21,G28=$K$22,G28=$K$23),$K$9,$K$8)","v":"Invalid Entry!"},3,{"$f":"IF(G28=$K$21,$L$21,IF(G28=$K$22,$L$22,$L$23))","v":1},"No",3]
[{"$f":"A28+1","v":16},null,null,"Other Climate Hazards","Is your water access impacted by other climate events (excl. droughts and floods)?","This includes water needed for food, crops, livestock, health"," ",{"$f":"IF(OR(G29=$K$21,G29=$K$22,G29=$K$23),$K$9,$K$8)","v":"Invalid Entry!"},3,{"$f":"IF(G29=$K$21,$L$21,IF(G29=$K$22,$L$22,$L$23))","v":1}]
[null,null,null,null,null,null," ",null,null,{"$f":"\"\"","v":""},"List 5","yes/no is bad"]
[{"$f":"A29+1","v":17},5,"Infrastructure","Water Supply","Do you have centralised water supply infrastructure? And is it impacted by climate hazards?","This includes large and small-scale infrastructure (e.g. pipelines)"," ",{"$f":"IF(OR(G31=$K$31,G31=$K$32,G31=$K$33),$K$9,$K$8)","v":"Invalid Entry!"},5,{"$f":"IF(G31=$K$31,$L$31,IF(G31=$K$32,$L$32,$L$33))","v":3},"Yes, and impacted",2]
[{"$f":"A31+1","v":18},null,null,"Water Treatment","Do you have centralised water treatment infrastructure? And is it impacted by climate hazards?","This includes large and small-scale infrastructure"," ",{"$f":"IF(OR(G32=$K$31,G32=$K$32,G32=$K$33),$K$9,$K$8)","v":"Invalid Entry!"},5,{"$f":"IF(G32=$K$31,$L$31,IF(G32=$K$32,$L$32,$L$33))","v":3},"Yes, but not impacted",1]
[{"$f":"A32+1","v":19},null,null,"Water Storage","Do you have centralised water storage infrastructure? And is it impacted by climate hazards?","This includes large and small-scale infrastructure (e.g. dams)"," ",{"$f":"IF(OR(G33=$K$31,G33=$K$32,G33=$K$33),$K$9,$K$8)","v":"Invalid Entry!"},5,{"$f":"IF(G33=$K$31,$L$31,IF(G33=$K$32,$L$32,$L$33))","v":3},"No",3]
[{"$f":"A33+1","v":20},null,null,"Ecol & Green Infra","Does green infrastructure exist in your area? And is it effective in reducing impacts from climate hazards?","Consider how wetlands, parks, etc. reduce impacts from events such as floods"," ",{"$f":"IF(OR(G34=$K$36,G34=$K$37,G34=$K$38),$K$9,$K$8)","v":"Invalid Entry!"},6,{"$f":"IF(G34=$K$36,$L$36,IF(G34=$K$37,$L$37,$L$38))","v":3}]
[{"$f":"A34+1","v":21},null,null,"Energy","Is your energy infrastructure interrupted by floods or other climate events?","This includes large and small-scale energy - e.g. grid, wind, distribution systems"," ",{"$f":"IF(OR(G35=$K$21,G35=$K$22,G35=$K$23),$K$9,$K$8)","v":"Invalid Entry!"},3,{"$f":"IF(G35=$K$21,$L$21,IF(G35=$K$22,$L$22,$L$23))","v":1},"List 6","yes is good"]
[{"$f":"A35+1","v":22},null,null,"Roads & Public Infra","Are your roads & other public infrastructure impacted by floods or other climate events?","This includes large and small scale - e.g. bridges, buildings"," ",{"$f":"IF(OR(G36=$K$21,G36=$K$22,G36=$K$23),$K$9,$K$8)","v":"Invalid Entry!"},3,{"$f":"IF(G36=$K$21,$L$21,IF(G36=$K$22,$L$22,$L$23))","v":1},"Yes, and effective",1]
[null,null,null,null,null,null,null,null,null,null,"Yes, but not effective",2]
[null,"FUTURE EXPOSURE",null,null,null,null,null,null,null,null,"No",3]
[null,"NOTE: THIS SECTION SHOULD BE COMPLETED BY THE PROJECT ASSESSOR BASED ON CONFIRMED PROJECT PIPELINE/COMMITMENTS (WHICH SHOULD BE MADE AVAILABLE ON REQUEST).",null,null,null,null,null,null,null,null,"List 7"]
[null,"Do you think that future exposure will be similar to current exposure? ",null,null,null,null,"Yes",null,null,null,"Yes"]
[null,"NOTE: ONCE YOU SELECT AN OPTION, PLEASE CLICK ON \"UPDATE\". SHOULD YOU WISH TO CHANGE YOUR RESPONSE TO THE QUESTION ABOVE, PLEASE REMEMBER TO CLICK THE \"UPDATE \"BUTTON\" AGAIN. PLEASE NOTE THAT THIS BUTTON WILL ERASE ALL RESPONSES THAT HAVE BEEN ENTERED MANUALLY, AND WILL CHANGE ALL RESPONSES TO DEFAULT!!",null,null,null,null,null,null,null,null,"No"]
[null,"Exposure",null,null,"Question ","Comments/Description","Answer?",null,null,null,"Blank Answer?","Default Answer?"]
[null,1,"Livelihoods","Food security","Will your food security influenced by different climatic conditions, and will it beaffordable? ","Consider food security at different at different times of the year (i.e. rainy season)?"," ",{"$f":"IF(OR(G43=$K$11,G43=$K$12,G43=$K$13),$K$9,$K$8)","v":"Invalid Entry!"},1,{"$f":"IF(G43=$K$11,$L$11,IF(G43=$K$12,$L$12,$L$13))","v":1},{"$f":"\"\"","v":""},{"$f":"IF($G$40=$K$40,G11,K43)","v":" "}]
[null,null,null,"Crops","Will you be dependent on our own crop for food? If yes, will your crop be impacted by climate events/diseases?","Consider your ability to have seeds for the following year"," ",{"$f":"IF(OR(G44=$K$16,G44=$K$17,G44=$K$18),$K$9,$K$8)","v":"Invalid Entry!"},2,{"$f":"IF(G44=$K$16,$L$16,IF(G44=$K$17,$L$17,$L$18))","v":1},{"$f":"\"\"","v":""},{"$f":"IF($G$40=$K$40,G12,K44)","v":" "}]
[null,null,null,"Livestock","Will you be dependent on our own livestock for food? If yes, will your livestock be impacted by climate events?","This includes impacts from temperature, rainfall, droughts and/or floods"," ",{"$f":"IF(OR(G45=$K$16,G45=$K$17,G45=$K$18),$K$9,$K$8)","v":"Invalid Entry!"},2,{"$f":"IF(G45=$K$16,$L$16,IF(G45=$K$17,$L$17,$L$18))","v":1},{"$f":"\"\"","v":""},{"$f":"IF($G$40=$K$40,G13,K45)","v":" "}]
[null,null,null,null,null,null,null,null,null,{"$f":"\"\"","v":""},{"$f":"\"\"","v":""},{"$f":"\"\"","v":""}]
[null,2,"Health & Safety","Water Borne Diseases ","Will you be affected by water-borne diseases?","Water-borne diseases include typhoid fever, cholera, leptospirosis and hepatitis A."," ",{"$f":"IF(OR(G47=$K$21,G47=$K$22,G47=$K$23),$K$9,$K$8)","v":"Invalid Entry!"},3,{"$f":"IF(G47=$K$21,$L$21,IF(G47=$K$22,$L$22,$L$23))","v":1},{"$f":"\"\"","v":""},{"$f":"IF($G$40=$K$40,G15,K47)","v":" "}]
[null,null,null,"Vector Diseases","Will you be affected by vector diseases?","Vector diseases include malaria, dengue fever, yellow fever, and West Nile Fever"," ",{"$f":"IF(OR(G48=$K$21,G48=$K$22,G48=$K$23),$K$9,$K$8)","v":"Invalid Entry!"},3,{"$f":"IF(G48=$K$21,$L$21,IF(G48=$K$22,$L$22,$L$23))","v":1},{"$f":"\"\"","v":""},{"$f":"IF($G$40=$K$40,G16,K48)","v":" "}]
[null,null,null,"Safety","Will your human safety & livelihoods be impacted by floods? ","Will floods cause death or loss of property/food? "," ",{"$f":"IF(OR(G49=$K$21,G49=$K$22,G49=$K$23),$K$9,$K$8)","v":"Invalid Entry!"},3,{"$f":"IF(G49=$K$21,$L$21,IF(G49=$K$22,$L$22,$L$23))","v":1},{"$f":"\"\"","v":""},{"$f":"IF($G$40=$K$40,G17,K49)","v":" "}]
[null,null,null,null,null,null,null,null,null,{"$f":"\"\"","v":""},{"$f":"\"\"","v":""},{"$f":"\"\"","v":""}]
[null,3,"Services","Housing","Will you have adequate housing? If yes, will it be impacted by climate hazards?","This includes impacts from temperature, rainfall and/or floods"," ",{"$f":"IF(OR(G51=$K$31,G51=$K$32,G51=$K$33),$K$9,$K$8)","v":"Invalid Entry!"},5,{"$f":"IF(G51=$K$31,$L$31,IF(G51=$K$32,$L$32,$L$33))","v":3},{"$f":"\"\"","v":""},{"$f":"IF($G$40=$K$40,G19,K51)","v":" "}]
[null,null,null,"Land","Will you have adequate access to land? If yes, will it be impacted by climate hazards?","This includes land needed for food, crops and livestock"," ",{"$f":"IF(OR(G52=$K$31,G52=$K$32,G52=$K$33),$K$9,$K$8)","v":"Invalid Entry!"},5,{"$f":"IF(G52=$K$31,$L$31,IF(G52=$K$32,$L$32,$L$33))","v":3},{"$f":"\"\"","v":""},{"$f":"IF($G$40=$K$40,G20,K52)","v":" "}]
[null,null,null,"Community","Will your community services be impacted by climate hazards?","This includes clinics, school, religious buildings, etc."," ",{"$f":"IF(OR(G53=$K$21,G53=$K$22,G53=$K$23),$K$9,$K$8)","v":"Invalid Entry!"},3,{"$f":"IF(G53=$K$21,$L$21,IF(G53=$K$22,$L$22,$L$23))","v":1},{"$f":"\"\"","v":""},{"$f":"IF($G$40=$K$40,G21,K53)","v":" "}]
[null,null,null,"Sanitation","Will you have access to adequate sanitation? If yes, will it be impacted by climate hazards?","This is specific to household sanitation"," ",{"$f":"IF(OR(G54=$K$31,G54=$K$32,G54=$K$33),$K$9,$K$8)","v":"Invalid Entry!"},5,{"$f":"IF(G54=$K$31,$L$31,IF(G54=$K$32,$L$32,$L$33))","v":3},{"$f":"\"\"","v":""},{"$f":"IF($G$40=$K$40,G22,K54)","v":" "}]
[null,null,null,"Energy","Will you have reliable access to energy? If yes, will it be impacted by climate hazards?","This includes impacts from temperature, rainfall, droughts and/or floods"," ",{"$f":"IF(OR(G55=$K$31,G55=$K$32,G55=$K$33),$K$9,$K$8)","v":"Invalid Entry!"},5,{"$f":"IF(G55=$K$31,$L$31,IF(G55=$K$32,$L$32,$L$33))","v":3},{"$f":"\"\"","v":""},{"$f":"IF($G$40=$K$40,G23,K55)","v":" "}]
[null,null,null,null,null,null,null,null,null,{"$f":"\"\"","v":""},{"$f":"\"\"","v":""},{"$f":"\"\"","v":""}]
[null,4,"Water Supply","Access","Will water be sufficient for the needs of your household?","This includes water needed for food, crops, livestock, health"," ",{"$f":"IF(OR(G57=$K$26,G57=$K$27,G57=$K$28),$K$9,$K$8)","v":"Invalid Entry!"},4,{"$f":"IF(G57=$K$26,$L$26,IF(G57=$K$27,$L$27,$L$28))","v":3},{"$f":"\"\"","v":""},{"$f":"IF($G$40=$K$40,G25,K57)","v":" "}]
[null,null,null,"Quality","Will the quality of your water supply be adequate for your needs?","This includes water needed for food, crops, livestock, health"," ",{"$f":"IF(OR(G58=$K$26,G58=$K$27,G58=$K$28),$K$9,$K$8)","v":"Invalid Entry!"},4,{"$f":"IF(G58=$K$26,$L$26,IF(G58=$K$27,$L$27,$L$28))","v":3},{"$f":"\"\"","v":""},{"$f":"IF($G$40=$K$40,G26,K58)","v":" "}]
[null,null,null,"Droughts","Will you be affected by seasonal droughts","Will you experience water shortages during droughts?"," ",{"$f":"IF(OR(G59=$K$21,G59=$K$22,G59=$K$23),$K$9,$K$8)","v":"Invalid Entry!"},3,{"$f":"IF(G59=$K$21,$L$21,IF(G59=$K$22,$L$22,$L$23))","v":1},{"$f":"\"\"","v":""},{"$f":"IF($G$40=$K$40,G27,K59)","v":" "}]
[null,null,null,"Floods","Will your water access be impacted by floods?","This includes water needed for food, crops, livestock, health"," ",{"$f":"IF(OR(G60=$K$21,G60=$K$22,G60=$K$23),$K$9,$K$8)","v":"Invalid Entry!"},3,{"$f":"IF(G60=$K$21,$L$21,IF(G60=$K$22,$L$22,$L$23))","v":1},{"$f":"\"\"","v":""},{"$f":"IF($G$40=$K$40,G28,K60)","v":" "}]
[null,null,null,"Other Climate Hazards","Will your water access be impacted by other climate events (excl. droughts and floods)?","This includes water needed for food, crops, livestock, health"," ",{"$f":"IF(OR(G61=$K$21,G61=$K$22,G61=$K$23),$K$9,$K$8)","v":"Invalid Entry!"},3,{"$f":"IF(G61=$K$21,$L$21,IF(G61=$K$22,$L$22,$L$23))","v":1},{"$f":"\"\"","v":""},{"$f":"IF($G$40=$K$40,G29,K61)","v":" "}]
[null,null,null,null,null,null,null,null,null,{"$f":"\"\"","v":""},{"$f":"\"\"","v":""},{"$f":"\"\"","v":""}]
[null,5,"Infrastructure","Water Supply","Will you have centralised water supply infrastructure? And will it be impacted by climate hazards?","This includes large and small-scale infrastructure (e.g. pipelines)"," ",{"$f":"IF(OR(G63=$K$31,G63=$K$32,G63=$K$33),$K$9,$K$8)","v":"Invalid Entry!"},5,{"$f":"IF(G63=$K$31,$L$31,IF(G63=$K$32,$L$32,$L$33))","v":3},{"$f":"\"\"","v":""},{"$f":"IF($G$40=$K$40,G31,K63)","v":" "}]
[null,null,null,"Water Treatment","Will you have centralised water treatment infrastructure? And will it be impacted by climate hazards?","This includes large and small-scale infrastructure"," ",{"$f":"IF(OR(G64=$K$31,G64=$K$32,G64=$K$33),$K$9,$K$8)","v":"Invalid Entry!"},5,{"$f":"IF(G64=$K$31,$L$31,IF(G64=$K$32,$L$32,$L$33))","v":3},{"$f":"\"\"","v":""}," "]
[null,null,null,"Water Storage","Will you have centralised water storage infrastructure? And will it be impacted by climate hazards?","This includes large and small-scale infrastructure (e.g. dams)"," ",{"$f":"IF(OR(G65=$K$31,G65=$K$32,G65=$K$33),$K$9,$K$8)","v":"Invalid Entry!"},5,{"$f":"IF(G65=$K$31,$L$31,IF(G65=$K$32,$L$32,$L$33))","v":3},{"$f":"\"\"","v":""}," "]
[null,null,null,"Ecol & Green Infra","Will green infrastructure exist in your area? And will it be effective in reducing impacts from climate hazards?","Consider how wetlands, parks, etc. reduce impacts from events such as floods"," ",{"$f":"IF(OR(G66=$K$36,G66=$K$37,G66=$K$38),$K$9,$K$8)","v":"Invalid Entry!"},6,{"$f":"IF(G66=$K$36,$L$36,IF(G66=$K$37,$L$37,$L$38))","v":3},{"$f":"\"\"","v":""}," "]
[null,null,null,"Energy","Will your energy infrastructure be interrupted by floods or other climate events?","This includes large and small-scale energy - e.g. grid, wind, distribution systems"," ",{"$f":"IF(OR(G67=$K$21,G67=$K$22,G67=$K$23),$K$9,$K$8)","v":"Invalid Entry!"},3,{"$f":"IF(G67=$K$21,$L$21,IF(G67=$K$22,$L$22,$L$23))","v":1},{"$f":"\"\"","v":""}," "]
[null,null,null,"Roads & Public Infra","Will your roads & other public infrastructure be impacted by floods or other climate events?","This includes large and small scale - e.g. bridges, buildings"," ",{"$f":"IF(OR(G68=$K$21,G68=$K$22,G68=$K$23),$K$9,$K$8)","v":"Invalid Entry!"},3,{"$f":"IF(G68=$K$21,$L$21,IF(G68=$K$22,$L$22,$L$23))","v":1},{"$f":"\"\"","v":""}," "]

{"sheet":"Sensitivity","index":4,"n_rows":64,"n_cols":12,"rows_kept":64,"cut":false,"hidden":false,"merged":[[9,1,9,3],[39,1,39,3],[7,1,7,4],[37,1,37,5],[38,1,38,5]]}
[]
[]
[]
[]
[]
[]
[null,null,null,null,null,"NOTE: ONCE YOU CLICK THIS BUTTON YOU CANNOT UNDO YOUR ACTIONS ",null,null,null,null,"Invalid Entry!"]
[null,"CURRENT SENSITIVITY",null,null,null,null,null,null,null,null,{"$f":"\"\"","v":""}]
[null,null,null,null,null,null,null,null,null,null,"high score is bad"]
[null,"Sensitivity",null,null,"Question ","Comments/Description","Answer?",null,"list?","Rating?","List1","yes is good"]
[1,1,"Human","Diverse Livelihoods","Do you have other ways to support your livelihood? ","Including non-agricultural activities "," ",{"$f":"IF(OR(G11=$K$11,G11=$K$12,G11=$K$13),$K$8,$K$7)","v":"Invalid Entry!"},1,{"$f":"IF(G11=$K$11,$L$11,IF(G11=$K$12,$L$12,$L$13))","v":3},"Yes",1]
[{"$f":"A11+1","v":2},null,null,"Climate Information","Do you have adequate education levels to understand climate information?","Consider school level"," ",{"$f":"IF(OR(G12=$K$16,G12=$K$17),$K$8,$K$7)","v":"Invalid Entry!"},2,{"$f":"IF(G12=$K$16,$L$16,$L$17)","v":3},"Sometimes",2]
[{"$f":"A12+1","v":3},null,null,"Agric Information","Have you received any training on climate-smart agriculture?","This includes info/skills on temperature, rainfall, droughts and/or floods"," ",{"$f":"IF(OR(G13=$K$16,G13=$K$17),$K$8,$K$7)","v":"Invalid Entry!"},2,{"$f":"IF(G13=$K$16,$L$16,$L$17)","v":3},"No",3]
[4,null,null,"Women","Are you involved in agriculture and/or securing water in your household? ","nb - specific to women"," ",{"$f":"IF(OR(G14=$K$11,G14=$K$12,G14=$K$13),$K$8,$K$7)","v":"Invalid Entry!"},1,{"$f":"IF(G14=$K$11,$L$11,IF(G14=$K$12,$L$12,$L$13))","v":3}]
[5,null,null,"Health","Would you consider you and your family to be healthy?","This includes waterborne and vector diseases"," ",{"$f":"IF(OR(G15=$K$16,G15=$K$17),$K$8,$K$7)","v":"Invalid Entry!"},2,{"$f":"IF(G15=$K$16,$L$16,$L$17)","v":3},"List 2","yes is good"]
[null,null,null,null,null,null," ",null,null,{"$f":"\"\"","v":""},"Yes",1]
[{"$f":"A15+1","v":6},2,"Institutions","Water user forums","Are you part of a group that discusses water challenges in your area?","Do they exist, and do you feel adequately represented?"," ",{"$f":"IF(OR(G17=$K$20,G17=$K$21,G17=$K$22),$K$8,$K$7)","v":"Invalid Entry!"},3,{"$f":"IF(G17=$K$20,$L$20,IF(G17=$K$21,$L$21,$L$22))","v":3},"No",3]
[7,null,null,"Farming forums","Are you part of a group that discusses farming challenges in your area?","Do they exist, and do you feel adequately represented?"," ",{"$f":"IF(OR(G18=$K$20,G18=$K$21,G18=$K$22),$K$8,$K$7)","v":"Invalid Entry!"},3,{"$f":"IF(G18=$K$20,$L$20,IF(G18=$K$21,$L$21,$L$22))","v":3}]
[8,null,null,"Weather data","Do you have a group/organisation that disseminates climate/weather data?","Is there someone who tells you what the weather will be like in future?"," ",{"$f":"IF(OR(G19=$K$20,G19=$K$21,G19=$K$22),$K$8,$K$7)","v":"Invalid Entry!"},3,{"$f":"IF(G19=$K$20,$L$20,IF(G19=$K$21,$L$21,$L$22))","v":3},"List 3","yes is good"]
[9,null,null,"Health","Do you have reasonable access to health services?","Consider access to clinics and hospitals?"," ",{"$f":"IF(OR(G20=$K$20,G20=$K$21,G20=$K$22),$K$8,$K$7)","v":"Invalid Entry!"},3,{"$f":"IF(G20=$K$20,$L$20,IF(G20=$K$21,$L$21,$L$22))","v":3},"Yes, and adequate",1]
[null,null,null,null,null,null," ",null,null,{"$f":"\"\"","v":""},"Yes, but not adequate",2]
[{"$f":"A20+1","v":10},3,"Infrastructure","Water Storage","Do you have access to water storage facilities?","Consider household water storage"," ",{"$f":"IF(OR(G22=$K$16,G22=$K$17),$K$8,$K$7)","v":"Invalid Entry!"},2,{"$f":"IF(G22=$K$16,$L$16,$L$17)","v":3},"No",3]
[{"$f":"A22+1","v":11},null,null,"Water Supply","If it exists, is your water supply and/or treatment infrastructure reliable?","Consider if these are damaged during floods or other climate events"," ",{"$f":"IF(OR(G23=$K$25,G23=$K$26,G23=$K$27),$K$8,$K$7)","v":"Invalid Entry!"},4,{"$f":"IF(G23=$K$25,$L$25,IF(G23=$K$26,$L$26,$L$27))","v":3}]
[12,null,null,"Roads & Transport","Are your roads and transport infrastructure in adequate condition?","Consider if these are damaged during floods or other climate events"," ",{"$f":"IF(OR(G24=$K$16,G24=$K$17),$K$8,$K$7)","v":"Invalid Entry!"},2,{"$f":"IF(G24=$K$16,$L$16,$L$17)","v":3},"List 4","yes is good"]
[13,null,null,"Energy","If it exists, is your energy supply dependent on water?","Consider if these are impacted by droughts, flood or other climate events"," ",{"$f":"IF(OR(G25=$K$25,G25=$K$26,G25=$K$27),$K$8,$K$7)","v":"Invalid Entry!"},4,{"$f":"IF(G25=$K$25,$L$25,IF(G25=$K$26,$L$26,$L$27))","v":3},"Yes",1]
[14,null,null,"Housing / Shelter","During climate events do you have access to your shelter?","Consider if it is damaged during floods or other climate events"," ",{"$f":"IF(OR(G26=$K$16,G26=$K$17),$K$8,$K$7)","v":"Invalid Entry!"},2,{"$f":"IF(G26=$K$16,$L$16,$L$17)","v":3},"No",2]
[null,null,null,null,null,null," ",null,null,{"$f":"\"\"","v":""},"Not applicable",3]
[{"$f":"A26+1","v":15},4,"Natural Resources","Land","Do you have secure land rights?","Do you own your land?"," ",{"$f":"IF(OR(G28=$K$16,G28=$K$17),$K$8,$K$7)","v":"Invalid Entry!"},2,{"$f":"IF(G28=$K$16,$L$16,$L$17)","v":3}]
[16,null,null,"Water Resources","Are the water resources in your area healthy?","Is your area's water resource healthy?"," ",{"$f":"IF(OR(G29=$K$11,G29=$K$12,G29=$K$13),$K$8,$K$7)","v":"Invalid Entry!"},1,{"$f":"IF(G29=$K$11,$L$11,IF(G29=$K$12,$L$12,$L$13))","v":3}]
[17,null,null,"Ecosystems","Are you situated in a healthy ecosystem?","Are your area's ecosystem and natural resources healthy?"," ",{"$f":"IF(OR(G30=$K$11,G30=$K$12,G30=$K$13),$K$8,$K$7)","v":"Invalid Entry!"},1,{"$f":"IF(G30=$K$11,$L$11,IF(G30=$K$12,$L$12,$L$13))","v":3}]
[18,null,null,"Soil","Is your soil of adequate quality for your livelihood needs?","Is your area's soil healthy?"," ",{"$f":"IF(OR(G31=$K$16,G31=$K$17),$K$8,$K$7)","v":"Invalid Entry!"},2,{"$f":"IF(G31=$K$16,$L$16,$L$17)","v":3}]
[null,null,null,null,null,null," ",null,null,{"$f":"\"\"","v":""}]
[{"$f":"A31+1","v":19},5,"Financial Resources","Sustainable Income","Do you have a sustainable source of income? ","This includes a salary, as well as resources to get you through tough times"," ",{"$f":"IF(OR(G33=$K$20,G33=$K$21,G33=$K$22),$K$8,$K$7)","v":"Invalid Entry!"},3,{"$f":"IF(G33=$K$20,$L$20,IF(G33=$K$21,$L$21,$L$22))","v":3}]
[{"$f":"A33+1","v":20},null,null,"Diverse Income","Do you have diversified income sources?","Do you have more than one source of income?"," ",{"$f":"IF(OR(G34=$K$11,G34=$K$12,G34=$K$13),$K$8,$K$7)","v":"Invalid Entry!"},1,{"$f":"IF(G34=$K$11,$L$11,IF(G34=$K$12,$L$12,$L$13))","v":3}]
[]
[null,"FUTURE SENSITIVITY",null,null,null,null,null,null,null,null,"List 5"]
[null,"NOTE: THIS SECTION SHOULD BE COMPLETED BY THE PROJECT ASSESSOR BASED ON CONFIRMED PROJECT PIPELINE/COMMITMENTS (WHICH SHOULD BE MADE AVAILABLE ON REQUEST).",null,null,null,null,null,null,null,null,"Yes"]
[null,"Do you think that future sensitivity will be similar to the current sensitivity?",null,null,null,null,"Yes",null,null,null,"No"]
[null,"NOTE: ONCE YOU SELECT AN OPTION, PLEASE CLICK ON \"UPDATE\". SHOULD YOU WISH TO CHANGE YOUR RESPONSE TO THE QUESTION ABOVE, PLEASE REMEMBER TO CLICK THE \"UPDATE \"BUTTON\" AGAIN. PLEASE NOTE THAT THIS BUTTON WILL ERASE ALL RESPONSES THAT HAVE BEEN ENTERED MANUALLY, AND WILL CHANGE ALL RESPONSES TO DEFAULT!!"]
[null,"Sensitivity",null,null,"Question ","Comments/Description","Answer?",null,"list?","Rating?","Blank Answer?","Default Answer?"]
[null,1,"Human","Diverse Livelihoods","Will you have other ways to support your livelihood? ","Including non-agricultural activities "," ",{"$f":"IF(OR(G41=$K$11,G41=$K$12,G41=$K$13),$K$8,$K$7)","v":"Invalid Entry!"},1,{"$f":"IF(G41=$K$11,$L$11,IF(G41=$K$12,$L$12,$L$13))","v":3},{"$f":"\"\"","v":""},{"$f":"IF($G$38=$K$37,G11,K41)","v":" "}]
[null,null,null,"Climate Information","Will you have adequate education levels to understand climate information?","Consider school level"," ",{"$f":"IF(OR(G42=$K$16,G42=$K$17),$K$8,$K$7)","v":"Invalid Entry!"},2,{"$f":"IF(G42=$K$16,$L$16,$L$17)","v":3},{"$f":"\"\"","v":""},{"$f":"IF($G$38=$K$37,G12,K42)","v":" "}]
[null,null,null,"Agric Information","Will you receive any training on climate-smart agriculture?","This includes info/skills on temperature, rainfall, droughts and/or floods"," ",{"$f":"IF(OR(G43=$K$16,G43=$K$17),$K$8,$K$7)","v":"Invalid Entry!"},2,{"$f":"IF(G43=$K$16,$L$16,$L$17)","v":3},{"$f":"\"\"","v":""},{"$f":"IF($G$38=$K$37,G13,K43)","v":" "}]
[null,null,null,"Women","Will you be involved in agriculture and/or securing water in your household? ","nb - specific to women"," ",{"$f":"IF(OR(G44=$K$11,G44=$K$12,G44=$K$13),$K$8,$K$7)","v":"Invalid Entry!"},1,{"$f":"IF(G44=$K$11,$L$11,IF(G44=$K$12,$L$12,$L$13))","v":3},{"$f":"\"\"","v":""},{"$f":"IF($G$38=$K$37,G14,K44)","v":" "}]
[null,null,null,"Health","In future, will you consider you and your family to be healthy?","This includes waterborne and vector diseases"," ",{"$f":"IF(OR(G45=$K$16,G45=$K$17),$K$8,$K$7)","v":"Invalid Entry!"},2,{"$f":"IF(G45=$K$16,$L$16,$L$17)","v":3},{"$f":"\"\"","v":""},{"$f":"IF($G$38=$K$37,G15,K45)","v":" "}]
[null,null,null,null,null,null,null,null,null,{"$f":"\"\"","v":""},{"$f":"\"\"","v":""},{"$f":"\"\"","v":""}]
[null,2,"Institutions","Water user forums","Will you be part of a group that discusses water challenges in your area?","Will they exist, and will you feel adequately represented?"," ",{"$f":"IF(OR(G47=$K$20,G47=$K$21,G47=$K$22),$K$8,$K$7)","v":"Invalid Entry!"},3,{"$f":"IF(G47=$K$20,$L$20,IF(G47=$K$21,$L$21,$L$22))","v":3},{"$f":"\"\"","v":""},{"$f":"IF($G$38=$K$37,G17,K47)","v":" "}]
[null,null,null,"Farming forums","Will you be part of a group that discusses farming challenges in your area?","Will they exist, and will you feel adequately represented?"," ",{"$f":"IF(OR(G48=$K$20,G48=$K$21,G48=$K$22),$K$8,$K$7)","v":"Invalid Entry!"},3,{"$f":"IF(G48=$K$20,$L$20,IF(G48=$K$21,$L$21,$L$22))","v":3},{"$f":"\"\"","v":""},{"$f":"IF($G$38=$K$37,G18,K48)","v":" "}]
[null,null,null,"Weather data","Will  you have a group/organisation that disseminates climate/weather data?","Will there be someone who tells you what the weather will be like in future?"," ",{"$f":"IF(OR(G49=$K$20,G49=$K$21,G49=$K$22),$K$8,$K$7)","v":"Invalid Entry!"},3,{"$f":"IF(G49=$K$20,$L$20,IF(G49=$K$21,$L$21,$L$22))","v":3},{"$f":"\"\"","v":""},{"$f":"IF($G$38=$K$37,G19,K49)","v":" "}]
[null,null,null,"Health","Will  you have reasonable access to health services?","Consider access to clinics and hospitals?"," ",{"$f":"IF(OR(G50=$K$20,G50=$K$21,G50=$K$22),$K$8,$K$7)","v":"Invalid Entry!"},3,{"$f":"IF(G50=$K$20,$L$20,IF(G50=$K$21,$L$21,$L$22))","v":3},{"$f":"\"\"","v":""},{"$f":"IF($G$38=$K$37,G20,K50)","v":" "}]
[null,null,null,null,null,null,null,null,null,{"$f":"\"\"","v":""},{"$f":"\"\"","v":""},{"$f":"\"\"","v":""}]
[null,3,"Infrastructure","Water Storage","Will  you have access to water storage facilities?","Consider household water storage"," ",{"$f":"IF(OR(G52=$K$16,G52=$K$17),$K$8,$K$7)","v":"Invalid Entry!"},2,{"$f":"IF(G52=$K$16,$L$16,$L$17)","v":3},{"$f":"\"\"","v":""},{"$f":"IF($G$38=$K$37,G22,K52)","v":" "}]
[null,null,null,"Water Supply","If it exists, will your water supply and/or treatment infrastructure be reliable?","Consider if these will be damaged during floods or other climate events"," ",{"$f":"IF(OR(G53=$K$25,G53=$K$26,G53=$K$27),$K$8,$K$7)","v":"Invalid Entry!"},4,{"$f":"IF(G53=$K$25,$L$25,IF(G53=$K$26,$L$26,$L$27))","v":3},{"$f":"\"\"","v":""},{"$f":"IF($G$38=$K$37,G23,K53)","v":" "}]
[null,null,null,"Roads & Transport","Will your roads and transport infrastructure be in adequate condition?","Consider if these will be damaged during floods or other climate events"," ",{"$f":"IF(OR(G54=$K$16,G54=$K$17),$K$8,$K$7)","v":"Invalid Entry!"},2,{"$f":"IF(G54=$K$16,$L$16,$L$17)","v":3},{"$f":"\"\"","v":""},{"$f":"IF($G$38=$K$37,G24,K54)","v":" "}]
[null,null,null,"Energy","If it exists, will your energy supply be dependent on water?","Consider if these will be impacted during floods or other climate events"," ",{"$f":"IF(OR(G55=$K$25,G55=$K$26,G55=$K$27),$K$8,$K$7)","v":"Invalid Entry!"},4,{"$f":"IF(G55=$K$25,$L$25,IF(G55=$K$26,$L$26,$L$27))","v":3},{"$f":"\"\"","v":""},{"$f":"IF($G$38=$K$37,G25,K55)","v":" "}]
[null,null,null,"Housing / Shelter","During climate events will you have access to your shelter?","Consider if it will be impacted during floods or other climate events"," ",{"$f":"IF(OR(G56=$K$16,G56=$K$17),$K$8,$K$7)","v":"Invalid Entry!"},2,{"$f":"IF(G56=$K$16,$L$16,$L$17)","v":3},{"$f":"\"\"","v":""},{"$f":"IF($G$38=$K$37,G26,K56)","v":" "}]
[null,null,null,null,null,null,null,null,null,{"$f":"\"\"","v":""},{"$f":"\"\"","v":""},{"$f":"\"\"","v":""}]
[null,4,"Natural Resources","Land","Will  you have secure land rights?","Will you own your land?"," ",{"$f":"IF(OR(G58=$K$16,G58=$K$17),$K$8,$K$7)","v":"Invalid Entry!"},2,{"$f":"IF(G58=$K$16,$L$16,$L$17)","v":3},{"$f":"\"\"","v":""},{"$f":"IF($G$38=$K$37,G28,K58)","v":" "}]
[null,null,null,"Water Resources","Will the water resources in your area be healthy?","Will your area's water resource be healthy?"," ",{"$f":"IF(OR(G59=$K$11,G59=$K$12,G59=$K$13),$K$8,$K$7)","v":"Invalid Entry!"},1,{"$f":"IF(G59=$K$11,$L$11,IF(G59=$K$12,$L$12,$L$13))","v":3},{"$f":"\"\"","v":""},{"$f":"IF($G$38=$K$37,G29,K59)","v":" "}]
[null,null,null,"Ecosystems","Will you be situated in a healthy ecosystem?","Will your area's ecosystem and natural resources be healthy?"," ",{"$f":"IF(OR(G60=$K$11,G60=$K$12,G60=$K$13),$K$8,$K$7)","v":"Invalid Entry!"},1,{"$f":"IF(G60=$K$11,$L$11,IF(G60=$K$12,$L$12,$L$13))","v":3},{"$f":"\"\"","v":""},{"$f":"IF($G$38=$K$37,G30,K60)","v":" "}]
[null,null,null,"Soil","Will your soil be of adequate quality for your livelihood needs?","Will your area's soil be healthy?"," ",{"$f":"IF(OR(G61=$K$16,G61=$K$17),$K$8,$K$7)","v":"Invalid Entry!"},2,{"$f":"IF(G61=$K$16,$L$16,$L$17)","v":3},{"$f":"\"\"","v":""},{"$f":"IF($G$38=$K$37,G31,K61)","v":" "}]
[null,null,null,null,null,null,null,null,null,{"$f":"\"\"","v":""},{"$f":"\"\"","v":""},{"$f":"\"\"","v":""}]
[null,5,"Financial Resources","Sustainable Income","Will  you have a sustainable source of income? ","This includes a salary, as well as resources to get you through tough times"," ",{"$f":"IF(OR(G63=$K$20,G63=$K$21,G63=$K$22),$K$8,$K$7)","v":"Invalid Entry!"},3,{"$f":"IF(G63=$K$20,$L$20,IF(G63=$K$21,$L$21,$L$22))","v":3},{"$f":"\"\"","v":""},{"$f":"IF($G$38=$K$37,G33,K63)","v":" "}]
[null,null,null,"Diverse Income","Will  you have diversified income sources?","Will you have more than one source of income?"," ",{"$f":"IF(OR(G64=$K$11,G64=$K$12,G64=$K$13),$K$8,$K$7)","v":"Invalid Entry!"},1,{"$f":"IF(G64=$K$11,$L$11,IF(G64=$K$12,$L$12,$L$13))","v":3},{"$f":"\"\"","v":""},{"$f":"IF($G$38=$K$37,G34,K64)","v":" "}]

{"sheet":"Adaptive Capacity","index":5,"n_rows":64,"n_cols":12,"rows_kept":64,"cut":false,"hidden":false,"merged":[[9,1,9,3],[39,1,39,3],[7,1,7,4],[35,1,35,4],[37,1,37,5],[38,1,38,5]]}
[]
[]
[]
[]
[]
[]
[null,null,null,null,null,"NOTE: ONCE YOU CLICK THIS BUTTON YOU CANNOT UNDO YOUR ACTIONS ",null,null,null,null,"Invalid Entry!"]
[null,"CURRENT ADAPTIVE CAPACITY",null,null,null,null,null,null,null,null,{"$f":"\"\"","v":""}]
[null,null,null,null,null,null,null,null,null,null,"high score is good"]
[null,"Adaptive Capacity",null,null,"Question ","Comments/Description","Answer?",null,"list?","Rating?","List 1","yes is good"]
[1,1,"Human","Climate Info","Do you have access to climate-related information to enable adaptation and resilience?","This includes info/skills on temperature, rainfall, droughts and/or floods"," ",{"$f":"IF(OR(G11=$K$11,G11=$K$12,G11=$K$13),$K$8,$K$7)","v":"Invalid Entry!"},1,{"$f":"IF(G11=$K$11,$L$11,IF(G11=$K$12,$L$12,$L$13))","v":1},"Yes",3]
[{"$f":"A11+1","v":2},null,null,"Climate Smart Agr","Do you have access to information about climate-smart agriculture?","This includes info/skills on temperature, rainfall, droughts and/or floods"," ",{"$f":"IF(OR(G12=$K$16,G12=$K$17),$K$8,$K$7)","v":"Invalid Entry!"},2,{"$f":"IF(G12=$K$16,$L$16,$L$17)","v":1},"Sometimes",2]
[{"$f":"A12+1","v":3},null,null,"EWS Info","Do you have skills and information on how to react/respond to an early warning system (EWS)?","This includes info/skills on temperature, rainfall, droughts and/or floods"," ",{"$f":"IF(OR(G13=$K$16,G13=$K$17),$K$8,$K$7)","v":"Invalid Entry!"},2,{"$f":"IF(G13=$K$16,$L$16,$L$17)","v":1},"No",1]
[4,null,null,"Women","Do women have skills and information about climate-smart agriculture?","nb - specific to women"," ",{"$f":"IF(OR(G14=$K$11,G14=$K$12,G14=$K$13),$K$8,$K$7)","v":"Invalid Entry!"},1,{"$f":"IF(G14=$K$11,$L$11,IF(G14=$K$12,$L$12,$L$13))","v":1}]
[5,null,null,"Health Awareness","Are you provided with information regarding your families’ health?","This includes waterborne and vector diseases"," ",{"$f":"IF(OR(G15=$K$11,G15=$K$12,G15=$K$13),$K$8,$K$7)","v":"Invalid Entry!"},1,{"$f":"IF(G15=$K$11,$L$11,IF(G15=$K$12,$L$12,$L$13))","v":1},"List 2","yes is good"]
[null,null,null,null,null,null," ",null,null,{"$f":"\"\"","v":""},"Yes",3]
[{"$f":"A15+1","v":6},2,"Institutions","EWS","Is there an early warning system (EWS) in your community? ","Consider an EWS that warns you during disasters"," ",{"$f":"IF(OR(G17=$K$16,G17=$K$17),$K$8,$K$7)","v":"Invalid Entry!"},2,{"$f":"IF(G17=$K$16,$L$16,$L$17)","v":1},"No",1]
[{"$f":"A17+1","v":7},null,null,"Engagement","Does the local government engage you during disasters?","Consider the level of communication and engagement"," ",{"$f":"IF(OR(G18=$K$16,G18=$K$17),$K$8,$K$7)","v":"Invalid Entry!"},2,{"$f":"IF(G18=$K$16,$L$16,$L$17)","v":1}]
[8,null,null,"Resources","Does the local government have the capacity and finance to respond to disasters?","Are they able to respond to disasters?"," ",{"$f":"IF(OR(G19=$K$11,G19=$K$12,G19=$K$13),$K$8,$K$7)","v":"Invalid Entry!"},1,{"$f":"IF(G19=$K$11,$L$11,IF(G19=$K$12,$L$12,$L$13))","v":1},"List 3","yes is good"]
[9,null,null,"Health","Do your health services have sufficient capacity and finance?","Are your health services able to meet your needs?"," ",{"$f":"IF(OR(G20=$K$11,G20=$K$12,G20=$K$13),$K$8,$K$7)","v":"Invalid Entry!"},1,{"$f":"IF(G20=$K$11,$L$11,IF(G20=$K$12,$L$12,$L$13))","v":1},"Yes, and adequate",3]
[null,null,null,null,null,null," ",null,null,{"$f":"\"\"","v":""},"Yes, but not adequate",2]
[{"$f":"A20+1","v":10},3,"Infrastructure","Water Storage","Does the local government provide additional water storage during disasters?","Consider possible options for water storage"," ",{"$f":"IF(OR(G22=$K$11,G22=$K$12,G22=$K$13),$K$8,$K$7)","v":"Invalid Entry!"},1,{"$f":"IF(G22=$K$11,$L$11,IF(G22=$K$12,$L$12,$L$13))","v":1},"No",1]
[{"$f":"A22+1","v":11},null,null,"Green Infra","Is there any green infrastructure to supplement blue infrastructure in your area?","Consider natural dams/ponds, wetlands"," ",{"$f":"IF(OR(G23=$K$11,G23=$K$12,G23=$K$13),$K$8,$K$7)","v":"Invalid Entry!"},1,1]
[12,null,null,"Roads & Transport","Are your roads and transport infrastructure adequately maintained?","Consider local government actions"," ",{"$f":"IF(OR(G24=$K$16,G24=$K$17),$K$8,$K$7)","v":"Invalid Entry!"},2,{"$f":"IF(G24=$K$16,$L$16,$L$17)","v":1}]
[13,null,null,"Maintenance","Does the local government have the capacity and finance to manage and maintain infrastructure?","Consider local government actions"," ",{"$f":"IF(OR(G25=$K$16,G25=$K$17),$K$8,$K$7)","v":"Invalid Entry!"},2,{"$f":"IF(G25=$K$16,$L$16,$L$17)","v":1}]
[14,null,null,"Housing / Shelter","During flood events do you have access to alternative shelter?","Consider community halls or shelters"," ",{"$f":"IF(OR(G26=$K$16,G26=$K$17),$K$8,$K$7)","v":"Invalid Entry!"},2,{"$f":"IF(G26=$K$16,$L$16,$L$17)","v":1}]
[null,null,null,null,null,null," ",null,null,{"$f":"\"\"","v":""}]
[{"$f":"A26+1","v":15},4,"Natural Resources","Land","Do you have access to alternative land that you can use in the case of emergencies (such as floods)?","Consider land in higher ground or in a different location"," ",{"$f":"IF(OR(G28=$K$16,G28=$K$17),$K$8,$K$7)","v":"Invalid Entry!"},2,{"$f":"IF(G28=$K$16,$L$16,$L$17)","v":1}]
[16,null,null,"Water Resources","Do you have access to alternative water that you can use in the case of emergencies (such as droughts)?","Consider water to supplement your main water supply"," ",{"$f":"IF(OR(G29=$K$16,G29=$K$17),$K$8,$K$7)","v":"Invalid Entry!"},2,{"$f":"IF(G29=$K$16,$L$16,$L$17)","v":1}]
[17,null,null,"Ecosystems","Are the ecosystems in your area adequately managed?","Consider parks, wetlands, forests, rivers, etc."," ",{"$f":"IF(OR(G30=$K$16,G30=$K$17),$K$8,$K$7)","v":"Invalid Entry!"},2,{"$f":"IF(G30=$K$16,$L$16,$L$17)","v":1}]
[18,null,null,"Soil","Do you have access to fertilizers, crop (seed) varieties and/or alternative livestock breeds?","Consider ways to supplement inadequate soil"," ",{"$f":"IF(OR(G31=$K$16,G31=$K$17),$K$8,$K$7)","v":"Invalid Entry!"},2,{"$f":"IF(G31=$K$16,$L$16,$L$17)","v":1}]
[null,null,null,null,null,null," ",null,null,{"$f":"\"\"","v":""}]
[{"$f":"A31+1","v":19},5,"Financial Resources","Finance","Do you have access to a bank account or community fund to support your livelihood? ","This includes resources to get you through tough times"," ",{"$f":"IF(OR(G33=$K$20,G33=$K$21,G33=$K$22),$K$8,$K$7)","v":"Invalid Entry!"},3,{"$f":"IF(G33=$K$20,$L$20,IF(G33=$K$21,$L$21,$L$22))","v":1}]
[{"$f":"A33+1","v":20},null,null,"Insurance","Do you have access to insurance to assist you in emergencies? ","Consider insurance to get you through tough times"," ",{"$f":"IF(OR(G34=$K$20,G34=$K$21,G34=$K$22),$K$8,$K$7)","v":"Invalid Entry!"},3,{"$f":"IF(G34=$K$20,$L$20,IF(G34=$K$21,$L$21,$L$22))","v":1}]
[]
[null,"FUTURE ADAPTIVE CAPACITY",null,null,null,null,null,null,null,null,"List 4"]
[null,"NOTE: THIS SECTION SHOULD BE COMPLETED BY THE PROJECT ASSESSOR BASED ON CONFIRMED PROJECT PIPELINE/COMMITMENTS (WHICH SHOULD BE MADE AVAILABLE ON REQUEST).",null,null,null,null,null,null,null,null,"Yes"]
[null,"Do you think that future adaptive capacity will be similar to current adaptive capacity?",null,null,null,null,"Yes",null,null,null,"No"]
[null,"NOTE: ONCE YOU SELECT AN OPTION, PLEASE CLICK ON \"UPDATE\". SHOULD YOU WISH TO CHANGE YOUR RESPONSE TO THE QUESTION ABOVE, PLEASE REMEMBER TO CLICK THE \"UPDATE \"BUTTON\" AGAIN. PLEASE NOTE THAT THIS BUTTON WILL ERASE ALL RESPONSES THAT HAVE BEEN ENTERED MANUALLY, AND WILL CHANGE ALL RESPONSES TO DEFAULT!!"]
[null,"Adaptive Capacity",null,null,"Question ","Comments/Description","Answer?",null,"list?","Rating?","Blank Answer?","Default Answer?"]
[null,1,"Human","Climate Info","Will you have access to climate-related information to enable adaptation and resilience?","This includes info/skills on temperature, rainfall, droughts and/or floods"," ",{"$f":"IF(OR(G41=$K$11,G41=$K$12,G41=$K$13),$K$8,$K$7)","v":"Invalid Entry!"},1,{"$f":"IF(G41=$K$11,$L$11,IF(G41=$K$12,$L$12,$L$13))","v":1},{"$f":"\"\"","v":""},{"$f":"IF($G$38=$K$37,G11,K41)","v":" "}]
[null,null,null,"Climate Smart Agr","Will you have access to information about climate-smart agriculture?","This includes info/skills on temperature, rainfall, droughts and/or floods"," ",{"$f":"IF(OR(G42=$K$16,G42=$K$17),$K$8,$K$7)","v":"Invalid Entry!"},2,{"$f":"IF(G42=$K$16,$L$16,$L$17)","v":1},{"$f":"\"\"","v":""},{"$f":"IF($G$38=$K$37,G12,K42)","v":" "}]
[null,null,null,"EWS Info","Will you have skills and information on how to react/respond to an early warning system (EWS)?","This includes info/skills on temperature, rainfall, droughts and/or floods"," ",{"$f":"IF(OR(G43=$K$16,G43=$K$17),$K$8,$K$7)","v":"Invalid Entry!"},2,{"$f":"IF(G43=$K$16,$L$16,$L$17)","v":1},{"$f":"\"\"","v":""},{"$f":"IF($G$38=$K$37,G13,K43)","v":" "}]
[null,null,null,"Women","Will women have skills and information about climate-smart agriculture?","nb - specific to women"," ",{"$f":"IF(OR(G44=$K$11,G44=$K$12,G44=$K$13),$K$8,$K$7)","v":"Invalid Entry!"},1,{"$f":"IF(G44=$K$11,$L$11,IF(G44=$K$12,$L$12,$L$13))","v":1},{"$f":"\"\"","v":""},{"$f":"IF($G$38=$K$37,G14,K44)","v":" "}]
[null,null,null,"Health Awareness","Will you be provided with information regarding your families’ health?","This includes waterborne and vector diseases"," ",{"$f":"IF(OR(G45=$K$11,G45=$K$12,G45=$K$13),$K$8,$K$7)","v":"Invalid Entry!"},1,{"$f":"IF(G45=$K$11,$L$11,IF(G45=$K$12,$L$12,$L$13))","v":1},{"$f":"\"\"","v":""},{"$f":"IF($G$38=$K$37,G15,K45)","v":" "}]
[null,null,null,null,null,null,null,null,null,{"$f":"\"\"","v":""},{"$f":"\"\"","v":""},{"$f":"\"\"","v":""}]
[null,2,"Institutions","EWS","Will there be an early warning system (EWS) in your community? ","Consider an EWS that warns you during disasters"," ",{"$f":"IF(OR(G47=$K$16,G47=$K$17),$K$8,$K$7)","v":"Invalid Entry!"},2,{"$f":"IF(G47=$K$16,$L$16,$L$17)","v":1},{"$f":"\"\"","v":""},{"$f":"IF($G$38=$K$37,G17,K47)","v":" "}]
[null,null,null,"Engagement","Will the local government engage you during disasters?","Consider the level of communication and engagement"," ",{"$f":"IF(OR(G48=$K$16,G48=$K$17),$K$8,$K$7)","v":"Invalid Entry!"},2,{"$f":"IF(G48=$K$16,$L$16,$L$17)","v":1},{"$f":"\"\"","v":""},{"$f":"IF($G$38=$K$37,G18,K48)","v":" "}]
[null,null,null,"Resources","Will the local government have the capacity and finance to respond to disasters?","Will they be able to respond to disasters?"," ",{"$f":"IF(OR(G49=$K$11,G49=$K$12,G49=$K$13),$K$8,$K$7)","v":"Invalid Entry!"},1,{"$f":"IF(G49=$K$11,$L$11,IF(G49=$K$12,$L$12,$L$13))","v":1},{"$f":"\"\"","v":""},{"$f":"IF($G$38=$K$37,G19,K49)","v":" "}]
[null,null,null,"Health","Will your health services have sufficient capacity and finance?","Will your health services be able to meet your needs?"," ",{"$f":"IF(OR(G50=$K$11,G50=$K$12,G50=$K$13),$K$8,$K$7)","v":"Invalid Entry!"},1,{"$f":"IF(G50=$K$11,$L$11,IF(G50=$K$12,$L$12,$L$13))","v":1},{"$f":"\"\"","v":""},{"$f":"IF($G$38=$K$37,G20,K50)","v":" "}]
[null,null,null,null,null,null,null,null,null,{"$f":"\"\"","v":""},{"$f":"\"\"","v":""},{"$f":"\"\"","v":""}]
[null,3,"Infrastructure","Water Storage","Will the local government provide additional water storage during disasters?","Consider possible options for water storage"," ",{"$f":"IF(OR(G52=$K$11,G52=$K$12,G52=$K$13),$K$8,$K$7)","v":"Invalid Entry!"},1,{"$f":"IF(G52=$K$11,$L$11,IF(G52=$K$12,$L$12,$L$13))","v":1},{"$f":"\"\"","v":""},{"$f":"IF($G$38=$K$37,G22,K52)","v":" "}]
[null,null,null,"Green Infra","Will there be any green infrastructure to supplement blue infrastructure in your area?","Consider natural dams/ponds, wetlands"," ",{"$f":"IF(OR(G53=$K$11,G53=$K$12,G53=$K$13),$K$8,$K$7)","v":"Invalid Entry!"},1,1,{"$f":"\"\"","v":""},{"$f":"IF($G$38=$K$37,G23,K53)","v":" "}]
[null,null,null,"Roads & Transport","Will the roads and transport infrastructure be adequately maintained?","Consider local government actions"," ",{"$f":"IF(OR(G54=$K$16,G54=$K$17),$K$8,$K$7)","v":"Invalid Entry!"},2,{"$f":"IF(G54=$K$16,$L$16,$L$17)","v":1},{"$f":"\"\"","v":""},{"$f":"IF($G$38=$K$37,G24,K54)","v":" "}]
[null,null,null,"Maintenance","Does the local government have the capacity and finance to manage and maintain infrastructure?","Consider local government actions"," ",{"$f":"IF(OR(G55=$K$16,G55=$K$17),$K$8,$K$7)","v":"Invalid Entry!"},2,{"$f":"IF(G55=$K$16,$L$16,$L$17)","v":1},{"$f":"\"\"","v":""},{"$f":"IF($G$38=$K$37,G25,K55)","v":" "}]
[null,null,null,"Housing / Shelter","During flood events will you have access to alternative shelter?","Consider community halls or shelters"," ",{"$f":"IF(OR(G56=$K$16,G56=$K$17),$K$8,$K$7)","v":"Invalid Entry!"},2,{"$f":"IF(G56=$K$16,$L$16,$L$17)","v":1},{"$f":"\"\"","v":""},{"$f":"IF($G$38=$K$37,G26,K56)","v":" "}]
[null,null,null,null,null,null,null,null,null,{"$f":"\"\"","v":""},{"$f":"\"\"","v":""},{"$f":"\"\"","v":""}]
[null,4,"Natural Resources","Land","Will you have access to alternative land that you can use in the case of emergencies (such as floods)?","Consider land in higher ground or in a different location"," ",{"$f":"IF(OR(G58=$K$16,G58=$K$17),$K$8,$K$7)","v":"Invalid Entry!"},2,{"$f":"IF(G58=$K$16,$L$16,$L$17)","v":1},{"$f":"\"\"","v":""},{"$f":"IF($G$38=$K$37,G28,K58)","v":" "}]
[null,null,null,"Water Resources","Will you have access to alternative water that you can use in the case of emergencies (such as droughts)?","Consider water to supplement your main water supply"," ",{"$f":"IF(OR(G59=$K$16,G59=$K$17),$K$8,$K$7)","v":"Invalid Entry!"},2,{"$f":"IF(G59=$K$16,$L$16,$L$17)","v":1},{"$f":"\"\"","v":""},{"$f":"IF($G$38=$K$37,G29,K59)","v":" "}]
[null,null,null,"Ecosystems","Will the ecosystems in your area be adequately managed?","Consider parks, wetlands, forests, rivers, etc."," ",{"$f":"IF(OR(G60=$K$16,G60=$K$17),$K$8,$K$7)","v":"Invalid Entry!"},2,{"$f":"IF(G60=$K$16,$L$16,$L$17)","v":1},{"$f":"\"\"","v":""},{"$f":"IF($G$38=$K$37,G30,K60)","v":" "}]
[null,null,null,"Soil","Will you have access to fertilizers, crop (seed) varieties and/or alternative livestock breeds?","Consider ways to supplement inadequate soil"," ",{"$f":"IF(OR(G61=$K$16,G61=$K$17),$K$8,$K$7)","v":"Invalid Entry!"},2,{"$f":"IF(G61=$K$16,$L$16,$L$17)","v":1},{"$f":"\"\"","v":""},{"$f":"IF($G$38=$K$37,G31,K61)","v":" "}]
[null,null,null,null,null,null,null,null,null,{"$f":"\"\"","v":""},{"$f":"\"\"","v":""},{"$f":"\"\"","v":""}]
[null,5,"Financial Resources","Finance","Will you have access to a bank account or community fund to support your livelihood? ","This includes resources to get you through tough times"," ",{"$f":"IF(OR(G63=$K$20,G63=$K$21,G63=$K$22),$K$8,$K$7)","v":"Invalid Entry!"},3,{"$f":"IF(G63=$K$20,$L$20,IF(G63=$K$21,$L$21,$L$22))","v":1},{"$f":"\"\"","v":""},{"$f":"IF($G$38=$K$37,G33,K63)","v":" "}]
[null,null,null,"Insurance","Will you have access to insurance to assist you in emergencies? ","Consider insurance to get you through tough times"," ",{"$f":"IF(OR(G64=$K$20,G64=$K$21,G64=$K$22),$K$8,$K$7)","v":"Invalid Entry!"},3,{"$f":"IF(G64=$K$20,$L$20,IF(G64=$K$21,$L$21,$L$22))","v":1},{"$f":"\"\"","v":""},{"$f":"IF($G$38=$K$37,G34,K64)","v":" "}]

{"sheet":"RVAT_Output","index":6,"n_rows":482,"n_cols":64,"rows_kept":482,"cut":false,"hidden":false,"merged":[[448,2,448,4],[180,3,180,6],[180,7,180,10],[180,11,180,14],[180,15,180,18],[180,19,180,22],[181,3,181,5],[181,6,181,9],[181,10,181,12],[181,13,181,15],[181,16,181,19],[181,20,181,22],[356,3,356,12],[356,13,356,22],[354,3,354,6],[354,7,354,10],[354,11,354,14],[354,15,354,18],[354,19,354,22],[355,3,355,7],[355,8,355,12],[355,13,355,17],[355,18,355,22],[316,11,316,14],[177,3,177,9],[177,10,177,15],[177,16,177,22],[178,3,178,9],[178,10,178,15],[178,16,178,22],[179,3,179,6],[179,7,179,10],[179,11,179,14],[179,15,179,18],[179,19,179,22],[130,3,130,12],[130,13,130,22],[167,3,167,6],[167,7,167,10],[167,11,167,14],[167,15,167,18],[167,19,167,22],[171,3,171,6],[171,7,171,10],[171,11,171,14],[171,15,171,18],[171,19,171,22],[148,3,148,6],[148,7,148,10],[148,11,148,14],[148,15,148,18],[148,19,148,22],[157,3,157,6],[157,7,157,10],[157,11,157,14],[157,15,157,18],[157,19,157,22],[158,3,158,5],[158,6,158,9],[128,3,128,6],[128,7,128,10],[128,11,128,14],[128,15,128,18],[128,19,128,22],[129,3,129,7],[129,8,129,12],[129,13,129,17],[129,18,129,22],[127,3,127,7],[127,8,127,12],[127,13,127,17],[127,18,127,22],[118,13,118,22],[117,3,117,7],[117,8,117,12],[117,13,117,17],[117,18,117,22],[102,18,102,22],[103,3,103,12],[103,13,103,22],[126,3,126,6],[126,7,126,10],[126,11,126,14],[126,15,126,18],[126,19,126,22],[116,3,116,6],[116,7,116,10],[116,11,116,14],[116,15,116,18],[116,19,116,22],[114,3,114,6],[114,7,114,10],[114,11,114,14],[114,15,114,18],[114,19,114,22],[115,3,115,7],[115,8,115,12],[115,13,115,17],[115,18,115,22],[102,3,102,7],[102,8,102,12],[72,3,72,9],[72,10,72,15],[72,16,72,22],[73,3,73,9],[73,10,73,15],[73,16,73,22],[74,3,74,6],[74,7,74,10],[74,11,74,14],[74,15,74,18],[74,19,74,22],[75,3,75,6],[75,7,75,10],[75,11,75,14],[75,15,75,18],[75,19,75,22],[76,3,76,5],[76,6,76,9],[76,10,76,12],[76,13,76,15],[76,16,76,19],[76,20,76,22],[316,15,316,18],[316,19,316,22],[317,3,317,6],[317,7,317,10],[317,11,317,14],[317,15,317,18],[317,19,317,22],[318,3,318,5],[318,6,318,9],[318,10,318,12],[318,13,318,15],[318,16,318,19],[318,20,318,22],[451,28,451,30],[451,34,451,36],[322,28,322,30],[322,32,322,34],[333,3,333,6],[333,7,333,10],[333,11,333,14],[333,15,333,18],[333,19,333,22],[334,3,334,7],[334,8,334,12],[334,13,334,17],[334,18,334,22],[335,3,335,6],[335,7,335,10],[335,11,335,14],[335,15,335,18],[335,19,335,22],[336,3,336,7],[336,8,336,12],[336,13,336,17],[336,18,336,22],[337,3,337,12],[337,13,337,22],[238,13,238,15],[238,16,238,19],[238,20,238,22],[195,3,195,6],[195,7,195,10],[195,11,195,14],[195,15,195,18],[195,19,195,22],[221,3,221,6],[221,7,221,10],[221,11,221,14],[221,15,221,18],[221,19,221,22],[235,3,235,9],[235,10,235,15],[235,16,235,22],[236,3,236,6],[236,7,236,10],[236,11,236,14],[236,15,236,18],[236,19,236,22],[237,3,237,6],[237,7,237,10],[237,11,237,14],[441,2,441,4],[208,3,208,9],[208,10,208,15],[208,16,208,22],[209,3,209,9],[209,10,209,15],[209,16,209,22],[210,3,210,6],[210,7,210,10],[210,11,210,14],[210,15,210,18],[210,19,210,22],[211,3,211,6],[211,7,211,10],[211,11,211,14],[414,20,414,22],[391,3,391,6],[391,7,391,10],[391,11,391,14],[391,15,391,18],[391,19,391,22],[393,3,393,6],[393,7,393,10],[393,11,393,14],[395,3,395,6],[395,7,395,10],[395,11,395,14],[395,15,395,18],[395,19,395,22],[414,3,414,5],[414,6,414,9],[414,10,414,12],[414,13,414,15],[414,16,414,19],[413,3,413,6],[413,7,413,10],[413,11,413,14],[413,15,413,18],[413,19,413,22],[412,3,412,6],[412,7,412,10],[412,11,412,14],[412,15,412,18],[412,19,412,22],[408,20,408,22],[410,3,410,9],[410,10,410,15],[410,16,410,22],[411,3,411,9],[411,10,411,15],[411,16,411,22],[408,3,408,5],[408,6,408,9],[408,10,408,12],[408,13,408,15],[408,16,408,19],[407,3,407,6],[407,7,407,10],[407,11,407,14],[407,15,407,18],[407,19,407,22],[406,3,406,6],[406,7,406,10],[406,11,406,14],[406,15,406,18],[406,19,406,22],[402,20,402,22],[404,3,404,9],[404,10,404,15],[404,16,404,22],[405,3,405,9],[405,10,405,15],[405,16,405,22],[402,3,402,5],[402,6,402,9],[402,10,402,12],[402,13,402,15],[402,16,402,19],[401,3,401,6],[401,7,401,10],[401,11,401,14],[401,15,401,18],[401,19,401,22],[399,3,399,9],[399,10,399,15],[399,16,399,22],[400,3,400,6],[400,7,400,10],[400,11,400,14],[400,15,400,18],[400,19,400,22],[398,3,398,9],[398,10,398,15],[398,16,398,22],[211,15,211,18],[211,19,211,22],[212,3,212,5],[212,6,212,9],[212,10,212,12],[212,13,212,15],[212,16,212,19],[212,20,212,22],[234,3,234,9],[234,10,234,15],[234,16,234,22],[381,15,381,18],[381,19,381,22],[379,3,379,9],[379,10,379,15],[379,16,379,22],[380,3,380,6],[380,7,380,10],[380,11,380,14],[393,15,393,18],[393,19,393,22],[382,20,382,22],[365,3,365,6],[365,7,365,10],[365,11,365,14],[365,15,365,18],[365,19,365,22],[367,3,367,6],[367,7,367,10],[367,11,367,14],[367,15,367,18],[367,19,367,22],[382,3,382,5],[382,6,382,9],[382,10,382,12],[382,13,382,15],[382,16,382,19],[381,3,381,6],[381,7,381,10],[381,11,381,14],[380,15,380,18],[380,19,380,22],[376,10,376,12],[376,13,376,15],[376,16,376,19],[376,20,376,22],[378,3,378,9],[378,10,378,15],[378,16,378,22],[376,3,376,5],[376,6,376,9],[372,3,372,9],[372,10,372,15],[372,16,372,22],[373,3,373,9],[373,10,373,15],[373,16,373,22],[359,7,359,10],[359,11,359,14],[359,15,359,18],[359,19,359,22],[349,13,349,17],[349,18,349,22],[350,3,350,12],[350,13,350,22],[348,3,348,6],[348,7,348,10],[348,11,348,14],[348,15,348,18],[348,19,348,22],[349,3,349,7],[349,8,349,12],[352,3,352,6],[352,7,352,10],[352,11,352,14],[352,15,352,18],[352,19,352,22],[353,3,353,7],[353,8,353,12],[353,13,353,17],[353,18,353,22],[158,10,158,12],[158,13,158,15],[158,16,158,19],[158,20,158,22],[156,3,156,6],[156,7,156,10],[156,11,156,14],[156,15,156,18],[156,19,156,22],[155,3,155,9],[155,10,155,15],[155,16,155,22],[375,3,375,6],[375,7,375,10],[375,11,375,14],[375,15,375,18],[375,19,375,22],[374,3,374,6],[374,7,374,10],[374,11,374,14],[374,15,374,18],[374,19,374,22],[361,3,361,6],[361,7,361,10],[361,11,361,14],[361,15,361,18],[361,19,361,22],[359,3,359,6],[346,3,346,6],[346,7,346,10],[346,11,346,14],[346,15,346,18],[346,19,346,22],[154,3,154,9],[154,10,154,15],[154,16,154,22],[144,3,144,6],[144,7,144,10],[144,11,144,14],[144,15,144,18],[144,19,144,22],[87,3,87,6],[87,7,87,10],[87,11,87,14],[87,15,87,18],[87,19,87,22],[88,3,88,7],[88,8,88,12],[88,13,88,17],[88,18,88,22],[90,3,90,7],[90,8,90,12],[90,13,90,17],[90,18,90,22],[91,3,91,12],[91,13,91,22],[118,3,118,12],[100,8,100,12],[100,13,100,17],[100,18,100,22],[101,3,101,6],[101,7,101,10],[101,11,101,14],[101,15,101,18],[101,19,101,22],[89,3,89,6],[89,7,89,10],[89,11,89,14],[89,15,89,18],[89,19,89,22],[99,3,99,6],[99,7,99,10],[99,11,99,14],[99,15,99,18],[99,19,99,22],[102,13,102,17],[64,3,64,5],[64,6,64,9],[64,10,64,12],[64,13,64,15],[64,16,64,19],[64,20,64,22],[60,3,60,9],[60,10,60,15],[60,16,60,22],[61,3,61,9],[61,10,61,15],[61,16,61,22],[63,3,63,6],[63,7,63,10],[63,11,63,14],[63,15,63,18],[63,19,63,22],[62,3,62,6],[62,7,62,10],[62,11,62,14],[62,15,62,18],[62,19,62,22],[100,3,100,7],[237,15,237,18],[237,19,237,22],[238,3,238,5],[238,6,238,9],[238,10,238,12],[330,3,330,7],[330,8,330,12],[330,13,330,17],[330,18,330,22],[329,3,329,6],[329,7,329,10],[329,11,329,14],[329,15,329,18],[329,19,329,22],[324,3,324,7],[324,8,324,12],[324,13,324,17],[324,18,324,22],[327,3,327,6],[327,7,327,10],[327,11,327,14],[327,15,327,18],[327,19,327,22],[321,15,321,18],[344,3,344,12],[344,13,344,22],[341,3,341,7],[341,8,341,12],[341,13,341,17],[341,18,341,22],[342,3,342,6],[342,7,342,10],[342,11,342,14],[342,15,342,18],[342,19,342,22],[328,3,328,7],[328,8,328,12],[328,13,328,17],[328,18,328,22],[331,3,331,12],[331,13,331,22],[343,3,343,7],[343,8,343,12],[343,13,343,17],[343,18,343,22],[321,19,321,22],[321,3,321,6],[321,7,321,10],[321,11,321,14],[347,3,347,7],[347,8,347,12],[347,13,347,17],[347,18,347,22],[322,3,322,7],[322,8,322,12],[322,13,322,17],[322,18,322,22],[323,3,323,6],[323,7,323,10],[323,11,323,14],[323,15,323,18],[323,19,323,22],[340,3,340,6],[340,7,340,10],[340,11,340,14],[340,15,340,18],[340,19,340,22],[325,13,325,22],[325,3,325,12],[310,3,310,6],[310,7,310,10],[310,11,310,14],[310,15,310,18],[310,19,310,22],[306,20,306,22],[306,3,306,5],[306,6,306,9],[306,10,306,12],[306,13,306,15],[306,16,306,19],[308,3,308,9],[308,10,308,15],[308,16,308,22],[309,3,309,9],[309,10,309,15],[309,16,309,22],[277,32,277,34],[277,28,277,30],[295,3,295,9],[295,10,295,15],[295,16,295,22],[296,3,296,9],[296,10,296,15],[296,16,296,22],[277,24,277,26],[287,20,287,22],[287,3,287,5],[277,10,277,15],[283,3,283,9],[283,10,283,15],[283,16,283,22],[284,3,284,9],[284,10,284,15],[284,16,284,22],[278,10,278,15],[292,3,292,7],[292,8,292,12],[292,13,292,17],[292,18,292,22],[293,3,293,5],[305,3,305,6],[305,7,305,10],[305,11,305,14],[305,15,305,18],[305,19,305,22],[286,3,286,7],[286,8,286,12],[286,13,286,17],[286,18,286,22],[303,16,303,22],[303,10,303,15],[303,3,303,9],[302,16,302,22],[302,10,302,15],[302,3,302,9],[304,19,304,22],[304,15,304,18],[304,11,304,14],[304,7,304,10],[304,3,304,6],[298,13,298,17],[298,18,298,22],[297,13,297,17],[297,18,297,22],[299,20,299,22],[299,3,299,5],[299,6,299,9],[299,10,299,12],[299,13,299,15],[299,16,299,19],[297,3,297,7],[297,8,297,12],[298,3,298,7],[298,8,298,12],[50,20,50,22],[50,3,50,5],[50,6,50,9],[50,10,50,12],[50,13,50,15],[50,16,50,19],[48,3,48,7],[48,8,48,12],[48,13,48,17],[48,18,48,22],[49,3,49,7],[49,8,49,12],[49,13,49,17],[49,18,49,22],[37,3,37,7],[37,8,37,12],[37,13,37,17],[37,18,37,22],[279,3,279,7],[279,8,279,12],[279,13,279,17],[279,18,279,22],[277,16,277,22],[278,16,278,22],[277,3,277,9],[278,3,278,9],[38,20,38,22],[46,3,46,9],[46,10,46,15],[46,16,46,22],[47,3,47,9],[47,10,47,15],[47,16,47,22],[38,3,38,5],[38,6,38,9],[38,10,38,12],[38,13,38,15],[38,16,38,19],[34,3,34,9],[34,10,34,15],[34,16,34,22],[35,3,35,9],[35,10,35,15],[35,16,35,22],[36,3,36,7],[36,8,36,12],[36,13,36,17],[36,18,36,22],[420,28,420,30],[420,34,420,36],[280,3,280,7],[280,8,280,12],[280,13,280,17],[280,18,280,22],[281,3,281,5],[281,6,281,9],[281,10,281,12],[281,13,281,15],[281,16,281,19],[281,20,281,22],[287,6,287,9],[287,10,287,12],[287,13,287,15],[287,16,287,19],[285,3,285,7],[285,8,285,12],[285,13,285,17],[285,18,285,22],[322,24,322,26],[316,7,316,10],[316,3,316,6],[315,16,315,22],[315,10,315,15],[315,3,315,9],[314,16,314,22],[314,10,314,15],[314,3,314,9],[312,20,312,22],[311,19,311,22],[311,15,311,18],[311,11,311,14],[311,7,311,10],[311,3,311,6],[312,16,312,19],[312,13,312,15],[312,10,312,12],[312,6,312,9],[312,3,312,5],[293,6,293,9],[293,10,293,12],[293,13,293,15],[293,16,293,19],[293,20,293,22],[289,3,289,9],[289,10,289,15],[289,16,289,22],[290,3,290,9],[290,10,290,15],[290,16,290,22],[291,3,291,7],[291,8,291,12],[291,13,291,17],[291,18,291,22],[384,3,384,9],[384,10,384,15],[384,16,384,22],[385,3,385,9],[385,10,385,15],[385,16,385,22],[386,3,386,6],[386,7,386,10],[386,11,386,14],[386,15,386,18],[386,19,386,22],[387,3,387,6],[387,7,387,10],[387,11,387,14],[387,15,387,18],[387,19,387,22],[388,3,388,5],[388,6,388,9],[388,10,388,12],[388,13,388,15],[388,16,388,19],[388,20,388,22],[363,19,363,22],[363,15,363,18],[363,11,363,14],[363,7,363,10],[363,3,363,6],[369,3,369,6],[369,7,369,10],[369,11,369,14],[369,15,369,18],[369,19,369,22]]}
[]
[]
[]
[]
[null,null,"To view a synthesis of all the responses, click on the tabs below:"]
[]
[]
[]
[]
[null,null,"To view the output of the risk and vulnerability assessment, click on the tabs below:"]
[]
[]
[]
[]
[]
[]
[]
[]
[]
[]
[]
[]
[]
[]
[]
[]
[]
[]
[]
[null,"HAZARD"]
[]
[null,"CURRENT"]
[null,"     The table below illustrates the current climate hazards",null,null,null,null,null,null,null,null,null,null,null,null,null,null,null,null,null,null,null,null,null,null,"     The graph below illustrates the current climate hazards"]
[]
[null,null,{"$f":"C278","v":"Temperature"},{"$f":"D278","v":"Seasons"},null,null,null,null,null,null,"Annual Trends",null,null,null,null,null,"Hot days"]
[null,null,{"$f":"C279","v":"Rainfall"},{"$f":"D279","v":"Seasons"},null,null,null,null,null,null,{"$f":"K279","v":"Annual Trends"},null,null,null,null,null,{"$f":"Q279","v":"Heavy Rainfall"}]
[null,null,{"$f":"C280","v":"Droughts"},{"$f":"D280","v":"Events"},null,null,null,null,{"$f":"I280","v":"Timing"},null,null,null,null,{"$f":"N280","v":"Extent"},null,null,null,null,{"$f":"S280","v":"Effect"}]
[null,null,{"$f":"C281","v":"Floods"},{"$f":"D281","v":"Events"},null,null,null,null,{"$f":"I281","v":"Timing"},null,null,null,null,{"$f":"N281","v":"Extent"},null,null,null,null,{"$f":"S281","v":"Effect"}]
[null,null,{"$f":"C282","v":"Other Factors"},{"$f":"D282","v":"Fire"},null,null,{"$f":"G282","v":"Snow"},null,null,null,{"$f":"K282","v":"Hail"},null,null,{"$f":"N282","v":"Tornado"},null,null,{"$f":"Q282","v":"Earthquake"},null,null,null,{"$f":"U282","v":"Volcano"}]
[]
[null,null,null,null,null,null,null,"Legend:",null,null,"Low",null,null,"Medium",null,null,null,"High"]
[]
[]
[null,"FUTURE"]
[null,"     The table below illustrates the future climate hazards",null,null,null,null,null,null,null,null,null,null,null,null,null,null,null,null,null,null,null,null,null,null,"     The graph below illustrates the future climate hazards"]
[]
[null,null,{"$f":"C278","v":"Temperature"},{"$f":"D290","v":"Seasons"},null,null,null,null,null,null,"Annual Trends",null,null,null,null,null,"Changes"]
[null,null,{"$f":"C279","v":"Rainfall"},{"$f":"D291","v":"Seasons"},null,null,null,null,null,null,"Annual Trends",null,null,null,null,null,"Changes"]
[null,null,{"$f":"C280","v":"Droughts"},{"$f":"D292","v":"Events"},null,null,null,null,"Timing",null,null,null,null,"Extent",null,null,null,null,"Effect"]
[null,null,{"$f":"C281","v":"Floods"},{"$f":"D293","v":"Events"},null,null,null,null,"Timing",null,null,null,null,"Extent",null,null,null,null,"Effect"]
[null,null,{"$f":"C282","v":"Other Factors"},{"$f":"D294","v":"Fire"},null,null,"Snow",null,null,null,"Hail",null,null,"Tornado",null,null,"Earthquake",null,null,null,"Volcano"]
[]
[null,null,null,null,null,null,null,"Legend:",null,null,"Low",null,null,"Medium",null,null,null,"High"]
[]
[]
[null,"EXPOSURE"]
[]
[null,"CURRENT"]
[null,"     The table below illustrates the current levels of exposure",null,null,null,null,null,null,null,null,null,null,null,null,null,null,null,null,null,null,null,null,null,null,"     The graph below illustrates the current levels of exposure"]
[]
[null,null,{"$f":"C303","v":"Livelihoods"},"Food security",null,null,null,null,null,null,{"$f":"K303","v":"Crops"},null,null,null,null,null,{"$f":"Q303","v":"Livestock"}]
[null,null,"Health & Safety","Water Borne Diseases ",null,null,null,null,null,null,{"$f":"K304","v":"Vector Diseases"},null,null,null,null,null,{"$f":"Q304","v":"Safety"}]
[null,null,"Services","Housing",null,null,null,{"$f":"H305","v":"Land"},null,null,null,{"$f":"L305","v":"Community"},null,null,null,{"$f":"P305","v":"Sanitation"},null,null,null,{"$f":"T305","v":"Energy"}]
[null,null,"Water Supply","Access",null,null,null,{"$f":"H306","v":"Quality"},null,null,null,{"$f":"L306","v":"Droughts"},null,null,null,{"$f":"P306","v":"Floods"},null,null,null,{"$f":"T306","v":"Other Climate Hazards"}]
[null,null,"Infrastructure","Water Supply",null,null,{"$f":"G307","v":"Water Treatment"},null,null,null,{"$f":"K307","v":"Water Storage"},null,null,{"$f":"N307","v":"Ecol & Green Infra"},null,null,{"$f":"Q307","v":"Energy"},null,null,null,{"$f":"U307","v":"Roads & Public Infra"}]
[]
[null,null,null,null,null,null,null,"Legend:",null,null,"Low",null,null,"Medium",null,null,null,"High"]
[]
[]
[null,"FUTURE"]
[null,"     The table below illustrates the future levels of exposure",null,null,null,null,null,null,null,null,null,null,null,null,null,null,null,null,null,null,null,null,null,null,"     The graph below illustrates the future levels of exposure"]
[]
[null,null,{"$f":"C315","v":"Livelihoods"},{"$f":"D303","v":"Food security"},null,null,null,null,null,null,"Crops",null,null,null,null,null,"Livestock"]
[null,null,{"$f":"C316","v":"Health & Safety"},{"$f":"D304","v":"Water Borne Diseases "},null,null,null,null,null,null,"Vector Diseases",null,null,null,null,null,"Safety"]
[null,null,{"$f":"C317","v":"Services"},{"$f":"D305","v":"Housing"},null,null,null,"Land",null,null,null,"Community",null,null,null,"Sanitation",null,null,null,"Energy"]
[null,null,{"$f":"C318","v":"Water Supply"},{"$f":"D306","v":"Access"},null,null,null,"Quality",null,null,null,"Droughts",null,null,null,"Floods",null,null,null,"Other Climate Hazards"]
[null,null,{"$f":"C319","v":"Infrastructure"},{"$f":"D307","v":"Water Supply"},null,null,"Water Treatment",null,null,null,"Water Storage",null,null,"Ecol & Green Infra",null,null,"Energy",null,null,null,"Roads & Public Infra"]
[]
[null,null,null,null,null,null,null,"Legend:",null,null,"Low",null,null,"Medium",null,null,null,"High"]
[]
[]
[]
[null,"SENSITIVITY"]
[]
[null,"CURRENT"]
[null,"     The table below illustrates the current levels of sensitivity",null,null,null,null,null,null,null,null,null,null,null,null,null,null,null,null,null,null,null,null,null,null,"     The graph below illustrates the current levels of sensitivity"]
[]
[null,null,{"$f":"C322","v":"Human"},"Diverse Livelihoods",null,null,null,{"$f":"H322","v":"Climate Information"},null,null,null,{"$f":"L322","v":"Agric Information"},null,null,null,{"$f":"P322","v":"Women"},null,null,null,{"$f":"T322","v":"Health"}]
[null,null,"Institutions","Water user forums",null,null,null,null,{"$f":"I323","v":"Farming forums"},null,null,null,null,{"$f":"N323","v":"Weather data"},null,null,null,null,{"$f":"S323","v":"Health"}]
[null,null,"Infrastructure","Water Storage",null,null,null,{"$f":"H324","v":"Water Supply"},null,null,null,{"$f":"L324","v":"Roads & Transport"},null,null,null,{"$f":"P324","v":"Energy"},null,null,null,{"$f":"T324","v":"Housing / Shelter"}]
[null,null,"Natural Resources","Land",null,null,null,null,{"$f":"I325","v":"Water Resources"},null,null,null,null,{"$f":"N325","v":"Ecosystems"},null,null,null,null,{"$f":"S325","v":"Soil"}]
[null,null,"Financial Resources","Sustainable Income",null,null,null,null,null,null,null,null,null,{"$f":"N326","v":"Diverse Income"}]
[]
[null,null,null,null,null,null,null,"Legend:",null,null,"Low",null,null,"Medium",null,null,null,"High"]
[]
[]
[null,"FUTURE"]
[null,"     The table below illustrates the future levels of sensitivity",null,null,null,null,null,null,null,null,null,null,null,null,null,null,null,null,null,null,null,null,null,null,"     The graph below illustrates the future levels of sensitivity"]
[]
[null,null,{"$f":"C334","v":"Human"},{"$f":"D322","v":"Diverse Livelihoods"},null,null,null,"Climate Information",null,null,null,"Agric Information",null,null,null,"Women",null,null,null,"Health"]
[null,null,{"$f":"C335","v":"Institutions"},{"$f":"D323","v":"Water user forums"},null,null,null,null,"Farming forums",null,null,null,null,"Weather data",null,null,null,null,"Health"]
[null,null,{"$f":"C336","v":"Infrastructure"},{"$f":"D324","v":"Water Storage"},null,null,null,"Water Supply",null,null,null,"Roads & Transport",null,null,null,"Energy",null,null,null,"Housing / Shelter"]
[null,null,{"$f":"C337","v":"Natural Resources"},{"$f":"D325","v":"Land"},null,null,null,null,"Water Resources",null,null,null,null,"Ecosystems",null,null,null,null,"Soil"]
[null,null,{"$f":"C338","v":"Financial Resources"},{"$f":"D326","v":"Sustainable Income"},null,null,null,null,null,null,null,null,null,"Diverse Income"]
[]
[null,null,null,null,null,null,null,"Legend:",null,null,"Low",null,null,"Medium",null,null,null,"High"]
[]
[]
[]
[null,"ADAPTIVE CAPACITY"]
[]
[null,"CURRENT"]
[null,"     The table below illustrates the current adaptive capacity",null,null,null,null,null,null,null,null,null,null,null,null,null,null,null,null,null,null,null,null,null,null,"     The graph below illustrates the current adaptive capacity"]
[]
[null,null,{"$f":"C341","v":"Human"},"Climate Info",null,null,null,{"$f":"H341","v":"Climate Smart Agr"},null,null,null,{"$f":"L341","v":"EWS Info"},null,null,null,{"$f":"P341","v":"Women"},null,null,null,{"$f":"T341","v":"Health Awareness"}]
[null,null,"Institutions","EWS",null,null,null,null,{"$f":"I342","v":"Engagement"},null,null,null,null,{"$f":"N342","v":"Resources"},null,null,null,null,{"$f":"S342","v":"Health"}]
[null,null,"Infrastructure","Water Storage",null,null,null,{"$f":"H343","v":"Green Infra"},null,null,null,{"$f":"L343","v":"Roads & Transport"},null,null,null,{"$f":"P343","v":"Maintenance"},null,null,null,{"$f":"T343","v":"Housing / Shelter"}]
[null,null,"Natural Resources","Land",null,null,null,null,{"$f":"I344","v":"Water Resources"},null,null,null,null,{"$f":"N344","v":"Ecosystems"},null,null,null,null,{"$f":"S344","v":"Soil"}]
[null,null,"Financial Resources","Finance",null,null,null,null,null,null,null,null,null,{"$f":"N345","v":"Insurance"}]
[]
[null,null,null,null,null,null,null,"Legend:",null,null,"Good",null,null,"Ave",null,null,null,"Poor"]
[]
[]
[null,"FUTURE"]
[null,"     The table below illustrates the future adaptive capacity",null,null,null,null,null,null,null,null,null,null,null,null,null,null,null,null,null,null,null,null,null,null,"     The graph below illustrates the future adaptive capacity"]
[]
[null,null,{"$f":"C353","v":"Human"},{"$f":"D341","v":"Climate Info"},null,null,null,"Climate Smart Agr",null,null,null,"EWS Info",null,null,null,"Women",null,null,null,"Health Awareness"]
[null,null,{"$f":"C354","v":"Institutions"},{"$f":"D342","v":"EWS"},null,null,null,null,"Engagement",null,null,null,null,"Resources",null,null,null,null,"Health"]
[null,null,{"$f":"C355","v":"Infrastructure"},{"$f":"D343","v":"Water Storage"},null,null,null,"Green Infra",null,null,null,"Roads & Transport",null,null,null,"Maintenance",null,null,null,"Housing / Shelter"]
[null,null,{"$f":"C356","v":"Natural Resources"},{"$f":"D344","v":"Land"},null,null,null,null,"Water Resources",null,null,null,null,"Ecosystems",null,null,null,null,"Soil"]
[null,null,{"$f":"C357","v":"Financial Resources"},{"$f":"D345","v":"Finance"},null,null,null,null,null,null,null,null,null,"Insurance"]
[]
[null,null,null,null,null,null,null,"Legend:",null,null,"Good",null,null,"Ave",null,null,null,"Poor"]
[]
[]
[]
[]
[null,"VULNERABILITY"]
[]
[]
[null,"CURRENT"]
[null,"     The table below illustrates the current vulnerability - viewed by the same categories as 'sensitivity'",null,null,null,null,null,null,null,null,null,null,null,null,null,null,null,null,null,null,null,null,null,null,"     The graph below illustrates the current levels of vulnerability"]
[null,"     and 'adaptive capacity'"]
[]
[null,null,null,{"$f":"D360","v":"Human"},null,null,null,{"$f":"H360","v":"Institutions"},null,null,null,{"$f":"L360","v":"Infrastructure"},null,null,null,{"$f":"P360","v":"Natural Resources"},null,null,null,{"$f":"T360","v":"Financial Resources"}]
[]
[null,"     The table below illustrates the current vulnerability - viewed by the same categories as 'exposure'"]
[]
[null,null,null,{"$f":"$AO$285","v":"Livelihoods"},null,null,null,{"$f":"$AO$286","v":"Health & Safety"},null,null,null,{"$f":"$AO$287","v":"Services"},null,null,null,{"$f":"$AO$288","v":"Water Supply"},null,null,null,{"$f":"$AO$289","v":"Infrastructure"}]
[]
[null,null,null,null,null,null,null,"Legend:",null,null,"Low",null,null,"Medium",null,null,null,"High"]
[]
[null,"     The table below illustrates the current levels of vulnerability in more detail",null,null,null,null,null,null,null,null,null,null,null,null,null,null,null,null,null,null,null,null,null,null,"     The graph below illustrates the current levels of vulnerability"]
[]
[null,null,{"$f":"C379","v":"Livelihoods"},{"$f":"D373","v":"Food security"},null,null,null,null,null,null,{"$f":"K373","v":"Crops"},null,null,null,null,null,{"$f":"Q373","v":"Livestock"}]
[null,null,{"$f":"C380","v":"Health & Safety"},{"$f":"D374","v":"Water Borne Diseases "},null,null,null,null,null,null,{"$f":"K374","v":"Vector Diseases"},null,null,null,null,null,{"$f":"Q374","v":"Safety"}]
[null,null,{"$f":"C381","v":"Services"},{"$f":"D375","v":"Housing"},null,null,null,{"$f":"H375","v":"Land"},null,null,null,{"$f":"L375","v":"Community"},null,null,null,{"$f":"P375","v":"Sanitation"},null,null,null,{"$f":"T375","v":"Energy"}]
[null,null,{"$f":"C382","v":"Water Supply"},{"$f":"D376","v":"Access"},null,null,null,{"$f":"H376","v":"Quality"},null,null,null,{"$f":"L376","v":"Droughts"},null,null,null,{"$f":"P376","v":"Floods"},null,null,null,{"$f":"T376","v":"Other Climate Hazards"}]
[null,null,{"$f":"C383","v":"Infrastructure"},{"$f":"D377","v":"Water Supply"},null,null,{"$f":"G377","v":"Water Treatment"},null,null,null,{"$f":"K377","v":"Water Storage"},null,null,{"$f":"N377","v":"Ecol & Green Infra"},null,null,{"$f":"Q377","v":"Energy"},null,null,null,{"$f":"U377","v":"Roads & Public Infra"}]
[]
[null,null,null,null,null,null,null,"Legend:",null,null,"Low",null,null,"Medium",null,null,null,"High"]
[]
[]
[null,"FUTURE"]
[null,"     The table below illustrates the future vulnerability - viewed by the same categories as 'sensitivity'",null,null,null,null,null,null,null,null,null,null,null,null,null,null,null,null,null,null,null,null,null,null,"     The graph below illustrates the future levels of vulnerability"]
[null,"     and 'adaptive capacity'"]
[]
[null,null,null,{"$f":"D145","v":"Human"},null,null,null,"Institutions",null,null,null,"Infrastructure",null,null,null,"Natural Resources",null,null,null,"Financial Resources"]
[]
[null,"     The table below illustrates the future vulnerability - viewed by the same categories as 'exposure'"]
[]
[null,null,null,{"$f":"D149","v":"Livelihoods"},null,null,null,"Health & Safety",null,null,null,"Services",null,null,null,"Water Supply",null,null,null,"Infrastructure"]
[]
[null,null,null,null,null,null,null,"Legend:",null,null,"Low",null,null,"Medium",null,null,null,"High"]
[]
[null,"     The table below illustrates the future levels of vulnerability in more detail",null,null,null,null,null,null,null,null,null,null,null,null,null,null,null,null,null,null,null,null,null,null,"     The graph below illustrates the future levels of vulnerability"]
[]
[null,null,{"$f":"C155","v":"Livelihoods"},{"$f":"D155","v":"Food security"},null,null,null,null,null,null,"Crops",null,null,null,null,null,"Livestock"]
[null,null,"Health & Safety",{"$f":"D156","v":"Water Borne Diseases "},null,null,null,null,null,null,"Vector Diseases",null,null,null,null,null,"Safety"]
[null,null,"Services",{"$f":"D157","v":"Housing"},null,null,null,"Land",null,null,null,"Community",null,null,null,"Sanitation",null,null,null,"Energy"]
[null,null,"Water Supply",{"$f":"D158","v":"Access"},null,null,null,"Quality",null,null,null,"Droughts",null,null,null,"Floods",null,null,null,"Other Climate Hazards"]
[null,null,"Infrastructure",{"$f":"D159","v":"Water Supply"},null,null,"Water Treatment",null,null,null,"Water Storage",null,null,"Ecol & Green Infra",null,null,"Energy",null,null,null,"Roads & Public Infra"]
[]
[null,null,null,null,null,null,null,"Legend:",null,null,"Low",null,null,"Medium",null,null,null,"High"]
[]
[]
[]
[]
[]
[null,"RISK"]
[]
[]
[null,"CURRENT"]
[null,"     The table below illustrates the current levels of risk, by category",null,null,null,null,null,null,null,null,null,null,null,null,null,null,null,null,null,null,null,null,null,null,"     The figure below illustrates the current levels of risk, by category"]
[]
[null,null,null,{"$f":"$AO$285","v":"Livelihoods"},null,null,null,{"$f":"$AO$286","v":"Health & Safety"},null,null,null,{"$f":"$AO$287","v":"Services"},null,null,null,{"$f":"$AO$288","v":"Water Supply"},null,null,null,{"$f":"$AO$289","v":"Infrastructure"}]
[]
[null,null,null,null,null,null,null,"Legend:",null,null,"Low",null,null,"Medium",null,null,null,"High"]
[]
[]
[]
[]
[]
[]
[]
[]
[null,"     The table below illustrates the current levels of risk",null,null,null,null,null,null,null,null,null,null,null,null,null,null,null,null,null,null,null,null,null,null,"     The figure below illustrates the current levels of risk"]
[]
[null,null,{"$f":"C399","v":"Livelihoods"},"Food security",null,null,null,null,null,null,{"$f":"K399","v":"Crops"},null,null,null,null,null,{"$f":"Q399","v":"Livestock"}]
[null,null,"Health & Safety","Water Borne Diseases ",null,null,null,null,null,null,{"$f":"K400","v":"Vector Diseases"},null,null,null,null,null,{"$f":"Q400","v":"Safety"}]
[null,null,"Services","Housing",null,null,null,{"$f":"H401","v":"Land"},null,null,null,{"$f":"L401","v":"Community"},null,null,null,{"$f":"P401","v":"Sanitation"},null,null,null,{"$f":"T401","v":"Energy"}]
[null,null,"Water Supply","Access",null,null,null,{"$f":"H402","v":"Quality"},null,null,null,{"$f":"L402","v":"Droughts"},null,null,null,{"$f":"P402","v":"Floods"},null,null,null,{"$f":"T402","v":"Other Climate Hazards"}]
[null,null,"Infrastructure","Water Supply",null,null,{"$f":"G403","v":"Water Treatment"},null,null,null,{"$f":"K403","v":"Water Storage"},null,null,{"$f":"N403","v":"Ecol & Green Infra"},null,null,{"$f":"Q403","v":"Energy"},null,null,null,{"$f":"U403","v":"Roads & Public Infra"}]
[]
[null,null,null,null,null,null,null,"Legend:",null,null,"Low",null,null,"Medium",null,null,null,"High"]
[]
[]
[]
[null,"FUTURE"]
[null,"     The table below illustrates the future levels of risk, by category",null,null,null,null,null,null,null,null,null,null,null,null,null,null,null,null,null,null,null,null,null,null,"     The graph below illustrates the future levels of risk, by category"]
[]
[null,null,null,{"$f":"$AO$285","v":"Livelihoods"},null,null,null,{"$f":"$AO$286","v":"Health & Safety"},null,null,null,{"$f":"$AO$287","v":"Services"},null,null,null,{"$f":"$AO$288","v":"Water Supply"},null,null,null,{"$f":"$AO$289","v":"Infrastructure"}]
[]
[null,null,null,null,null,null,null,"Legend:",null,null,"Low",null,null,"Medium",null,null,null,"High"]
[]
[]
[]
[]
[]
[]
[]
[]
[null,"     The table below illustrates the future levels of risk",null,null,null,null,null,null,null,null,null,null,null,null,null,null,null,null,null,null,null,null,null,null,"     The figure below illustrates the future levels of risk"]
[]
[null,null,{"$f":"C399","v":"Livelihoods"},"Food security",null,null,null,null,null,null,{"$f":"K399","v":"Crops"},null,null,null,null,null,{"$f":"Q399","v":"Livestock"}]
[null,null,"Health & Safety","Water Borne Diseases ",null,null,null,null,null,null,{"$f":"K400","v":"Vector Diseases"},null,null,null,null,null,{"$f":"Q400","v":"Safety"}]
[null,null,"Services","Housing",null,null,null,{"$f":"H401","v":"Land"},null,null,null,{"$f":"L401","v":"Community"},null,null,null,{"$f":"P401","v":"Sanitation"},null,null,null,{"$f":"T401","v":"Energy"}]
[null,null,"Water Supply","Access",null,null,null,{"$f":"H402","v":"Quality"},null,null,null,{"$f":"L402","v":"Droughts"},null,null,null,{"$f":"P402","v":"Floods"},null,null,null,{"$f":"T402","v":"Other Climate Hazards"}]
[null,null,"Infrastructure","Water Supply",null,null,{"$f":"G403","v":"Water Treatment"},null,null,null,{"$f":"K403","v":"Water Storage"},null,null,{"$f":"N403","v":"Ecol & Green Infra"},null,null,{"$f":"Q403","v":"Energy"},null,null,null,{"$f":"U403","v":"Roads & Public Infra"}]
[]
[null,null,null,null,null,null,null,"Legend:",null,null,"Low",null,null,"Medium",null,null,null,"High"]
[]
[]
[]
[]
[]
[]
[]
[]
[]
[]
[]
[]
[]
[]
[]
[]
[]
[]
[]
[]
[]
[]
[]
[]
[]
[]
[]
[]
[]
[]
[]
[]
[]
[]
[]
[null,"HAZARDS - CURRENT"]
[null,null,{"$f":"$X$422","v":"Temperature"},{"$f":"Y422","v":"Seasons"},null,null,null,null,null,null,{"$f":"Y423","v":"Annual Trends"},null,null,null,null,null,{"$f":"Y424","v":"Hot days"},null,null,null,null,null,null,null,"Current Hazard",null,null,null,{"$f":"AC421","v":"Exposure"},null,null,null,{"$f":"AI421","v":"Sensitivity"},null,null,null,"Adaptive Capacity",null,null,"Current Vulnerability",null,null,null,"Current Risk"]
[null,null,{"$f":"$X$426","v":"Rainfall"},{"$f":"Y426","v":"Seasons"},null,null,null,null,null,null,{"$f":"Y427","v":"Annual Trends"},null,null,null,null,null,{"$f":"Y428","v":"Heavy Rainfall"},null,null,null,null,null,null,null,1,{"$f":"X422","v":"Temperature"},{"$f":"Y422","v":"Seasons"},{"$f":"AB422","v":"High"},{"$f":"AC422","v":1},{"$f":"AD422","v":"Livelihoods"},{"$f":"AE422","v":"Food security"},{"$f":"AH422","v":"Low"},{"$f":"AI422","v":1},{"$f":"AJ422","v":"Human"},{"$f":"AK422","v":"Diverse Livelihoods"},{"$f":"AN422","v":"High"},{"$f":"AP422","v":"Climate Info"},{"$f":"AS422","v":"Poor"},null,null,{"$f":"$AH$279","v":"Human"},{"$f":"BI426","v":"High"},null,null,{"$f":"AO285","v":"Livelihoods"},{"$f":"BI433","v":"Med"}]
[null,null,{"$f":"$X$430","v":"Droughts"},{"$f":"Y430","v":"Events"},null,null,null,null,{"$f":"Y431","v":"Timing"},null,null,null,null,{"$f":"Y432","v":"Extent"},null,null,null,null,{"$f":"Y433","v":"Effect"},null,null,null,null,null,null,null,{"$f":"Y423","v":"Annual Trends"},{"$f":"AB423","v":"High"},null,null,{"$f":"AE423","v":"Crops"},{"$f":"AH423","v":"Low"},null,null,{"$f":"AK423","v":"Climate Information"},{"$f":"AN423","v":"High"},"Climate Smart Agr",{"$f":"AS423","v":"Poor"},null,null,{"$f":"$AH$285","v":"Institutions"},"High",null,null,"Health & Safety","Low"]
[null,null,{"$f":"$X$435","v":"Floods"},{"$f":"Y435","v":"Events"},null,null,null,null,{"$f":"Y436","v":"Timing"},null,null,null,null,{"$f":"Y437","v":"Extent"},null,null,null,null,{"$f":"Y438","v":"Effect"},null,null,null,null,null,null,null,{"$f":"Y424","v":"Hot days"},{"$f":"AB424","v":"Low"},null,null,"Livestock",{"$f":"AH424","v":"Low"},null,null,"Agric Information",{"$f":"AN424","v":"High"},"EWS Info",{"$f":"AS424","v":"Poor"},null,null,{"$f":"$AH$290","v":"Infrastructure"},"High",null,null,"Services","Med"]
[null,null,{"$f":"$X$440","v":"Other Factors"},{"$f":"Y440","v":"Fire"},null,null,{"$f":"Y441","v":"Snow"},null,null,null,{"$f":"Y442","v":"Hail"},null,null,{"$f":"Y443","v":"Tornado"},null,null,{"$f":"Y444","v":"Earthquake"},null,null,null,{"$f":"Y445","v":"Volcano"},null,null,null,null,null,null,null,null,{"$f":"AD425","v":" "}," ",null,null,null,"Women",{"$f":"AN425","v":"High"},"Women",{"$f":"AS425","v":"Poor"},null,null,{"$f":"$AH$296","v":"Natural Resources"},"High",null,null,"Water Supply","Med"]
[null,"CURRENT",null,null,null,null,null,null,null,null,null,null,null,null,null,null,null,null,null,null,null,null,null,null,2,{"$f":"X426","v":"Rainfall"},{"$f":"Y426","v":"Seasons"},{"$f":"AB426","v":"High"},{"$f":"AC426","v":2},{"$f":"AD426","v":"Health & Safety"},"Water Borne Diseases ",{"$f":"AH426","v":"Low"},null,null,"Health",{"$f":"AN426","v":"High"},"Health Awareness",{"$f":"AS426","v":"Poor"},null,null,{"$f":"$AH$301","v":"Financial Resources"},"High",null,null,"Infrastructure","Med"]
[null,null,{"$f":"$X$422","v":"Temperature"},{"$f":"AB279","v":"High"},null,null,null,null,null,null,{"$f":"AB280","v":"High"},null,null,null,null,null,{"$f":"AB281","v":"Low"},null,null,null,null,null,null,null,null,null,{"$f":"Y427","v":"Annual Trends"},{"$f":"AB427","v":"High"},null,null,"Vector Diseases",{"$f":"AH427","v":"Low"},null,{"$f":"AJ427","v":" "}," ",null," "]
[null,null,{"$f":"$X$426","v":"Rainfall"},{"$f":"AB283","v":"High"},null,null,null,null,null,null,{"$f":"AB284","v":"High"},null,null,null,null,null,{"$f":"AB285","v":"Low"},null,null,null,null,null,null,null,null,null,{"$f":"Y428","v":"Heavy Rainfall"},{"$f":"AB428","v":"Low"},null,null,"Safety",{"$f":"AH428","v":"Low"},{"$f":"AI428","v":2},{"$f":"AJ428","v":"Institutions"},"Water user forums",{"$f":"AN428","v":"High"},"EWS",{"$f":"AS428","v":"Poor"},null,null,{"$f":"$AU$422","v":"Livelihoods"},{"$f":"BI420","v":"High"}]
[null,null,{"$f":"$X$430","v":"Droughts"},{"$f":"AB287","v":"Low"},null,null,null,null,{"$f":"AB288","v":"Low"},null,null,null,null,{"$f":"AB289","v":"Low"},null,null,null,null,{"$f":"AB290","v":"Low"},null,null,null,null,null,null,null,null,null,null,{"$f":"AD429","v":" "}," ",null,null,null,"Farming forums",{"$f":"AN429","v":"High"},"Engagement",{"$f":"AS429","v":"Poor"},null,null,{"$f":"$AU$426","v":"Health & Safety"},"High"]
[null,null,{"$f":"$X$435","v":"Floods"},{"$f":"AB292","v":"Low"},null,null,null,null,{"$f":"AB293","v":"Low"},null,null,null,null,{"$f":"AB294","v":"Low"},null,null,null,null,{"$f":"AB295","v":"Low"},null,null,null,null,null,3,{"$f":"X430","v":"Droughts"},{"$f":"Y430","v":"Events"},{"$f":"AB430","v":"Low"},{"$f":"AC430","v":3},{"$f":"AD430","v":"Services"},"Housing",{"$f":"AH430","v":"High"},null,null,"Weather data",{"$f":"AN430","v":"High"},"Resources",{"$f":"AS430","v":"Poor"},null,null,{"$f":"$AU$430","v":"Services"},"High"]
[null,null,{"$f":"$X$440","v":"Other Factors"},{"$f":"AB297","v":"Low"},null,null,{"$f":"AB298","v":"Low"},null,null,null,{"$f":"AB299","v":"Low"},null,null,{"$f":"AB300","v":"Low"},null,null,{"$f":"AB301","v":"Low"},null,null,null,{"$f":"AB302","v":"Low"},null,null,null,null,null,{"$f":"Y431","v":"Timing"},{"$f":"AB431","v":"Low"},null,null,"Land",{"$f":"AH431","v":"High"},null,null,"Health",{"$f":"AN431","v":"High"},"Health",{"$f":"AS431","v":"Poor"},null,null,{"$f":"$AU$436","v":"Water Supply"},"High"]
[null,"HAZARDS - FUTURE",null,null,null,null,null,null,null,null,null,null,null,null,null,null,null,null,null,null,null,null,null,null,null,null,{"$f":"Y432","v":"Extent"},{"$f":"AB432","v":"Low"},null,null,"Community",{"$f":"AH432","v":"Low"},null,{"$f":"AJ432","v":" "}," ",null," ",null,null,null,{"$f":"$AU$442","v":"Infrastructure"},"High"]
[null,null,{"$f":"$X$422","v":"Temperature"},{"$f":"$AA$324","v":"Seasons"},null,null,null,null,null,null,{"$f":"$AA$325","v":"Annual Trends"},null,null,null,null,null,{"$f":"$AA$326","v":"Changes"},null,null,null,null,null,null,null,null,null,{"$f":"Y433","v":"Effect"},{"$f":"AB433","v":"Low"},null,null,"Sanitation",{"$f":"AH433","v":"High"},{"$f":"AI433","v":3},{"$f":"AJ433","v":"Infrastructure"},"Water Storage",{"$f":"AN433","v":"High"},"Water Storage",{"$f":"AS433","v":"Poor"}]
[null,null,{"$f":"$X$426","v":"Rainfall"},{"$f":"$AA$328","v":"Seasons"},null,null,null,null,null,null,{"$f":"$AA$329","v":"Annual Trends"},null,null,null,null,null,{"$f":"$AA$330","v":"Changes"},null,null,null,null,null,null,null,null,null,null,null,null,null,"Energy",{"$f":"AH434","v":"High"},null,null,"Water Supply",{"$f":"AN434","v":"High"},"Green Infra",{"$f":"AS434","v":"Poor"}]
[null,null,{"$f":"$X$430","v":"Droughts"},{"$f":"$AA$332","v":"Events"},null,null,null,null,{"$f":"$AA$333","v":"Timing"},null,null,null,null,{"$f":"$AA$334","v":"Extent"},null,null,null,null,{"$f":"$AA$335","v":"Effect"},null,null,null,null,null,4,{"$f":"X435","v":"Floods"},{"$f":"Y435","v":"Events"},{"$f":"AB435","v":"Low"},null,{"$f":"AD435","v":" "}," ",null,null,null,"Roads & Transport",{"$f":"AN435","v":"High"},"Roads & Transport",{"$f":"AS435","v":"Poor"},null,"Current Vulnerability",null,null,null,"Current Risk"]
[null,null,{"$f":"$X$435","v":"Floods"},{"$f":"$AA$337","v":"Events"},null,null,null,null,{"$f":"$AA$338","v":"Timing"},null,null,null,null,{"$f":"$AA$339","v":"Extent"},null,null,null,null,{"$f":"$AA$340","v":"Effect"},null,null,null,null,null,null,null,{"$f":"Y436","v":"Timing"},{"$f":"AB436","v":"Low"},{"$f":"AC436","v":4},{"$f":"AD436","v":"Water Supply"},"Access",{"$f":"AH436","v":"High"},null,null,"Energy",{"$f":"AN436","v":"High"},"Maintenance",{"$f":"AS436","v":"Poor"},null,{"$f":"AD279","v":"Livelihoods"},{"$f":"AE279","v":"Food security"},{"$f":"AY422","v":"High"},null,{"$f":"AN293","v":"Livelihoods"},{"$f":"AO293","v":"Food security"},{"$f":"BE422","v":"Med"}]
[null,null,{"$f":"$X$440","v":"Other Factors"},{"$f":"$AA$342","v":"Fire"},null,null,{"$f":"$AA$343","v":"Snow"},null,null,null,{"$f":"$AA$344","v":"Hail"},null,null,{"$f":"$AA$345","v":"Tornado"},null,null,{"$f":"$AA$346","v":"Earthquake"},null,null,null,{"$f":"$AA$347","v":"Volcano"},null,null,null,null,null,{"$f":"Y437","v":"Extent"},{"$f":"AB437","v":"Low"},null,null,"Quality",{"$f":"AH437","v":"High"},null,null,"Housing / Shelter",{"$f":"AN437","v":"High"},"Housing / Shelter",{"$f":"AS437","v":"Poor"},null,null,{"$f":"AE280","v":"Crops"},"High",null,null,"Crops","Med"]
[null,"FUTURE",null,null,null,null,null,null,null,null,null,null,null,null,null,null,null,null,null,null,null,null,null,null,null,null,{"$f":"Y438","v":"Effect"},{"$f":"AB438","v":"Low"},null,null,"Droughts",{"$f":"AH438","v":"Low"},null,{"$f":"AJ438","v":" "}," ",null," ",null,null,null,"Livestock","High",null,null,"Livestock","Med"]
[null,null,{"$f":"$X$422","v":"Temperature"},{"$f":"AB324","v":"High"},null,null,null,null,null,null,{"$f":"AB325","v":"High"},null,null,null,null,null,{"$f":"AB326","v":"Low"},null,null,null,null,null,null,null,null,null,null,null,null,null,"Floods",{"$f":"AH439","v":"Low"},{"$f":"AI439","v":4},{"$f":"AJ439","v":"Natural Resources"},"Land",{"$f":"AN439","v":"High"},"Land",{"$f":"AS439","v":"Poor"},null,{"$f":"AD282","v":" "}," ",null,null," "," "]
[null,null,{"$f":"$X$426","v":"Rainfall"},{"$f":"AB328","v":"High"},null,null,null,null,null,null,{"$f":"AB329","v":"High"},null,null,null,null,null,{"$f":"AB330","v":"Low"},null,null,null,null,null,null,null,5,{"$f":"X440","v":"Other Factors"},{"$f":"Y440","v":"Fire"},{"$f":"AB440","v":"Low"},null,null,"Other Climate Hazards",{"$f":"AH440","v":"Low"},null,null,"Water Resources",{"$f":"AN440","v":"High"},"Water Resources",{"$f":"AS440","v":"Poor"},null,{"$f":"AD283","v":"Health & Safety"},"Water Borne Diseases ","High",null,"Health & Safety","Water Borne Diseases ","Low"]
["Low",null,{"$f":"$X$430","v":"Droughts"},{"$f":"AB332","v":"Low"},null,null,null,null,{"$f":"AB333","v":"Low"},null,null,null,null,{"$f":"AB334","v":"Low"},null,null,null,null,{"$f":"AB335","v":"Low"},null,null,null,null,null,null,null,{"$f":"Y441","v":"Snow"},"Low",null,{"$f":"AD441","v":" "}," ",null,null,null,"Ecosystems",{"$f":"AN441","v":"High"},"Ecosystems",{"$f":"AS441","v":"Poor"},null,null,"Vector Diseases","High",null,null,"Vector Diseases","Low"]
["Med",null,{"$f":"$X$435","v":"Floods"},{"$f":"AB337","v":"Low"},null,null,null,null,{"$f":"AB338","v":"Low"},null,null,null,null,{"$f":"AB339","v":"Low"},null,null,null,null,{"$f":"AB340","v":"Low"},null,null,null,null,null,null,null,{"$f":"Y442","v":"Hail"},"Low",{"$f":"AC442","v":5},{"$f":"AD442","v":"Infrastructure"},"Water Supply",{"$f":"AH442","v":"High"},null,null,"Soil",{"$f":"AN442","v":"High"},"Soil",{"$f":"AS442","v":"Poor"},null,null,"Safety","High",null,null,"Safety","Low"]
["High",null,{"$f":"$X$440","v":"Other Factors"},{"$f":"AB342","v":"Low"},null,null,{"$f":"AB343","v":"Low"},null,null,null,{"$f":"AB344","v":"Low"},null,null,{"$f":"AB345","v":"Low"},null,null,{"$f":"AB346","v":"Low"},null,null,null,{"$f":"AB347","v":"Low"},null,null,null,null,null,{"$f":"Y443","v":"Tornado"},"Low",null,null,"Water Treatment","High",null,{"$f":"AJ443","v":" "}," ",null," ",null,null,{"$f":"AD286","v":" "}," ",null,null," "," "]
[null,null,null,null,null,null,null,null,null,null,null,null,null,null,null,null,null,null,null,null,null,null,null,null,null,null,{"$f":"Y444","v":"Earthquake"},"Low",null,null,"Water Storage","High",{"$f":"AI444","v":5},{"$f":"AJ444","v":"Financial Resources"},"Sustainable Income",{"$f":"AN444","v":"High"},"Finance",{"$f":"AS444","v":"Poor"},null,{"$f":"AD287","v":"Services"},"Housing","High",null,"Services","Housing","Med"]
[null,"EXPOSURE",null,null,null,null,null,null,null,null,null,null,null,null,null,null,null,null,null,null,null,null,null,null,null,null,{"$f":"Y445","v":"Volcano"},"Low",null,null,"Ecol & Green Infra","High",null,null,"Diverse Income",{"$f":"AN445","v":"High"},"Insurance",{"$f":"AS445","v":"Poor"},null,null,"Land","High",null,null,"Land","Med"]
[null,null,{"$f":"AD422","v":"Livelihoods"},{"$f":"AE279","v":"Food security"},null,null,null,null,null,null,{"$f":"AE280","v":"Crops"},null,null,null,null,null,{"$f":"AE281","v":"Livestock"},null,null,null,null,null,null,null,null,null,null,null,null,null,"Energy","Low",null,null,null,null,null,null,null,null,"Community","High",null,null,"Community","Low"]
[null,null,{"$f":"AD426","v":"Health & Safety"},{"$f":"AE283","v":"Water Borne Diseases "},null,null,null,null,null,null,{"$f":"AE284","v":"Vector Diseases"},null,null,null,null,null,{"$f":"AE285","v":"Safety"},null,null,null,null,null,null,null,null,null,null,null,null,null,"Roads & Public Infra","Low",null,null,null,null,null,null,null,null,"Sanitation","High",null,null,"Sanitation","Med"]
[null,null,{"$f":"AD430","v":"Services"},{"$f":"AE287","v":"Housing"},null,null,null,{"$f":"AE288","v":"Land"},null,null,null,{"$f":"AE289","v":"Community"},null,null,null,{"$f":"AE290","v":"Sanitation"},null,null,null,{"$f":"AE291","v":"Energy"},null,null,null,null,null,null,null,null,null,null,null,null,null,null,null,null,null,null,null,null,"Energy","High",null,null,"Energy","Med"]
[null,null,{"$f":"AD436","v":"Water Supply"},{"$f":"AE293","v":"Access"},null,null,null,{"$f":"AE294","v":"Quality"},null,null,null,{"$f":"AE295","v":"Droughts"},null,null,null,{"$f":"AE296","v":"Floods"},null,null,null,{"$f":"AE297","v":"Other Climate Hazards"},null,null,null,null,null,null,null,null,null,null,null,null,null,null,null,null,null,null,null,{"$f":"AD292","v":" "}," ",null,null," "," "]
[null,null,{"$f":"AD442","v":"Infrastructure"},{"$f":"AE299","v":"Water Supply"},null,null,{"$f":"AE300","v":"Water Treatment"},null,null,null,{"$f":"AE301","v":"Water Storage"},null,null,{"$f":"AE302","v":"Ecol & Green Infra"},null,null,{"$f":"AE303","v":"Energy"},null,null,null,{"$f":"AE304","v":"Roads & Public Infra"},null,null,null,null,null,null,null,null,null,null,null,null,null,null,null,null,null,null,{"$f":"AD293","v":"Water Supply"},"Access","High",null,"Water Supply","Access","Med"]
[null,"CURRENT",null,null,null,null,null,null,null,null,null,null,null,null,null,null,null,null,null,null,null,null,null,null,null,null,null,null,null,null,null,null,null,null,null,null,null,null,null,null,"Quality","High",null,null,"Quality","High"]
[null,null,{"$f":"C303","v":"Livelihoods"},{"$f":"$AF$279","v":"Low"},null,null,null,null,null,null,{"$f":"$AF$280","v":"Low"},null,null,null,null,null,{"$f":"$AF$281","v":"Low"},null,null,null,null,null,null,null,null,null,null,null,null,null,null,null,null,null,null,null,null,null,null,null,"Droughts","High",null,null,"Droughts","Med"]
[null,null,{"$f":"C304","v":"Health & Safety"},{"$f":"$AF$283","v":"Low"},null,null,null,null,null,null,{"$f":"$AF$284","v":"Low"},null,null,null,null,null,{"$f":"$AF$285","v":"Low"},null,null,null,null,null,null,null,null,null,null,null,null,null,null,null,null,null,null,null,null,null,null,null,"Floods","High",null,null,"Floods","Low"]
[null,null,{"$f":"C305","v":"Services"},{"$f":"$AF$287","v":"High"},null,null,null,{"$f":"$AF$288","v":"High"},null,null,null,{"$f":"$AF$289","v":"Low"},null,null,null,{"$f":"$AF$290","v":"High"},null,null,null,{"$f":"$AF$291","v":"High"},null,null,null,null,null,null,null,null,null,null,null,null,null,null,null,null,null,null,null,null,"Other Climate Hazards","High",null,null,"Other Climate Hazards","Low"]
[null,null,{"$f":"C306","v":"Water Supply"},{"$f":"$AF$293","v":"High"},null,null,null,{"$f":"$AF$294","v":"High"},null,null,null,{"$f":"$AF$295","v":"Low"},null,null,null,{"$f":"$AF$296","v":"Low"},null,null,null,{"$f":"$AF$297","v":"Low"},null,null,null,null,null,null,null,null,null,null,null,null,null,null,null,null,null,null,null,{"$f":"AD298","v":" "}," ",null,null," "," "]
[null,null,{"$f":"C307","v":"Infrastructure"},{"$f":"$AF$299","v":"High"},null,null,{"$f":"$AF$300","v":"High"},null,null,null,{"$f":"$AF$301","v":"High"},null,null,{"$f":"$AF$302","v":"High"},null,null,{"$f":"$AF$303","v":"Low"},null,null,null,{"$f":"$AF$304","v":"Low"},null,null,null,null,null,null,null,null,null,null,null,null,null,null,null,null,null,null,{"$f":"AD299","v":"Infrastructure"},"Water Supply","High",null,"Infrastructure","Water Supply","Med"]
[null,"FUTURE",null,null,null,null,null,null,null,null,null,null,null,null,null,null,null,null,null,null,null,null,null,null,null,null,null,null,null,null,null,null,null,null,null,null,null,null,null,null,"Water Treatment","High",null,null,"Water Treatment","Med"]
[null,null,{"$f":"C309","v":"Livelihoods"},{"$f":"$AF$324","v":"Low"},null,null,null,null,null,null,{"$f":"$AF$325","v":"Low"},null,null,null,null,null,{"$f":"$AF$326","v":"Low"},null,null,null,null,null,null,null,null,null,null,null,null,null,null,null,null,null,null,null,null,null,null,null,"Water Storage","High",null,null,"Water Storage","Med"]
[null,null,{"$f":"C310","v":"Health & Safety"},{"$f":"$AF$328","v":"Low"},null,null,null,null,null,null,{"$f":"$AF$329","v":"Low"},null,null,null,null,null,{"$f":"$AF$330","v":"Low"},null,null,null,null,null,null,null,null,null,null,null,null,null,null,null,null,null,null,null,null,null,null,null,"Ecol & Green Infra","High",null,null,"Ecol & Green Infra","Med"]
[null,null,{"$f":"C311","v":"Services"},{"$f":"$AF$332","v":"High"},null,null,null,{"$f":"$AF$333","v":"High"},null,null,null,{"$f":"$AF$334","v":"Low"},null,null,null,{"$f":"$AF$335","v":"High"},null,null,null,{"$f":"$AF$336","v":"High"},null,null,null,null,null,null,null,null,null,null,null,null,null,null,null,null,null,null,null,null,"Energy","High",null,null,"Energy","Low"]
[null,null,{"$f":"C312","v":"Water Supply"},{"$f":"$AF$338","v":"High"},null,null,null,{"$f":"$AF$339","v":"High"},null,null,null,{"$f":"$AF$340","v":"Low"},null,null,null,{"$f":"$AF$341","v":"Low"},null,null,null,{"$f":"$AF$342","v":"Low"},null,null,null,null,null,null,null,null,null,null,null,null,null,null,null,null,null,null,null,null,"Roads & Public Infra","High",null,null,"Roads & Public Infra","Low"]
[null,null,{"$f":"C313","v":"Infrastructure"},{"$f":"$AF$344","v":"High"},null,null,{"$f":"$AF$345","v":"High"},null,null,null,{"$f":"$AF$346","v":"High"},null,null,{"$f":"$AF$347","v":"High"},null,null,{"$f":"$AF$348","v":"Low"},null,null,null,{"$f":"$AF$349","v":"Low"}]
[]
[null,"SENSITIVITY"]
[null,null,{"$f":"AJ422","v":"Human"},{"$f":"AI279","v":"Diverse Livelihoods"},null,null,null,{"$f":"AI280","v":"Climate Information"},null,null,null,{"$f":"AI281","v":"Agric Information"},null,null,null,{"$f":"AI282","v":"Women"},null,null,null,{"$f":"AI283","v":"Health"}]
[null,null,{"$f":"AJ428","v":"Institutions"},{"$f":"AI285","v":"Water user forums"},null,null,null,null,{"$f":"AI286","v":"Farming forums"},null,null,null,null,{"$f":"AI287","v":"Weather data"},null,null,null,null,{"$f":"AI288","v":"Health"},null,null,null,null,null,"Future Hazard",null,null,null,{"$f":"AC450","v":"FUTURE EXPOSURE"},null,null,null,{"$f":"AI450","v":"FUTURE SENSITIVITY"},null,null,null,"Adaptive Capacity",null,null,"Future Vulnerability",null,null,null,"Future Risk"]
[null,null,{"$f":"AJ433","v":"Infrastructure"},{"$f":"AI290","v":"Water Storage"},null,null,null,{"$f":"AI291","v":"Water Supply"},null,null,null,{"$f":"AI292","v":"Roads & Transport"},null,null,null,{"$f":"AI293","v":"Energy"},null,null,null,{"$f":"AI294","v":"Housing / Shelter"},null,null,null,null,{"$f":"W453","v":1},{"$f":"X453","v":"Temperature"},{"$f":"Y453","v":"Seasons"},{"$f":"AB453","v":"High"},{"$f":"AC279","v":1},{"$f":"AD279","v":"Livelihoods"},{"$f":"AE279","v":"Food security"},{"$f":"AH453","v":"Low"},{"$f":"AG279","v":1},{"$f":"AH279","v":"Human"},{"$f":"AI279","v":"Diverse Livelihoods"},{"$f":"AN453","v":"High"},{"$f":"AK279","v":"Climate Info"},{"$f":"AS453","v":"Poor"},null,null,{"$f":"$AH$279","v":"Human"},{"$f":"BI471","v":"High"},null,null,{"$f":"AS279","v":"Livelihoods"},{"$f":"BI478","v":"Med"}]
[null,null,{"$f":"AJ439","v":"Natural Resources"},{"$f":"AI296","v":"Land"},null,null,null,null,{"$f":"AI297","v":"Water Resources"},null,null,null,null,{"$f":"AI298","v":"Ecosystems"},null,null,null,null,{"$f":"AI299","v":"Soil"},null,null,null,null,null,null,null,{"$f":"Y454","v":"Annual Trends"},{"$f":"AB454","v":"High"},null,null,{"$f":"AE280","v":"Crops"},{"$f":"AH454","v":"Low"},null,null,{"$f":"AI280","v":"Climate Information"},{"$f":"AN454","v":"High"},{"$f":"AK280","v":"Climate Smart Agr"},{"$f":"AS454","v":"Poor"},null,null,{"$f":"$AH$285","v":"Institutions"},"High",null,null,{"$f":"AS280","v":"Health & Safety"},"Low"]
[null,null,{"$f":"AJ444","v":"Financial Resources"},{"$f":"AI301","v":"Sustainable Income"},null,null,null,null,null,null,null,null,null,{"$f":"AI302","v":"Diverse Income"},null,null,null,null,null,null,null,null,null,null,null,null,{"$f":"Y455","v":"Changes"},{"$f":"AB455","v":"Low"},null,null,"Livestock",{"$f":"AH455","v":"Low"},null,null,"Agric Information",{"$f":"AN455","v":"High"},{"$f":"AK281","v":"EWS Info"},{"$f":"AS455","v":"Poor"},null,null,{"$f":"$AH$290","v":"Infrastructure"},"High",null,null,{"$f":"AS281","v":"Services"},"Med"]
[null,"CURRENT",null,null,null,null,null,null,null,null,null,null,null,null,null,null,null,null,null,null,null,null,null,null,null,null,null,null,null,null," ",null,null,null,"Women",{"$f":"AN456","v":"High"},{"$f":"AK282","v":"Women"},{"$f":"AS456","v":"Poor"},null,null,{"$f":"$AH$296","v":"Natural Resources"},"High",null,null,{"$f":"AS282","v":"Water Supply"},"Med"]
[null,null,{"$f":"C322","v":"Human"},{"$f":"$AJ$279","v":"High"},null,null,null,{"$f":"$AJ$280","v":"High"},null,null,null,{"$f":"$AJ$281","v":"High"},null,null,null,{"$f":"$AJ$282","v":"High"},null,null,null,{"$f":"$AJ$283","v":"High"},null,null,null,null,{"$f":"W457","v":2},{"$f":"X457","v":"Rainfall"},{"$f":"Y457","v":"Seasons"},{"$f":"AB457","v":"High"},{"$f":"AC283","v":2},{"$f":"AD283","v":"Health & Safety"},"Water Borne Diseases ",{"$f":"AH457","v":"Low"},null,null,"Health",{"$f":"AN457","v":"High"},{"$f":"AK283","v":"Health Awareness"},{"$f":"AS457","v":"Poor"},null,null,{"$f":"$AH$301","v":"Financial Resources"},"High",null,null,{"$f":"AS283","v":"Infrastructure"},"Med"]
[null,null,"Institutions",{"$f":"$AJ$285","v":"High"},null,null,null,null,{"$f":"$AJ$286","v":"High"},null,null,null,null,{"$f":"$AJ$287","v":"High"},null,null,null,null,{"$f":"$AJ$288","v":"High"},null,null,null,null,null,null,null,{"$f":"Y458","v":"Annual Trends"},{"$f":"AB458","v":"High"},null,null,"Vector Diseases",{"$f":"AH458","v":"Low"},null,null," "]
[null,null,"Infrastructure",{"$f":"$AJ$290","v":"High"},null,null,null,{"$f":"$AJ$291","v":"High"},null,null,null,{"$f":"$AJ$292","v":"High"},null,null,null,{"$f":"$AJ$293","v":"High"},null,null,null,{"$f":"$AJ$294","v":"High"},null,null,null,null,null,null,{"$f":"Y459","v":"Changes"},{"$f":"AB459","v":"Low"},null,null,"Safety",{"$f":"AH459","v":"Low"},{"$f":"AG285","v":2},{"$f":"AH285","v":"Institutions"},"Water user forums",{"$f":"AN459","v":"High"},{"$f":"AK285","v":"EWS"},{"$f":"AS459","v":"Poor"},null,null,{"$f":"$AU$422","v":"Livelihoods"},{"$f":"BI465","v":"High"}]
[null,null,"Natural Resources",{"$f":"$AJ$296","v":"High"},null,null,null,null,{"$f":"$AJ$297","v":"High"},null,null,null,null,{"$f":"$AJ$298","v":"High"},null,null,null,null,{"$f":"$AJ$299","v":"High"},null,null,null,null,null,null,null,null,null,null,null," ",null,null,null,"Farming forums",{"$f":"AN460","v":"High"},{"$f":"AK286","v":"Engagement"},{"$f":"AS460","v":"Poor"},null,null,{"$f":"$AU$426","v":"Health & Safety"},"High"]
[null,null,"Financial Resources",{"$f":"$AJ$301","v":"High"},null,null,null,null,null,null,null,null,null,{"$f":"$AJ$302","v":"High"},null,null,null,null,null,null,null,null,null,null,{"$f":"W461","v":3},{"$f":"X461","v":"Droughts"},{"$f":"Y461","v":"Events"},{"$f":"AB461","v":"Low"},{"$f":"AC287","v":3},{"$f":"AD287","v":"Services"},"Housing",{"$f":"AH461","v":"High"},null,null,"Weather data",{"$f":"AN461","v":"High"},{"$f":"AK287","v":"Resources"},{"$f":"AS461","v":"Poor"},null,null,{"$f":"$AU$430","v":"Services"},"High"]
[null,"FUTURE",null,null,null,null,null,null,null,null,null,null,null,null,null,null,null,null,null,null,null,null,null,null,null,null,{"$f":"Y462","v":"Timing"},{"$f":"AB462","v":"Low"},null,null,"Land",{"$f":"AH462","v":"High"},null,null,"Health",{"$f":"AN462","v":"High"},{"$f":"AK288","v":"Health"},{"$f":"AS462","v":"Poor"},null,null,{"$f":"$AU$436","v":"Water Supply"},"High"]
[null,null,"Human",{"$f":"$AJ$324","v":"High"},null,null,null,{"$f":"$AJ$325","v":"High"},null,null,null,{"$f":"$AJ$326","v":"High"},null,null,null,{"$f":"$AJ$327","v":"High"},null,null,null,{"$f":"$AJ$328","v":"High"},null,null,null,null,null,null,{"$f":"Y463","v":"Extent"},{"$f":"AB463","v":"Low"},null,null,"Community",{"$f":"AH463","v":"Low"},null,null," ",null,null,null,null,null,{"$f":"$AU$442","v":"Infrastructure"},"High"]
[null,null,"Institutions",{"$f":"$AJ$330","v":"High"},null,null,null,null,{"$f":"$AJ$331","v":"High"},null,null,null,null,{"$f":"$AJ$332","v":"High"},null,null,null,null,{"$f":"$AJ$333","v":"High"},null,null,null,null,null,null,null,{"$f":"Y464","v":"Effect"},{"$f":"AB464","v":"Low"},null,null,"Sanitation",{"$f":"AH464","v":"High"},{"$f":"AG290","v":3},{"$f":"AH290","v":"Infrastructure"},"Water Storage",{"$f":"AN464","v":"High"},{"$f":"AK290","v":"Water Storage"},{"$f":"AS464","v":"Poor"}]
[null,null,"Infrastructure",{"$f":"$AJ$335","v":"High"},null,null,null,{"$f":"$AJ$336","v":"High"},null,null,null,{"$f":"$AJ$337","v":"High"},null,null,null,{"$f":"$AJ$338","v":"High"},null,null,null,{"$f":"$AJ$339","v":"High"},null,null,null,null,null,null,null,null,null,null,"Energy",{"$f":"AH465","v":"High"},null,null,"Water Supply",{"$f":"AN465","v":"High"},{"$f":"AK291","v":"Green Infra"},{"$f":"AS465","v":"Poor"}]
[null,null,"Natural Resources",{"$f":"$AJ$341","v":"High"},null,null,null,null,{"$f":"$AJ$342","v":"High"},null,null,null,null,{"$f":"$AJ$343","v":"High"},null,null,null,null,{"$f":"$AJ$344","v":"High"},null,null,null,null,null,{"$f":"W466","v":4},{"$f":"X466","v":"Floods"},{"$f":"Y466","v":"Events"},{"$f":"AB466","v":"Low"},null,null," ",null,null,null,"Roads & Transport",{"$f":"AN466","v":"High"},{"$f":"AK292","v":"Roads & Transport"},{"$f":"AS466","v":"Poor"},null,"Future Vulnerability",null,null,null,"Future Risk"]
[null,null,"Financial Resources",{"$f":"$AJ$346","v":"High"},null,null,null,null,null,null,null,null,null,{"$f":"$AJ$347","v":"High"},null,null,null,null,null,null,null,null,null,null,null,null,{"$f":"Y467","v":"Timing"},{"$f":"AB467","v":"Low"},{"$f":"AC293","v":4},{"$f":"AD293","v":"Water Supply"},"Access",{"$f":"AH467","v":"High"},null,null,"Energy",{"$f":"AN467","v":"High"},{"$f":"AK293","v":"Maintenance"},{"$f":"AS467","v":"Poor"},null,{"$f":"AD324","v":"Livelihoods"},{"$f":"AE324","v":"Food security"},{"$f":"AY453","v":"High"},null,{"$f":"AR293","v":"Livelihoods"},{"$f":"AS293","v":"Food security"},{"$f":"BE453","v":"Med"}]
[null,null,null,null,null,null,null,null,null,null,null,null,null,null,null,null,null,null,null,null,null,null,null,null,null,null,{"$f":"Y468","v":"Extent"},{"$f":"AB468","v":"Low"},null,null,"Quality",{"$f":"AH468","v":"High"},null,null,"Housing / Shelter",{"$f":"AN468","v":"High"},{"$f":"AK294","v":"Housing / Shelter"},{"$f":"AS468","v":"Poor"},null,null,{"$f":"AE325","v":"Crops"},{"$f":"AY454","v":"High"},null,null,{"$f":"AS294","v":"Crops"},{"$f":"BE454","v":"Med"}]
[null,"ADAPT CAPACITY",null,null,null,null,null,null,null,null,null,null,null,null,null,null,null,null,null,null,null,null,null,null,null,null,{"$f":"Y469","v":"Effect"},{"$f":"AB469","v":"Low"},null,null,"Droughts",{"$f":"AH469","v":"Low"},null,null," ",null,null,null,null,null,"Livestock",{"$f":"AY455","v":"High"},null,null,"Livestock",{"$f":"BE455","v":"Med"}]
[null,null,{"$f":"C322","v":"Human"},{"$f":"AK279","v":"Climate Info"},null,null,null,{"$f":"AK280","v":"Climate Smart Agr"},null,null,null,{"$f":"AK281","v":"EWS Info"},null,null,null,{"$f":"AK282","v":"Women"},null,null,null,{"$f":"AK283","v":"Health Awareness"},null,null,null,null,null,null,null,null,null,null,"Floods",{"$f":"AH470","v":"Low"},{"$f":"AG296","v":4},{"$f":"AH296","v":"Natural Resources"},"Land",{"$f":"AN470","v":"High"},{"$f":"AK296","v":"Land"},{"$f":"AS470","v":"Poor"},null,null," ",null,null,{"$f":"AR296","v":" "}," "]
[null,null,{"$f":"C323","v":"Institutions"},{"$f":"AK285","v":"EWS"},null,null,null,null,{"$f":"AK286","v":"Engagement"},null,null,null,null,{"$f":"AK287","v":"Resources"},null,null,null,null,{"$f":"AK288","v":"Health"},null,null,null,null,null,{"$f":"W471","v":5},{"$f":"X471","v":"Other Factors"},{"$f":"Y471","v":"Fire"},{"$f":"AB471","v":"Low"},null,null,"Other Climate Hazards",{"$f":"AH471","v":"Low"},null,null,"Water Resources",{"$f":"AN471","v":"High"},{"$f":"AK297","v":"Water Resources"},{"$f":"AS471","v":"Poor"},null,{"$f":"AD328","v":"Health & Safety"},"Water Borne Diseases ",{"$f":"AY457","v":"High"},null,{"$f":"AR297","v":"Health & Safety"},"Water Borne Diseases ",{"$f":"BE457","v":"Low"}]
[null,null,{"$f":"C324","v":"Infrastructure"},{"$f":"AK290","v":"Water Storage"},null,null,null,{"$f":"AK291","v":"Green Infra"},null,null,null,{"$f":"AK292","v":"Roads & Transport"},null,null,null,{"$f":"AK293","v":"Maintenance"},null,null,null,{"$f":"AK294","v":"Housing / Shelter"},null,null,null,null,null,null,{"$f":"Y472","v":"Snow"},"Low",null,null," ",null,null,null,"Ecosystems",{"$f":"AN472","v":"High"},{"$f":"AK298","v":"Ecosystems"},{"$f":"AS472","v":"Poor"},null,null,"Vector Diseases",{"$f":"AY458","v":"High"},null,null,"Vector Diseases",{"$f":"BE458","v":"Low"}]
[null,null,{"$f":"C325","v":"Natural Resources"},{"$f":"AK296","v":"Land"},null,null,null,{"$f":"AK297","v":"Water Resources"},{"$f":"$AK$297","v":"Water Resources"},null,null,null,null,{"$f":"AK298","v":"Ecosystems"},null,null,null,null,{"$f":"AK299","v":"Soil"},null,null,null,null,null,null,null,{"$f":"Y473","v":"Hail"},"Low",{"$f":"AC299","v":5},{"$f":"AD299","v":"Infrastructure"},"Water Supply",{"$f":"AH473","v":"High"},null,null,"Soil",{"$f":"AN473","v":"High"},{"$f":"AK299","v":"Soil"},{"$f":"AS473","v":"Poor"},null,null,"Safety",{"$f":"AY459","v":"High"},null,null,"Safety",{"$f":"BE459","v":"Low"}]
[null,null,{"$f":"C326","v":"Financial Resources"},{"$f":"AK301","v":"Finance"},null,null,null,null,null,null,null,null,null,{"$f":"AK302","v":"Insurance"},null,null,null,null,null,null,null,null,null,null,null,null,{"$f":"Y474","v":"Tornado"},"Low",null,null,"Water Treatment","High",null,null," ",null,null,null,null,null," ",null,null,{"$f":"AR300","v":" "}," "]
[null,"CURRENT",null,null,null,null,null,null,null,null,null,null,null,null,null,null,null,null,null,null,null,null,null,null,null,null,{"$f":"Y475","v":"Earthquake"},"Low",null,null,"Water Storage","High",{"$f":"AG301","v":5},{"$f":"AH301","v":"Financial Resources"},"Sustainable Income",{"$f":"AN475","v":"High"},{"$f":"AK301","v":"Finance"},{"$f":"AS475","v":"Poor"},null,{"$f":"AD332","v":"Services"},"Housing",{"$f":"AY461","v":"High"},null,{"$f":"AR301","v":"Services"},"Housing",{"$f":"BE461","v":"Med"}]
[null,null,{"$f":"C341","v":"Human"},{"$f":"$AL$279","v":"Poor"},null,null,null,{"$f":"$AL$280","v":"Poor"},null,null,null,{"$f":"$AL$281","v":"Poor"},null,null,null,{"$f":"$AL$282","v":"Poor"},null,null,null,{"$f":"$AL$283","v":"Poor"},null,null,null,null,null,null,{"$f":"Y476","v":"Volcano"},"Low",null,null,"Ecol & Green Infra","High",null,null,"Diverse Income",{"$f":"AN476","v":"High"},{"$f":"AK302","v":"Insurance"},{"$f":"AS476","v":"Poor"},null,null,"Land",{"$f":"AY462","v":"High"},null,null,"Land",{"$f":"BE462","v":"Med"}]
[null,null,"Institutions",{"$f":"$AL$285","v":"Poor"},null,null,null,null,{"$f":"$AL$286","v":"Poor"},null,null,null,null,{"$f":"$AL$287","v":"Poor"},null,null,null,null,{"$f":"$AL$288","v":"Poor"},null,null,null,null,null,null,null,null,null,null,null,"Energy","Low",null,null,null,null,null,null,null,null,"Community",{"$f":"AY463","v":"High"},null,null,"Community",{"$f":"BE463","v":"Low"}]
["Good",null,"Infrastructure",{"$f":"$AL$290","v":"Poor"},null,null,null,{"$f":"$AL$291","v":"Poor"},null,null,null,{"$f":"$AL$292","v":"Poor"},null,null,null,{"$f":"$AL$293","v":"Poor"},null,null,null,{"$f":"$AL$294","v":"Poor"},null,null,null,null,null,null,null,null,null,null,"Roads & Public Infra","Low",null,null,null,null,null,null,null,null,"Sanitation",{"$f":"AY464","v":"High"},null,null,"Sanitation",{"$f":"BE464","v":"Med"}]
["Ave",null,"Natural Resources",{"$f":"$AL$296","v":"Poor"},null,null,null,null,{"$f":"$AL$297","v":"Poor"},null,null,null,null,{"$f":"$AL$298","v":"Poor"},null,null,null,null,{"$f":"$AL$299","v":"Poor"},null,null,null,null,null,null,null,null,null,null,null,null,null,null,null,null,null,null,null,null,null,"Energy",{"$f":"AY465","v":"High"},null,null,"Energy",{"$f":"BE465","v":"Med"}]
["Poor",null,"Financial Resources",{"$f":"$AL$301","v":"Poor"},null,null,null,null,null,null,null,null,null,{"$f":"$AL$302","v":"Poor"},null,null,null,null,null,null,null,null,null,null,null,null,null,null,null,null,null,null,null,null,null,null,null,null,null,null," ",null,null,{"$f":"AR306","v":" "}," "]
[null,"FUTURE",null,null,null,null,null,null,null,null,null,null,null,null,null,null,null,null,null,null,null,null,null,null,null,null,null,null,null,null,null,null,null,null,null,null,null,null,null,{"$f":"AD338","v":"Water Supply"},"Access",{"$f":"AY467","v":"High"},null,{"$f":"AR307","v":"Water Supply"},"Access",{"$f":"BE467","v":"Med"}]
[null,null,"Human",{"$f":"$AL$324","v":"Poor"},null,null,null,{"$f":"$AL$325","v":"Poor"},null,null,null,{"$f":"$AL$326","v":"Poor"},null,null,null,{"$f":"$AL$327","v":"Poor"},null,null,null,{"$f":"$AL$328","v":"Poor"},null,null,null,null,null,null,null,null,null,null,null,null,null,null,null,null,null,null,null,null,"Quality",{"$f":"AY468","v":"High"},null,null,"Quality",{"$f":"BE468","v":"High"}]
[null,null,"Institutions",{"$f":"$AL$330","v":"Poor"},null,null,null,null,{"$f":"$AL$331","v":"Poor"},null,null,null,null,{"$f":"$AL$332","v":"Poor"},null,null,null,null,{"$f":"$AL$333","v":"Poor"},null,null,null,null,null,null,null,null,null,null,null,null,null,null,null,null,null,null,null,null,null,"Droughts",{"$f":"AY469","v":"High"},null,null,"Droughts",{"$f":"BE469","v":"Med"}]
[null,null,"Infrastructure",{"$f":"$AL$335","v":"Poor"},null,null,null,{"$f":"$AL$336","v":"Poor"},null,null,null,{"$f":"$AL$337","v":"Poor"},null,null,null,{"$f":"$AL$338","v":"Poor"},null,null,null,{"$f":"$AL$339","v":"Poor"},null,null,null,null,null,null,null,null,null,null,null,null,null,null,null,null,null,null,null,null,"Floods",{"$f":"AY470","v":"High"},null,null,"Floods",{"$f":"BE470","v":"Low"}]
[null,null,"Natural Resources",{"$f":"$AL$341","v":"Poor"},null,null,null,null,{"$f":"$AL$342","v":"Poor"},null,null,null,null,{"$f":"$AL$343","v":"Poor"},null,null,null,null,{"$f":"$AL$344","v":"Poor"},null,null,null,null,null,null,null,null,null,null,null,null,null,null,null,null,null,null,null,null,null,"Other Climate Hazards",{"$f":"AY471","v":"High"},null,null,"Other Climate Hazards",{"$f":"BE471","v":"Low"}]
[null,null,"Financial Resources",{"$f":"$AL$346","v":"Poor"},null,null,null,null,null,null,null,null,null,{"$f":"$AL$347","v":"Poor"},null,null,null,null,null,null,null,null,null,null,null,null,null,null,null,null,null,null,null,null,null,null,null,null,null,null," ",null,null,{"$f":"AR312","v":" "}," "]
[null,null,null,null,null,null,null,null,null,null,null,null,null,null,null,null,null,null,null,null,null,null,null,null,null,null,null,null,null,null,null,null,null,null,null,null,null,null,null,{"$f":"AD344","v":"Infrastructure"},"Water Supply",{"$f":"AY473","v":"High"},null,{"$f":"AR313","v":"Infrastructure"},"Water Supply",{"$f":"BE473","v":"Med"}]
[null,"VULNERABILITY",null,null,null,null,null,null,null,null,null,null,null,null,null,null,null,null,null,null,null,null,null,null,null,null,null,null,null,null,null,null,null,null,null,null,null,null,null,null,"Water Treatment","High",null,null,"Water Treatment","Med"]
[null,null,null,{"$f":"$C$341","v":"Human"},null,null,null,{"$f":"$C$342","v":"Institutions"},null,null,null,{"$f":"$C$343","v":"Infrastructure"},null,null,null,{"$f":"$C$344","v":"Natural Resources"},null,null,null,{"$f":"$C$345","v":"Financial Resources"},null,null,null,null,null,null,null,null,null,null,null,null,null,null,null,null,null,null,null,null,"Water Storage","High",null,null,"Water Storage","Med"]
[null,"CURRENT",null,null,null,null,null,null,null,null,null,null,null,null,null,null,null,null,null,null,null,null,null,null,null,null,null,null,null,null,null,null,null,null,null,null,null,null,null,null,"Ecol & Green Infra","High",null,null,"Ecol & Green Infra","Med"]
[null,null,null,{"$f":"$AP$279","v":"High"},null,null,null,{"$f":"$AP$280","v":"High"},null,null,null,{"$f":"$AP$281","v":"High"},null,null,null,{"$f":"$AP$282","v":"High"},null,null,null,{"$f":"$AP$283","v":"High"},null,null,null,null,null,null,null,null,null,null,null,null,null,null,null,null,null,null,null,null,"Energy","High",null,null,"Energy","Low"]
[null,"FUTURE",null,null,null,null,null,null,null,null,null,null,null,null,null,null,null,null,null,null,null,null,null,null,null,null,null,null,null,null,null,null,null,null,null,null,null,null,null,null,{"$f":"AE349","v":"Roads & Public Infra"},"High",null,null,{"$f":"AS318","v":"Roads & Public Infra"},"Low"]
[null,null,null,{"$f":"$AP$324","v":"High"},null,null,null,{"$f":"$AP$325","v":"High"},null,null,null,{"$f":"$AP$326","v":"High"},null,null,null,{"$f":"$AP$327","v":"High"},null,null,null,{"$f":"$AP$328","v":"High"}]
[null,"VULNERABILITY - Part 2"]
[null,null,null,{"$f":"$AO$285","v":"Livelihoods"},null,null,null,{"$f":"$AO$286","v":"Health & Safety"},null,null,null,{"$f":"$AO$287","v":"Services"},null,null,null,{"$f":"$AO$288","v":"Water Supply"},null,null,null,{"$f":"$AO$289","v":"Infrastructure"}]
[null,"CURRENT"]
[null,null,null,{"$f":"$AP$285","v":"High"},null,null,null,{"$f":"$AP$286","v":"High"},null,null,null,{"$f":"$AP$287","v":"High"},null,null,null,{"$f":"$AP$288","v":"High"},null,null,null,{"$f":"$AP$289","v":"High"}]
[null,"FUTURE"]
[null,null,null,{"$f":"$AP$330","v":"High"},null,null,null,{"$f":"$AP$331","v":"High"},null,null,null,{"$f":"$AP$332","v":"High"},null,null,null,{"$f":"$AP$333","v":"High"},null,null,null,{"$f":"$AP$334","v":"High"}]
[]
[null,"VULNERABILITY - Part 3"]
[null,null,{"$f":"C303","v":"Livelihoods"},"Food security",null,null,null,null,null,null,{"$f":"K303","v":"Crops"},null,null,null,null,null,{"$f":"Q303","v":"Livestock"}]
[null,null,"Health & Safety","Water Borne Diseases ",null,null,null,null,null,null,{"$f":"K304","v":"Vector Diseases"},null,null,null,null,null,{"$f":"Q304","v":"Safety"}]
[null,null,"Services","Housing",null,null,null,{"$f":"H305","v":"Land"},null,null,null,{"$f":"L305","v":"Community"},null,null,null,{"$f":"P305","v":"Sanitation"},null,null,null,{"$f":"T305","v":"Energy"}]
[null,null,"Water Supply","Access",null,null,null,{"$f":"H306","v":"Quality"},null,null,null,{"$f":"L306","v":"Droughts"},null,null,null,{"$f":"P306","v":"Floods"},null,null,null,{"$f":"T306","v":"Other Climate Hazards"}]
[null,null,"Infrastructure","Water Supply",null,null,{"$f":"G307","v":"Water Treatment"},null,null,null,{"$f":"K307","v":"Water Storage"},null,null,{"$f":"N307","v":"Ecol & Green Infra"},null,null,{"$f":"Q307","v":"Energy"},null,null,null,{"$f":"U307","v":"Roads & Public Infra"}]
[null,"CURRENT"]
[null,null,{"$f":"C373","v":"Livelihoods"},{"$f":"$AP$293","v":"High"},null,null,null,null,null,null,{"$f":"$AP$294","v":"High"},null,null,null,null,null,{"$f":"$AP$295","v":"High"}]
[null,null,"Health & Safety",{"$f":"$AP$297","v":"High"},null,null,null,null,null,null,{"$f":"$AP$298","v":"High"},null,null,null,null,null,{"$f":"$AP$299","v":"High"}]
[null,null,"Services",{"$f":"$AP$301","v":"High"},null,null,null,{"$f":"$AP$302","v":"High"},null,null,null,{"$f":"$AP$303","v":"High"},null,null,null,{"$f":"$AP$304","v":"High"},null,null,null,{"$f":"$AP$305","v":"High"}]
[null,null,"Water Supply",{"$f":"$AP$307","v":"High"},null,null,null,{"$f":"$AP$308","v":"High"},null,null,null,{"$f":"$AP$309","v":"High"},null,null,null,{"$f":"$AP$310","v":"High"},null,null,null,{"$f":"$AP$311","v":"High"}]
[null,null,"Infrastructure",{"$f":"$AP$313","v":"High"},null,null,{"$f":"$AP$314","v":"High"},null,null,null,{"$f":"$AP$315","v":"High"},null,null,{"$f":"$AP$316","v":"High"},null,null,{"$f":"$AP$317","v":"High"},null,null,null,{"$f":"$AP$318","v":"High"}]
[null,"FUTURE"]
[null,null,"Livelihoods",{"$f":"$AP$338","v":"High"},null,null,null,null,null,null,{"$f":"$AP$339","v":"High"},null,null,null,null,null,{"$f":"$AP$340","v":"High"}]
[null,null,"Health & Safety",{"$f":"$AP$342","v":"High"},null,null,null,null,null,null,{"$f":"$AP$343","v":"High"},null,null,null,null,null,{"$f":"$AP$344","v":"High"}]
[null,null,"Services",{"$f":"$AP$346","v":"High"},null,null,null,{"$f":"$AP$347","v":"High"},null,null,null,{"$f":"$AP$348","v":"High"},null,null,null,{"$f":"$AP$349","v":"High"},null,null,null,{"$f":"$AP$350","v":"High"}]
[null,null,"Water Supply",{"$f":"$AP$352","v":"High"},null,null,null,{"$f":"$AP$353","v":"High"},null,null,null,{"$f":"$AP$354","v":"High"},null,null,null,{"$f":"$AP$355","v":"High"},null,null,null,{"$f":"$AP$356","v":"High"}]
[null,null,"Infrastructure",{"$f":"$AP$358","v":"High"},null,null,{"$f":"$AP$359","v":"High"},null,null,null,{"$f":"$AP$360","v":"High"},null,null,{"$f":"$AP$361","v":"High"},null,null,{"$f":"$AP$362","v":"High"},null,null,null,{"$f":"$AP$363","v":"High"}]
[]
[null,"RISK"]
[null,null,null,{"$f":"$AO$285","v":"Livelihoods"},null,null,null,{"$f":"$AO$286","v":"Health & Safety"},null,null,null,{"$f":"$AO$287","v":"Services"},null,null,null,{"$f":"$AO$288","v":"Water Supply"},null,null,null,{"$f":"$AO$289","v":"Infrastructure"}]
[null,"CURRENT"]
[null,null,null,{"$f":"$AT$279","v":"Med"},null,null,null,{"$f":"$AT$280","v":"Low"},null,null,null,{"$f":"$AT$281","v":"Med"},null,null,null,{"$f":"$AT$282","v":"Med"},null,null,null,{"$f":"$AT$283","v":"Med"}]
[null,"FUTURE"]
[null,null,null,{"$f":"$AT$324","v":"Med"},null,null,null,{"$f":"$AT$325","v":"Low"},null,null,null,{"$f":"$AT$326","v":"Med"},null,null,null,{"$f":"$AT$327","v":"Med"},null,null,null,{"$f":"$AT$328","v":"Med"}]
[]
[null,"RISK - Part 2"]
[null,null,{"$f":"C373","v":"Livelihoods"},"Food security",null,null,null,null,null,null,{"$f":"K373","v":"Crops"},null,null,null,null,null,{"$f":"Q373","v":"Livestock"}]
[null,null,"Health & Safety","Water Borne Diseases ",null,null,null,null,null,null,{"$f":"K374","v":"Vector Diseases"},null,null,null,null,null,{"$f":"Q374","v":"Safety"}]
[null,null,"Services","Housing",null,null,null,{"$f":"H375","v":"Land"},null,null,null,{"$f":"L375","v":"Community"},null,null,null,{"$f":"P375","v":"Sanitation"},null,null,null,{"$f":"T375","v":"Energy"}]
[null,null,"Water Supply","Access",null,null,null,{"$f":"H376","v":"Quality"},null,null,null,{"$f":"L376","v":"Droughts"},null,null,null,{"$f":"P376","v":"Floods"},null,null,null,{"$f":"T376","v":"Other Climate Hazards"}]
[null,null,"Infrastructure","Water Supply",null,null,{"$f":"G377","v":"Water Treatment"},null,null,null,{"$f":"K377","v":"Water Storage"},null,null,{"$f":"N377","v":"Ecol & Green Infra"},null,null,{"$f":"Q377","v":"Energy"},null,null,null,{"$f":"U377","v":"Roads & Public Infra"}]
[null,"CURRENT"]
[null,null,{"$f":"C399","v":"Livelihoods"},{"$f":"$AT$293","v":"Med"},null,null,null,null,null,null,{"$f":"$AT$294","v":"Med"},null,null,null,null,null,{"$f":"$AT$295","v":"Med"}]
[null,null,"Health & Safety",{"$f":"$AT$297","v":"Low"},null,null,null,null,null,null,{"$f":"$AT$298","v":"Low"},null,null,null,null,null,{"$f":"$AT$299","v":"Low"}]
[null,null,"Services",{"$f":"$AT$301","v":"Med"},null,null,null,{"$f":"$AT$302","v":"Med"},null,null,null,{"$f":"$AT$303","v":"Low"},null,null,null,{"$f":"$AT$304","v":"Med"},null,null,null,{"$f":"$AT$305","v":"Med"}]
[null,null,"Water Supply",{"$f":"$AT$307","v":"Med"},null,null,null,{"$f":"$AT$308","v":"High"},null,null,null,{"$f":"$AT$309","v":"Med"},null,null,null,{"$f":"$AT$310","v":"Low"},null,null,null,{"$f":"$AT$311","v":"Low"}]
[null,null,"Infrastructure",{"$f":"$AT$313","v":"Med"},null,null,{"$f":"$AT$314","v":"Med"},null,null,null,{"$f":"$AT$315","v":"Med"},null,null,{"$f":"$AT$316","v":"Med"},null,null,{"$f":"$AT$317","v":"Low"},null,null,null,{"$f":"$AT$318","v":"Low"}]
[null,"FUTURE"]
[null,null,{"$f":"C405","v":"Livelihoods"},{"$f":"$AT$338","v":"Med"},null,null,null,null,null,null,{"$f":"$AT$339","v":"Med"},null,null,null,null,null,{"$f":"$AT$340","v":"Med"}]
[null,null,"Health & Safety",{"$f":"$AT$342","v":"Low"},null,null,null,null,null,null,{"$f":"$AT$343","v":"Low"},null,null,null,null,null,{"$f":"$AT$344","v":"Low"}]
[null,null,"Services",{"$f":"$AT$346","v":"Med"},null,null,null,{"$f":"$AT$347","v":"Med"},null,null,null,{"$f":"$AT$348","v":"Low"},null,null,null,{"$f":"$AT$349","v":"Med"},null,null,null,{"$f":"$AT$350","v":"Med"}]
[null,null,"Water Supply",{"$f":"$AT$352","v":"Med"},null,null,null,{"$f":"$AT$353","v":"High"},null,null,null,{"$f":"$AT$354","v":"Med"},null,null,null,{"$f":"$AT$355","v":"Low"},null,null,null,{"$f":"$AT$356","v":"Low"}]
[null,null,"Infrastructure",{"$f":"$AT$358","v":"Med"},null,null,{"$f":"$AT$359","v":"Med"},null,null,null,{"$f":"$AT$360","v":"Med"},null,null,{"$f":"$AT$361","v":"Med"},null,null,{"$f":"$AT$362","v":"Low"},null,null,null,{"$f":"$AT$363","v":"Low"}]
[]
[]
[]
[null,null,"Low risk is good",null,null,null,null,null,null,null,null,null,null,null,null,null,null,null,null,null,null,null,"CURRENT HAZARDS",null,null,null,null,null,"CURRENT EXPOSURE",null,null,null,null,null,"CURRENT SENSITIVITY",null,null,null,null,null,"CURRENT ADAPTIVE CAPACITY",null,null,null,null,"CURRENT VULNERABILITY",null,null,null,null,null,"CURRENT RISK",null,null,null,null,null,"CURRENT VULNERABILITY",null,null,null,null,null,"CURRENT"]
[null,null,"Hazard/Exposure/Risk",null,null,null,null,null,null,null,null,null,null,null,null,null,null,null,null,null,null,null,null,null,null,null,null,null,null,null,null,null,null,null,null,null,null,null,null,null,null,null,null,null,null,null,null,null,null,null,null,null,null,null,null,null,null,null,{"$f":"$AU$422","v":"Livelihoods"},{"$f":"$AX$422","v":2},{"$f":"IF(BH420<=$E$436,$C$436,IF(BH420>=$D$438,$C$438,$C$437))","v":"High"},null,null,"RISK"]
[null,null,null,null,"Ave Split",null,null,null,null,null,null,null,null,null,null,null,null,null,null,null,null,null,"Hazard",null,null,{"$f":"Hazard!$I$10","v":"Rating?"},"Average",null,"Exposure",null,null,{"$f":"$Z$421","v":"Rating?"},"Average",null,"Sensitivity",null,null,{"$f":"$Z$421","v":"Rating?"},"Average",null,"Adaptive Capacity",null,{"$f":"$Z$421","v":"Rating?"},"Average",null,"Vulnerability",null,{"$f":"$Z$421","v":"Rating?"},"Average",null,null,"Hazard","Exp","Vul","Risk",null,null,null,{"$f":"$AU$426","v":"Health & Safety"},{"$f":"$AX$426","v":2},{"$f":"IF(BH421<=$E$436,$C$436,IF(BH421>=$D$438,$C$438,$C$437))","v":"High"}]
[null,null,"Low",1,1,null,null,null,null,null,null,null,null,null,null,null,null,null,null,null,null,null,1,{"$f":"Hazard!C11","v":"Temperature"},{"$f":"Hazard!D11","v":"Seasons"},{"$f":"Hazard!I11","v":3},{"$f":"AVERAGE(Z422:Z424)","v":2.3333333333333335},{"$f":"IF(Z422<=$D$422,$C$422,IF(Z422=$D$423,$C$423,$C$424))","v":"High"},1,{"$f":"Exposure!C11","v":"Livelihoods"},{"$f":"Exposure!D11","v":"Food security"},{"$f":"Exposure!J11","v":1},{"$f":"AVERAGE(AF422:AF424)","v":1},{"$f":"IF(AF422<=$D$422,$C$422,IF(AF422=$D$423,$C$423,$C$424))","v":"Low"},1,{"$f":"Sensitivity!C11","v":"Human"},{"$f":"Sensitivity!D11","v":"Diverse Livelihoods"},{"$f":"Sensitivity!J11","v":3},{"$f":"AVERAGE(AL422:AL426)","v":3},{"$f":"IF(AL422<=$D$422,$C$422,IF(AL422=$D$423,$C$423,$C$424))","v":"High"},{"$f":"AJ422","v":"Human"},{"$f":"'Adaptive Capacity'!D11","v":"Climate Info"},{"$f":"'Adaptive Capacity'!J11","v":1},{"$f":"AVERAGE(AQ422:AQ426)","v":1},{"$f":"IF(AQ422<=$D$429,$C$429,IF(AQ422=$D$430,$C$430,$C$431))","v":"Poor"},{"$f":"AC422","v":1},{"$f":"AD422","v":"Livelihoods"},{"$f":"AE422","v":"Food security"},{"$f":"AVERAGE(AL422,AL423,AL424,AL425,AL428,AL429,AL444,AL445)-AVERAGE(AQ422,AQ425,AQ433,AQ444)","v":2},{"$f":"AVERAGE(AW422:AW424)","v":2},{"$f":"IF(AW422<=$E$436,$C$436,IF(AW422>=$D$438,$C$438,$C$437))","v":"High"},{"$f":"AVERAGE(Z422,Z423,Z424,Z426,Z427,Z428,Z430,Z433)","v":1.8875},{"$f":"AF422","v":1},{"$f":"(AW422+3)/2","v":2.5},{"$f":"AZ422+((BA422*BB422)/3)","v":2.7208333333333332},{"$f":"AVERAGE(BC422:BC424)","v":2.7208333333333332},{"$f":"IF(BC422<=$E$444,$C$444,IF(BC422>=$D$446,$C$446,$C$445))","v":"Med"},null,{"$f":"$AU$430","v":"Services"},{"$f":"$AX$430","v":2},{"$f":"IF(BH422<=$E$436,$C$436,IF(BH422>=$D$438,$C$438,$C$437))","v":"High"}]
[null,null,"Med",2,2,null,null,null,null,null,null,null,null,null,null,null,null,null,null,null,null,null,null,null,{"$f":"Hazard!D12","v":"Annual Trends"},{"$f":"Hazard!I12","v":3},null,{"$f":"IF(Z423<=$D$422,$C$422,IF(Z423=$D$423,$C$423,$C$424))","v":"High"},null,null,{"$f":"Exposure!D12","v":"Crops"},{"$f":"Exposure!J12","v":1},null,{"$f":"IF(AF423<=$D$422,$C$422,IF(AF423=$D$423,$C$423,$C$424))","v":"Low"},null,null,{"$f":"Sensitivity!D12","v":"Climate Information"},{"$f":"Sensitivity!J12","v":3},null,{"$f":"IF(AL423<=$D$422,$C$422,IF(AL423=$D$423,$C$423,$C$424))","v":"High"},null,{"$f":"'Adaptive Capacity'!D12","v":"Climate Smart Agr"},{"$f":"'Adaptive Capacity'!J12","v":1},null,{"$f":"IF(AQ423<=$D$429,$C$429,IF(AQ423=$D$430,$C$430,$C$431))","v":"Poor"},null,null,{"$f":"AE423","v":"Crops"},{"$f":"AVERAGE(AL423,AL424,AL425,AL428,AL429,AL442)-AVERAGE(AQ423,AQ425,AQ433,AQ442)","v":2},null,{"$f":"IF(AW423<=$E$436,$C$436,IF(AW423>=$D$438,$C$438,$C$437))","v":"High"},{"$f":"AVERAGE(Z422,Z423,Z424,Z426,Z427,Z428,Z430,Z433)","v":1.8875},{"$f":"AF423","v":1},{"$f":"(AW423+3)/2","v":2.5},{"$f":"AZ423+((BA423*BB423)/3)","v":2.7208333333333332},null,{"$f":"IF(BC423<=$E$444,$C$444,IF(BC423>=$D$446,$C$446,$C$445))","v":"Med"},null,{"$f":"$AU$436","v":"Water Supply"},{"$f":"$AX$436","v":2},{"$f":"IF(BH423<=$E$436,$C$436,IF(BH423>=$D$438,$C$438,$C$437))","v":"High"}]
[null,null,"High",3,null,null,null,null,null,null,null,null,null,null,null,null,null,null,null,null,null,null,null,null,{"$f":"Hazard!D13","v":"Hot days"},{"$f":"Hazard!I13","v":1},null,"Low",null,null,{"$f":"Exposure!D13","v":"Livestock"},{"$f":"Exposure!J13","v":1},null,"Low",null,null,{"$f":"Sensitivity!D13","v":"Agric Information"},{"$f":"Sensitivity!J13","v":3},null,{"$f":"IF(AL424<=$D$422,$C$422,IF(AL424=$D$423,$C$423,$C$424))","v":"High"},null,{"$f":"'Adaptive Capacity'!D13","v":"EWS Info"},{"$f":"'Adaptive Capacity'!J13","v":1},null,{"$f":"IF(AQ424<=$D$429,$C$429,IF(AQ424=$D$430,$C$430,$C$431))","v":"Poor"},null,null,"Livestock",{"$f":"AVERAGE(AL423,AL424,AL425,AL428,AL429,AL442)-AVERAGE(AQ423,AQ425,AQ433,AQ442)","v":2},null,{"$f":"IF(AW424<=$E$436,$C$436,IF(AW424>=$D$438,$C$438,$C$437))","v":"High"},{"$f":"AVERAGE(Z422,Z423,Z424,Z426,Z427,Z428,Z430,Z433)","v":1.8875},{"$f":"AF424","v":1},2.5,2.7208333333333332,null,{"$f":"IF(BC424<=$E$444,$C$444,IF(BC424>=$D$446,$C$446,$C$445))","v":"Med"},null,{"$f":"$AU$442","v":"Infrastructure"},{"$f":"$AX$442","v":1.8888888888888891},{"$f":"IF(BH424<=$E$436,$C$436,IF(BH424>=$D$438,$C$438,$C$437))","v":"High"}]
[null,null,null,null,null,null,null,null,null,null,null,null,null,null,null,null,null,null,null,null,null,null,{"$f":"\" \"","v":" "},{"$f":"\" \"","v":" "},{"$f":"\" \"","v":" "},null,null,null,{"$f":"\" \"","v":" "},{"$f":"\" \"","v":" "},{"$f":"\" \"","v":" "},null,null,null,null,null,{"$f":"Sensitivity!D14","v":"Women"},{"$f":"Sensitivity!J14","v":3},null,{"$f":"IF(AL425<=$D$422,$C$422,IF(AL425=$D$423,$C$423,$C$424))","v":"High"},null,{"$f":"'Adaptive Capacity'!D14","v":"Women"},{"$f":"'Adaptive Capacity'!J14","v":1},null,{"$f":"IF(AQ425<=$D$429,$C$429,IF(AQ425=$D$430,$C$430,$C$431))","v":"Poor"},{"$f":"AC425","v":" "},{"$f":"AD425","v":" "}," "]
[null,null,"Low AC # is bad",null,null,null,null,null,null,null,null,null,null,null,null,null,null,null,null,null,null,null,2,{"$f":"Hazard!C15","v":"Rainfall"},{"$f":"Hazard!D15","v":"Seasons"},{"$f":"Hazard!I15","v":3},{"$f":"AVERAGE(Z426:Z428)","v":2.3333333333333335},{"$f":"IF(Z426<=$D$422,$C$422,IF(Z426=$D$423,$C$423,$C$424))","v":"High"},2,{"$f":"Exposure!C15","v":"Health & Safety"},{"$f":"Exposure!D15","v":"Water Borne Diseases "},{"$f":"Exposure!J15","v":1},{"$f":"AVERAGE(AF426:AF428)","v":1},{"$f":"IF(AF426<=$D$422,$C$422,IF(AF426=$D$423,$C$423,$C$424))","v":"Low"},null,null,{"$f":"Sensitivity!D15","v":"Health"},{"$f":"Sensitivity!J15","v":3},null,{"$f":"IF(AL426<=$D$422,$C$422,IF(AL426=$D$423,$C$423,$C$424))","v":"High"},null,{"$f":"'Adaptive Capacity'!D15","v":"Health Awareness"},{"$f":"'Adaptive Capacity'!J15","v":1},null,{"$f":"IF(AQ426<=$D$429,$C$429,IF(AQ426=$D$430,$C$430,$C$431))","v":"Poor"},{"$f":"AC426","v":2},{"$f":"AD426","v":"Health & Safety"},"Water Borne Diseases ",{"$f":"AVERAGE(AL426,AL431,AL440,AL441)-AVERAGE(AQ426,AQ431,AQ433,AQ440,AQ441)","v":2},{"$f":"AVERAGE(AW426:AW428)","v":2},{"$f":"IF(AW426<=$E$436,$C$436,IF(AW426>=$D$438,$C$438,$C$437))","v":"High"},{"$f":"AVERAGE(Z424,Z428,Z430,Z433,Z435,Z438)","v":0.69999999999999984},{"$f":"AF426","v":1},{"$f":"(AW426+3)/2","v":2.5},{"$f":"AZ426+((BA426*BB426)/3)","v":1.5333333333333332},{"$f":"AVERAGE(BC426:BC428)","v":1.4533333333333331},{"$f":"IF(BC426<=$E$444,$C$444,IF(BC426>=$D$446,$C$446,$C$445))","v":"Low"},null,{"$f":"$AH$279","v":"Human"},{"$f":"AM422-AR422","v":2},{"$f":"IF(BH426<=$E$436,$C$436,IF(BH426>=$D$438,$C$438,$C$437))","v":"High"}]
[null,null,"Adaptive Capacity",null,null,null,null,null,null,null,null,null,null,null,null,null,null,null,null,null,null,null,null,null,{"$f":"Hazard!D16","v":"Annual Trends"},{"$f":"Hazard!I16","v":3},null,{"$f":"IF(Z427<=$D$422,$C$422,IF(Z427=$D$423,$C$423,$C$424))","v":"High"},null,null,{"$f":"Exposure!D16","v":"Vector Diseases"},{"$f":"Exposure!J16","v":1},null,{"$f":"IF(AF427<=$D$422,$C$422,IF(AF427=$D$423,$C$423,$C$424))","v":"Low"},{"$f":"\" \"","v":" "},{"$f":"\" \"","v":" "},{"$f":"\" \"","v":" "},null,null,null," ",{"$f":"\" \"","v":" "},null,null,null,null,null,"Vector Diseases",{"$f":"AVERAGE(AL426,AL431,AL440,AL441)-AVERAGE(AQ426,AQ431,AQ433,AQ440,AQ441)","v":2},null,{"$f":"IF(AW427<=$E$436,$C$436,IF(AW427>=$D$438,$C$438,$C$437))","v":"High"},{"$f":"AVERAGE(Z424,Z428,Z430,Z433,Z435,Z438)","v":0.69999999999999984},{"$f":"AF427","v":1},{"$f":"(AW427+3)/2","v":2.5},{"$f":"AZ427+((BA427*BB427)/3)","v":1.5333333333333332},null,{"$f":"IF(BC427<=$E$444,$C$444,IF(BC427>=$D$446,$C$446,$C$445))","v":"Low"},null,{"$f":"$AH$285","v":"Institutions"},{"$f":"AM428-AR428","v":2},{"$f":"IF(BH427<=$E$436,$C$436,IF(BH427>=$D$438,$C$438,$C$437))","v":"High"}]
[null,null,null,"Bottom",null,null,null,null,null,null,null,null,null,null,null,null,null,null,null,null,null,null,null,null,{"$f":"Hazard!D17","v":"Heavy Rainfall"},{"$f":"Hazard!I17","v":1},null,"Low",null,null,{"$f":"Exposure!D17","v":"Safety"},{"$f":"Exposure!J17","v":1},null,"Low",2,{"$f":"Sensitivity!C17","v":"Institutions"},{"$f":"Sensitivity!D17","v":"Water user forums"},{"$f":"Sensitivity!J17","v":3},{"$f":"AVERAGE(AL428:AL431)","v":3},{"$f":"IF(AL428<=$D$422,$C$422,IF(AL428=$D$423,$C$423,$C$424))","v":"High"},"Institutions",{"$f":"'Adaptive Capacity'!D17","v":"EWS"},{"$f":"'Adaptive Capacity'!J17","v":1},{"$f":"AVERAGE(AQ428:AQ431)","v":1},{"$f":"IF(AQ428<=$D$429,$C$429,IF(AQ428=$D$430,$C$430,$C$431))","v":"Poor"},null,null,"Safety",{"$f":"AVERAGE(AL423,AL430)-AVERAGE(AQ422,AQ424,AQ428,AQ445)","v":2},null,{"$f":"IF(AW428<=$E$436,$C$436,IF(AW428>=$D$438,$C$438,$C$437))","v":"High"},{"$f":"AVERAGE(Z428,Z435,Z436,Z437,Z438)","v":0.46000000000000008},{"$f":"AF428","v":1},2.5,1.2933333333333334,null,{"$f":"IF(BC428<=$E$444,$C$444,IF(BC428>=$D$446,$C$446,$C$445))","v":"Low"},null,{"$f":"$AH$290","v":"Infrastructure"},{"$f":"AM433-AR433","v":2},{"$f":"IF(BH428<=$E$436,$C$436,IF(BH428>=$D$438,$C$438,$C$437))","v":"High"}]
[null,null,"Poor",1,null,null,null,null,null,null,null,null,null,null,null,null,null,null,null,null,null,null,{"$f":"\" \"","v":" "},{"$f":"\" \"","v":" "},{"$f":"\" \"","v":" "},null,null,null,{"$f":"\" \"","v":" "},{"$f":"\" \"","v":" "},{"$f":"\" \"","v":" "},null,null,null,null,null,{"$f":"Sensitivity!D18","v":"Farming forums"},{"$f":"Sensitivity!J18","v":3},null,{"$f":"IF(AL429<=$D$422,$C$422,IF(AL429=$D$423,$C$423,$C$424))","v":"High"},null,{"$f":"'Adaptive Capacity'!D18","v":"Engagement"},{"$f":"'Adaptive Capacity'!J18","v":1},null,{"$f":"IF(AQ429<=$D$429,$C$429,IF(AQ429=$D$430,$C$430,$C$431))","v":"Poor"},{"$f":"AC429","v":" "},{"$f":"AD429","v":" "}," ",null,null,null,null,null,null,null,null,null,null,{"$f":"$AH$296","v":"Natural Resources"},{"$f":"AM439-AR439","v":2},{"$f":"IF(BH429<=$E$436,$C$436,IF(BH429>=$D$438,$C$438,$C$437))","v":"High"}]
[null,null,"Ave",2,null,null,null,null,null,null,null,null,null,null,null,null,null,null,null,null,null,null,3,{"$f":"Hazard!C19","v":"Droughts"},{"$f":"Hazard!D19","v":"Events"},{"$f":"Hazard!I19","v":1},{"$f":"AVERAGE(Z430:Z433)","v":0.32500000000000007},{"$f":"IF(Z430<=$D$422,$C$422,IF(Z430=$D$423,$C$423,$C$424))","v":"Low"},3,{"$f":"Exposure!C19","v":"Services"},{"$f":"Exposure!D19","v":"Housing"},{"$f":"Exposure!J19","v":3},{"$f":"AVERAGE(AF430:AF434)","v":2.6},{"$f":"IF(AF430<=$D$422,$C$422,IF(AF430=$D$423,$C$423,$C$424))","v":"High"},null,null,{"$f":"Sensitivity!D19","v":"Weather data"},{"$f":"Sensitivity!J19","v":3},null,{"$f":"IF(AL430<=$D$422,$C$422,IF(AL430=$D$423,$C$423,$C$424))","v":"High"},null,{"$f":"'Adaptive Capacity'!D19","v":"Resources"},{"$f":"'Adaptive Capacity'!J19","v":1},null,{"$f":"IF(AQ430<=$D$429,$C$429,IF(AQ430=$D$430,$C$430,$C$431))","v":"Poor"},{"$f":"AC430","v":3},{"$f":"AD430","v":"Services"},"Housing",{"$f":"AVERAGE(AL437,AL444,AL445)-AVERAGE(AQ429,AQ445)","v":2},{"$f":"AVERAGE(AW430:AW434)","v":2},{"$f":"IF(AW430<=$E$436,$C$436,IF(AW430>=$D$438,$C$438,$C$437))","v":"High"},{"$f":"AVERAGE(Z435,Z438,Z440,Z441,Z442,Z443,Z444,Z445)","v":0.88749999999999996},{"$f":"AF430","v":3},{"$f":"(AW430+3)/2","v":2.5},{"$f":"AZ430+((BA430*BB430)/3)","v":3.3875000000000002},{"$f":"AVERAGE(BC430:BC434)","v":3.027166666666667},{"$f":"IF(BC430<=$E$444,$C$444,IF(BC430>=$D$446,$C$446,$C$445))","v":"Med"},null,{"$f":"$AH$301","v":"Financial Resources"},{"$f":"AM444-AR444","v":2},{"$f":"IF(BH430<=$E$436,$C$436,IF(BH430>=$D$438,$C$438,$C$437))","v":"High"}]
[null,null,"Good",3,null,null,null,null,null,null,null,null,null,null,null,null,null,null,null,null,null,null,null,null,{"$f":"Hazard!D20","v":"Timing"},{"$f":"Hazard!I20","v":0.1},null,{"$f":"IF(Z431<=$D$422,$C$422,IF(Z431=$D$423,$C$423,$C$424))","v":"Low"},null,null,{"$f":"Exposure!D20","v":"Land"},{"$f":"Exposure!J20","v":3},null,{"$f":"IF(AF431<=$D$422,$C$422,IF(AF431=$D$423,$C$423,$C$424))","v":"High"},null,null,{"$f":"Sensitivity!D20","v":"Health"},{"$f":"Sensitivity!J20","v":3},null,{"$f":"IF(AL431<=$D$422,$C$422,IF(AL431=$D$423,$C$423,$C$424))","v":"High"},null,{"$f":"'Adaptive Capacity'!D20","v":"Health"},{"$f":"'Adaptive Capacity'!J20","v":1},null,{"$f":"IF(AQ431<=$D$429,$C$429,IF(AQ431=$D$430,$C$430,$C$431))","v":"Poor"},null,null,"Land",{"$f":"AVERAGE(AL423,AL439)-AVERAGE(AQ439,AQ444,AQ445)","v":2},null,{"$f":"IF(AW431<=$E$436,$C$436,IF(AW431>=$D$438,$C$438,$C$437))","v":"High"},{"$f":"AVERAGE(Z435,Z438,Z440,Z441,Z442,Z443,Z444,Z445)","v":0.88749999999999996},{"$f":"AF431","v":3},{"$f":"(AW431+3)/2","v":2.5},{"$f":"AZ431+((BA431*BB431)/3)","v":3.3875000000000002},null,{"$f":"IF(BC431<=$E$444,$C$444,IF(BC431>=$D$446,$C$446,$C$445))","v":"Med"}]
[null,null,null,null,null,null,null,null,null,null,null,null,null,null,null,null,null,null,null,null,null,null,null,null,{"$f":"Hazard!D21","v":"Extent"},{"$f":"Hazard!I21","v":0.1},null,{"$f":"IF(Z432<=$D$422,$C$422,IF(Z432=$D$423,$C$423,$C$424))","v":"Low"},null,null,{"$f":"Exposure!D21","v":"Community"},{"$f":"Exposure!J21","v":1},null,{"$f":"IF(AF432<=$D$422,$C$422,IF(AF432=$D$423,$C$423,$C$424))","v":"Low"},{"$f":"\" \"","v":" "},{"$f":"\" \"","v":" "},{"$f":"\" \"","v":" "},null,null,null," ",{"$f":"\" \"","v":" "},null,null,null,null,null,"Community",{"$f":"AVERAGE(AL423,AL434:AL437)-AVERAGE(AQ429,AQ430)","v":2},null,{"$f":"IF(AW432<=$E$436,$C$436,IF(AW432>=$D$438,$C$438,$C$437))","v":"High"},{"$f":"AVERAGE(Z435,Z438,Z440,Z441,Z442,Z443,Z444,Z445)","v":0.88749999999999996},{"$f":"AF432","v":1},2.5,1.7208333333333332,null,{"$f":"IF(BC432<=$E$444,$C$444,IF(BC432>=$D$446,$C$446,$C$445))","v":"Low"},"CURRENT RISK"]
[null,null,"low Vul is good",null,null,null,null,null,null,null,null,null,null,null,null,null,null,null,null,null,null,null,null,null,{"$f":"Hazard!D22","v":"Effect"},{"$f":"Hazard!I22","v":0.1},null,{"$f":"IF(Z433<=$D$422,$C$422,IF(Z433=$D$423,$C$423,$C$424))","v":"Low"},null,null,{"$f":"Exposure!D22","v":"Sanitation"},{"$f":"Exposure!J22","v":3},null,{"$f":"IF(AF433<=$D$422,$C$422,IF(AF433=$D$423,$C$423,$C$424))","v":"High"},3,{"$f":"Sensitivity!C22","v":"Infrastructure"},{"$f":"Sensitivity!D22","v":"Water Storage"},{"$f":"Sensitivity!J22","v":3},{"$f":"AVERAGE(AL433:AL437)","v":3},{"$f":"IF(AL433<=$D$422,$C$422,IF(AL433=$D$423,$C$423,$C$424))","v":"High"},"Infrastructure",{"$f":"'Adaptive Capacity'!D22","v":"Water Storage"},{"$f":"'Adaptive Capacity'!J22","v":1},{"$f":"AVERAGE(AQ433:AQ437)","v":1},{"$f":"IF(AQ433<=$D$429,$C$429,IF(AQ433=$D$430,$C$430,$C$431))","v":"Poor"},null,null,"Sanitation",{"$f":"AVERAGE(AL426,AL437,AL444)-AVERAGE(AQ431,AQ445)","v":2},null,{"$f":"IF(AW433<=$E$436,$C$436,IF(AW433>=$D$438,$C$438,$C$437))","v":"High"},{"$f":"AVERAGE(Z430,Z433,Z435,Z438,Z440,Z441,Z442,Z443,Z444,Z445)","v":0.82},{"$f":"AF433","v":3},2.5,{"$f":"AZ433+((BA433*BB433)/3)","v":3.32},null,{"$f":"IF(BC433<=$E$444,$C$444,IF(BC433>=$D$446,$C$446,$C$445))","v":"Med"},null,{"$f":"$AU$422","v":"Livelihoods"},{"$f":"$BD$422","v":2.7208333333333332},{"$f":"IF(BH433<=$E$444,$C$444,IF(BH433>=$D$446,$C$446,$C$445))","v":"Med"},"High"]
[null,null,"Vulnerability",null,null,null,null,null,null,null,null,null,null,null,null,null,null,null,null,null,null,null,{"$f":"\" \"","v":" "},{"$f":"\" \"","v":" "},{"$f":"\" \"","v":" "},null,null,null,null,null,{"$f":"Exposure!D23","v":"Energy"},{"$f":"Exposure!J23","v":3},null,{"$f":"IF(AF434<=$D$422,$C$422,IF(AF434=$D$423,$C$423,$C$424))","v":"High"},null,null,{"$f":"Sensitivity!D23","v":"Water Supply"},{"$f":"Sensitivity!J23","v":3},null,{"$f":"IF(AL434<=$D$422,$C$422,IF(AL434=$D$423,$C$423,$C$424))","v":"High"},null,{"$f":"'Adaptive Capacity'!D23","v":"Green Infra"},{"$f":"'Adaptive Capacity'!J23","v":1},null,{"$f":"IF(AQ434<=$D$429,$C$429,IF(AQ434=$D$430,$C$430,$C$431))","v":"Poor"},null,null,"Energy",{"$f":"AVERAGE(AL436,AL444,AL445)-AVERAGE(AQ437,AQ444)","v":2},null,{"$f":"IF(AW434<=$E$436,$C$436,IF(AW434>=$D$438,$C$438,$C$437))","v":"High"},{"$f":"AVERAGE(Z430,Z433,Z435,Z438,Z440,Z441,Z442,Z443,Z444,Z445)","v":0.82},{"$f":"AF434","v":3},2.5,3.32,null,"Med",null,{"$f":"$AU$426","v":"Health & Safety"},{"$f":"$BD$426","v":1.4533333333333331},{"$f":"IF(BH434<=$E$444,$C$444,IF(BH434>=$D$446,$C$446,$C$445))","v":"Low"},"Med"]
[null,null,null,"Bottom","Top",null,null,null,null,null,null,null,null,null,null,null,null,null,null,null,null,null,4,{"$f":"Hazard!C24","v":"Floods"},{"$f":"Hazard!D24","v":"Events"},{"$f":"Hazard!I24","v":1},{"$f":"AVERAGE(Z435:Z438)","v":0.32500000000000007},{"$f":"IF(Z435<=$D$422,$C$422,IF(Z435=$D$423,$C$423,$C$424))","v":"Low"},{"$f":"\" \"","v":" "},{"$f":"\" \"","v":" "},{"$f":"\" \"","v":" "},null,null,null,null,null,{"$f":"Sensitivity!D24","v":"Roads & Transport"},{"$f":"Sensitivity!J24","v":3},null,{"$f":"IF(AL435<=$D$422,$C$422,IF(AL435=$D$423,$C$423,$C$424))","v":"High"},null,{"$f":"'Adaptive Capacity'!D24","v":"Roads & Transport"},{"$f":"'Adaptive Capacity'!J24","v":1},null,{"$f":"IF(AQ435<=$D$429,$C$429,IF(AQ435=$D$430,$C$430,$C$431))","v":"Poor"},{"$f":"AC435","v":" "},{"$f":"AD435","v":" "},null,null,null,null,null,null,null,null,null,null,null,{"$f":"$AU$430","v":"Services"},{"$f":"$BD$430","v":3.027166666666667},{"$f":"IF(BH435<=$E$444,$C$444,IF(BH435>=$D$446,$C$446,$C$445))","v":"Med"},"Low",null,"FUTURE"]
[null,null,"Low",-2,-0.6,null,-2,null,null,null,null,null,null,null,null,null,null,null,null,null,null,null,null,null,{"$f":"Hazard!D25","v":"Timing"},{"$f":"Hazard!I25","v":0.1},null,{"$f":"IF(Z436<=$D$422,$C$422,IF(Z436=$D$423,$C$423,$C$424))","v":"Low"},4,{"$f":"Exposure!C25","v":"Water Supply"},{"$f":"Exposure!D25","v":"Access"},{"$f":"Exposure!J25","v":3},{"$f":"AVERAGE(AF436:AF440)","v":1.8},{"$f":"IF(AF436<=$D$422,$C$422,IF(AF436=$D$423,$C$423,$C$424))","v":"High"},null,null,{"$f":"Sensitivity!D25","v":"Energy"},{"$f":"Sensitivity!J25","v":3},null,{"$f":"IF(AL436<=$D$422,$C$422,IF(AL436=$D$423,$C$423,$C$424))","v":"High"},null,{"$f":"'Adaptive Capacity'!D25","v":"Maintenance"},{"$f":"'Adaptive Capacity'!J25","v":1},null,{"$f":"IF(AQ436<=$D$429,$C$429,IF(AQ436=$D$430,$C$430,$C$431))","v":"Poor"},{"$f":"AC436","v":4},{"$f":"AD436","v":"Water Supply"},{"$f":"AE436","v":"Access"},{"$f":"AVERAGE(AL423,AL433,AL440,AL444,AL445)-AVERAGE(AQ422,AQ433,AQ440,AQ444)","v":2},{"$f":"AVERAGE(AW436:AW440)","v":2},{"$f":"IF(AW436<=$E$436,$C$436,IF(AW436>=$D$438,$C$438,$C$437))","v":"High"},{"$f":"AVERAGE(Z426,Z427,Z428,Z430,Z431,Z432,Z433)","v":1.1857142857142855},{"$f":"AF436","v":3},{"$f":"(AW436+3)/2","v":2.5},{"$f":"AZ436+((BA436*BB436)/3)","v":3.6857142857142855},{"$f":"AVERAGE(BC436:BC440)","v":2.9088571428571428},{"$f":"IF(BC436<=$E$444,$C$444,IF(BC436>=$D$446,$C$446,$C$445))","v":"Med"},null,{"$f":"$AU$436","v":"Water Supply"},{"$f":"$BD$436","v":2.9088571428571428},{"$f":"IF(BH436<=$E$444,$C$444,IF(BH436>=$D$446,$C$446,$C$445))","v":"Med"},{"$f":"\" \"","v":" "},null,"RISK"]
[null,null,"Med",{"$f":"E436","v":-0.6},{"$f":"D438","v":0.6},null,2,null,null,null,null,null,null,null,null,null,null,null,null,null,null,null,null,null,{"$f":"Hazard!D26","v":"Extent"},{"$f":"Hazard!I26","v":0.1},null,{"$f":"IF(Z437<=$D$422,$C$422,IF(Z437=$D$423,$C$423,$C$424))","v":"Low"},null,null,{"$f":"Exposure!D26","v":"Quality"},{"$f":"Exposure!J26","v":3},null,{"$f":"IF(AF437<=$D$422,$C$422,IF(AF437=$D$423,$C$423,$C$424))","v":"High"},null,null,{"$f":"Sensitivity!D26","v":"Housing / Shelter"},{"$f":"Sensitivity!J26","v":3},null,{"$f":"IF(AL437<=$D$422,$C$422,IF(AL437=$D$423,$C$423,$C$424))","v":"High"},null,{"$f":"'Adaptive Capacity'!D26","v":"Housing / Shelter"},{"$f":"'Adaptive Capacity'!J26","v":1},null,{"$f":"IF(AQ437<=$D$429,$C$429,IF(AQ437=$D$430,$C$430,$C$431))","v":"Poor"},null,null,"Quality",{"$f":"AVERAGE(AL423,AL433,AL440,AL444,AL445)-AVERAGE(AQ422,AQ431,AQ441,AQ444)","v":2},null,{"$f":"IF(AW437<=$E$436,$C$436,IF(AW437>=$D$438,$C$438,$C$437))","v":"High"},{"$f":"AVERAGE(Z422,Z423,Z424,Z426,Z427,Z428,Z430)","v":2.1428571428571428},{"$f":"AF437","v":3},{"$f":"(AW437+3)/2","v":2.5},{"$f":"AZ437+((BA437*BB437)/3)","v":4.6428571428571423},null,{"$f":"IF(BC437<=$E$444,$C$444,IF(BC437>=$D$446,$C$446,$C$445))","v":"High"},null,{"$f":"$AU$442","v":"Infrastructure"},{"$f":"$BD$442","v":2.7684259259259263},{"$f":"IF(BH437<=$E$444,$C$444,IF(BH437>=$D$446,$C$446,$C$445))","v":"Med"}]
[null,null,"High",0.6,2,null,{"$f":"(G437-G436)/3","v":1.3333333333333333},null,null,null,null,null,null,null,null,null,null,null,null,null,null,null,null,null,{"$f":"Hazard!D27","v":"Effect"},{"$f":"Hazard!I27","v":0.1},null,{"$f":"IF(Z438<=$D$422,$C$422,IF(Z438=$D$423,$C$423,$C$424))","v":"Low"},null,null,{"$f":"Exposure!D27","v":"Droughts"},{"$f":"Exposure!J27","v":1},null,"Low",{"$f":"\" \"","v":" "},{"$f":"\" \"","v":" "},{"$f":"\" \"","v":" "},null,null,null," ",{"$f":"\" \"","v":" "},null,null,null,null,null,"Droughts",{"$f":"AVERAGE(AL423,AL430,AL444,AL445)-AVERAGE(AQ422,AQ424,AQ429,AQ430,AQ433,AQ445)","v":2},null,{"$f":"IF(AW438<=$E$436,$C$436,IF(AW438>=$D$438,$C$438,$C$437))","v":"High"},{"$f":"AVERAGE(Z422,Z423,Z424,Z426,Z427,Z428,Z430,Z431,Z432,Z433)","v":1.5299999999999998},{"$f":"AF438","v":1},2.5,2.3633333333333333,null,{"$f":"IF(BC438<=$E$444,$C$444,IF(BC438>=$D$446,$C$446,$C$445))","v":"Med"}]
[null,null,null,null,null,null,null,null,null,null,null,null,null,null,null,null,null,null,null,null,null,null,{"$f":"\" \"","v":" "},{"$f":"\" \"","v":" "},{"$f":"\" \"","v":" "},null,null,null,null,null,{"$f":"Exposure!D28","v":"Floods"},{"$f":"Exposure!J28","v":1},null,"Low",4,{"$f":"Sensitivity!C28","v":"Natural Resources"},{"$f":"Sensitivity!D28","v":"Land"},{"$f":"Sensitivity!J28","v":3},{"$f":"AVERAGE(AL439:AL442)","v":3},{"$f":"IF(AL439<=$D$422,$C$422,IF(AL439=$D$423,$C$423,$C$424))","v":"High"},"Natural Resources",{"$f":"'Adaptive Capacity'!D28","v":"Land"},{"$f":"'Adaptive Capacity'!J28","v":1},{"$f":"AVERAGE(AQ439:AQ442)","v":1},{"$f":"IF(AQ439<=$D$429,$C$429,IF(AQ439=$D$430,$C$430,$C$431))","v":"Poor"},null,null,"Floods",{"$f":"AVERAGE(AL423,AL430,AL444,AL445)-AVERAGE(AQ422,AQ424,AQ428,AQ429,AQ430,AQ445)","v":2},null,{"$f":"IF(AW439<=$E$436,$C$436,IF(AW439>=$D$438,$C$438,$C$437))","v":"High"},{"$f":"AVERAGE(Z426,Z427,Z428,Z435,Z436,Z437,Z438)","v":1.1857142857142855},{"$f":"AF439","v":1},2.5,2.019047619047619,null,{"$f":"IF(BC439<=$E$444,$C$444,IF(BC439>=$D$446,$C$446,$C$445))","v":"Low"},"Current Risk",null,"low","High","med"]
[null,null,null,null,null,null,null,null,null,null,null,null,null,null,null,null,null,null,null,null,null,null,5,{"$f":"Hazard!C29","v":"Other Factors"},{"$f":"Hazard!D29","v":"Fire"},{"$f":"Hazard!I29","v":1},{"$f":"AVERAGE(Z440:Z445)","v":1},{"$f":"IF(Z440<=$D$422,$C$422,IF(Z440=$D$423,$C$423,$C$424))","v":"Low"},null,null,{"$f":"Exposure!D29","v":"Other Climate Hazards"},{"$f":"Exposure!J29","v":1},null,"Low",null,null,{"$f":"Sensitivity!D29","v":"Water Resources"},{"$f":"Sensitivity!J29","v":3},null,{"$f":"IF(AL440<=$D$422,$C$422,IF(AL440=$D$423,$C$423,$C$424))","v":"High"},null,{"$f":"'Adaptive Capacity'!D29","v":"Water Resources"},{"$f":"'Adaptive Capacity'!J29","v":1},null,{"$f":"IF(AQ440<=$D$429,$C$429,IF(AQ440=$D$430,$C$430,$C$431))","v":"Poor"},null,null,"Other Climate Hazards",{"$f":"AVERAGE(AL423,AL430,AL444,AL445)-AVERAGE(AQ422,AQ424,AQ428,AQ429,AQ430,AQ445)","v":2},null,{"$f":"IF(AW440<=$E$436,$C$436,IF(AW440>=$D$438,$C$438,$C$437))","v":"High"},{"$f":"AVERAGE(Z440,Z441,Z442,Z443,Z444,Z445)","v":1},{"$f":"AF440","v":1},2.5,1.8333333333333335,null,{"$f":"IF(BC440<=$E$444,$C$444,IF(BC440>=$D$446,$C$446,$C$445))","v":"Low"},null,{"$f":"BG433","v":"Livelihoods"},{"$f":"$D$444+($F$446/2)","v":1.3333333333333335},{"$f":"$E$446-($F$446/2)","v":4.666666666666667},{"$f":"BH440+$F$446","v":3},{"$f":"BH433","v":2.7208333333333332}]
[null,null,"low Risk is good",null,null,null,null,null,null,null,null,null,null,null,null,null,null,null,null,null,null,null,null,null,{"$f":"Hazard!D30","v":"Snow"},{"$f":"Hazard!I30","v":1},null,{"$f":"IF(Z441<=$D$422,$C$422,IF(Z441=$D$423,$C$423,$C$424))","v":"Low"},{"$f":"\" \"","v":" "},{"$f":"\" \"","v":" "},{"$f":"\" \"","v":" "},null,null,null,null,null,{"$f":"Sensitivity!D30","v":"Ecosystems"},{"$f":"Sensitivity!J30","v":3},null,{"$f":"IF(AL441<=$D$422,$C$422,IF(AL441=$D$423,$C$423,$C$424))","v":"High"},null,{"$f":"'Adaptive Capacity'!D30","v":"Ecosystems"},{"$f":"'Adaptive Capacity'!J30","v":1},null,{"$f":"IF(AQ441<=$D$429,$C$429,IF(AQ441=$D$430,$C$430,$C$431))","v":"Poor"},{"$f":"AC441","v":" "},{"$f":"AD441","v":" "}," ",null,null,null,null,null,null,null,null,null,null,{"$f":"BG434","v":"Health & Safety"},{"$f":"$D$444+($F$446/2)","v":1.3333333333333335},{"$f":"$E$446-($F$446/2)","v":4.666666666666667},{"$f":"BH441+$F$446","v":3},{"$f":"BH434","v":1.4533333333333331}]
[null,null,"Risk",null,null,null,null,null,null,null,null,null,null,null,null,null,null,null,null,null,null,null,null,null,{"$f":"Hazard!D31","v":"Hail"},{"$f":"Hazard!I31","v":1},null,"Low",5,{"$f":"Exposure!C31","v":"Infrastructure"},{"$f":"Exposure!D31","v":"Water Supply"},{"$f":"Exposure!J31","v":3},{"$f":"AVERAGE(AF442:AF447)","v":2.3333333333333335},{"$f":"IF(AF442<=$D$422,$C$422,IF(AF442=$D$423,$C$423,$C$424))","v":"High"},null,null,{"$f":"Sensitivity!D31","v":"Soil"},{"$f":"Sensitivity!J31","v":3},null,{"$f":"IF(AL442<=$D$422,$C$422,IF(AL442=$D$423,$C$423,$C$424))","v":"High"},null,{"$f":"'Adaptive Capacity'!D31","v":"Soil"},{"$f":"'Adaptive Capacity'!J31","v":1},null,{"$f":"IF(AQ442<=$D$429,$C$429,IF(AQ442=$D$430,$C$430,$C$431))","v":"Poor"},{"$f":"AC442","v":5},{"$f":"AD442","v":"Infrastructure"},"Water Supply",{"$f":"AVERAGE(AL434,AL440)-AVERAGE(AQ436,AQ440)","v":2},{"$f":"AVERAGE(AW442:AW447)","v":1.8888888888888891},{"$f":"IF(AW442<=$E$436,$C$436,IF(AW442>=$D$438,$C$438,$C$437))","v":"High"},{"$f":"AVERAGE(Z430,Z433,Z435,Z438,Z440,Z441,Z442,Z443,Z444,Z445)","v":0.82},{"$f":"AF442","v":3},{"$f":"(AW442+3)/2","v":2.5},{"$f":"AZ442+((BA442*BB442)/3)","v":3.32},{"$f":"AVERAGE(BC442:BC447)","v":2.7684259259259263},{"$f":"IF(BC442<=$E$444,$C$444,IF(BC442>=$D$446,$C$446,$C$445))","v":"Med"},null,{"$f":"BG435","v":"Services"},{"$f":"$D$444+($F$446/2)","v":1.3333333333333335},{"$f":"$E$446-($F$446/2)","v":4.666666666666667},{"$f":"BH442+$F$446","v":3},{"$f":"BH435","v":3.027166666666667}]
[null,null,null,"Bottom","Top",null,null,null,null,null,null,null,null,null,null,null,null,null,null,null,null,null,null,null,{"$f":"Hazard!D32","v":"Tornado"},{"$f":"Hazard!I32","v":1},null,"Low",null,null,{"$f":"Exposure!D32","v":"Water Treatment"},{"$f":"Exposure!J32","v":3},null,{"$f":"IF(AF443<=$D$422,$C$422,IF(AF443=$D$423,$C$423,$C$424))","v":"High"},{"$f":"\" \"","v":" "},{"$f":"\" \"","v":" "},{"$f":"\" \"","v":" "},null,null,null," ",{"$f":"\" \"","v":" "},null,null,null,null,null,"Water Treatment",{"$f":"AVERAGE(AL434,AL440)-AVERAGE(AQ436)","v":2},null,"High",{"$f":"AVERAGE(Z430,Z433,Z435,Z438,Z440,Z441,Z442,Z443,Z444,Z445)","v":0.82},3,{"$f":"(AW443+3)/2","v":2.5},3.32,null,{"$f":"IF(BC443<=$E$444,$C$444,IF(BC443>=$D$446,$C$446,$C$445))","v":"Med"},null,{"$f":"BG436","v":"Water Supply"},1.3333333333333335,4.666666666666667,3,{"$f":"BH436","v":2.9088571428571428}]
[null,null,"Low",0.5,{"$f":"D444+F446","v":2.166666666666667},null,{"$f":"$D$444","v":0.5},0,null,null,null,null,null,null,null,null,null,null,null,null,null,null,null,null,{"$f":"Hazard!D33","v":"Earthquake"},{"$f":"Hazard!I33","v":1},null,"Low",null,null,{"$f":"Exposure!D33","v":"Water Storage"},{"$f":"Exposure!J33","v":3},null,"High",5,{"$f":"Sensitivity!C33","v":"Financial Resources"},{"$f":"Sensitivity!D33","v":"Sustainable Income"},{"$f":"Sensitivity!J33","v":3},{"$f":"AVERAGE(AL444:AL445)","v":3},{"$f":"IF(AL444<=$D$422,$C$422,IF(AL444=$D$423,$C$423,$C$424))","v":"High"},"Financial Resources",{"$f":"'Adaptive Capacity'!D33","v":"Finance"},{"$f":"'Adaptive Capacity'!J33","v":1},{"$f":"AVERAGE(AQ444:AQ445)","v":1},{"$f":"IF(AQ444<=$D$429,$C$429,IF(AQ444=$D$430,$C$430,$C$431))","v":"Poor"},null,null,"Water Storage",{"$f":"AVERAGE(AL434)-AVERAGE(AQ436)","v":2},null,"High",{"$f":"AVERAGE(Z430,Z433,Z435,Z438,Z440,Z441,Z442,Z443,Z444,Z445)","v":0.82},3,2.5,3.32,null,{"$f":"IF(BC444<=$E$444,$C$444,IF(BC444>=$D$446,$C$446,$C$445))","v":"Med"},null,{"$f":"BG437","v":"Infrastructure"},1.3333333333333335,4.666666666666667,3,{"$f":"BH437","v":2.7684259259259263}]
[null,null,"Med",{"$f":"E444","v":2.166666666666667},{"$f":"D446","v":3.833333333333333},null,{"$f":"$E$446","v":5.5},20,null,null,null,null,null,null,null,null,null,null,null,null,null,null,null,null,{"$f":"Hazard!D34","v":"Volcano"},{"$f":"Hazard!I34","v":1},null,"Low",null,null,{"$f":"Exposure!D34","v":"Ecol & Green Infra"},{"$f":"Exposure!J34","v":3},null,"High",null,null,{"$f":"Sensitivity!D34","v":"Diverse Income"},{"$f":"Sensitivity!J34","v":3},null,{"$f":"IF(AL445<=$D$422,$C$422,IF(AL445=$D$423,$C$423,$C$424))","v":"High"},null,{"$f":"'Adaptive Capacity'!D34","v":"Insurance"},{"$f":"'Adaptive Capacity'!J34","v":1},null,{"$f":"IF(AQ445<=$D$429,$C$429,IF(AQ445=$D$430,$C$430,$C$431))","v":"Poor"},null,null,"Ecol & Green Infra",{"$f":"AVERAGE(AL440,AL441)-AVERAGE(AQ434,AQ440,AQ441)","v":2},null,"High",{"$f":"AVERAGE(Z430,Z433,Z435,Z438,Z440,Z441,Z442,Z443,Z444,Z445)","v":0.82},3,{"$f":"(AW445+3)/2","v":2.5},3.32,null,{"$f":"IF(BC445<=$E$444,$C$444,IF(BC445>=$D$446,$C$446,$C$445))","v":"Med"},"Future Risk"]
[null,null,"High",{"$f":"E446-F446","v":3.833333333333333},5.5,{"$f":"G446","v":1.6666666666666667},{"$f":"(G445-G444)/3","v":1.6666666666666667},6.666666666666667,null,null,null,null,null,null,null,null,null,null,null,null,null,null,null,null,null,null,null,null,null,null,{"$f":"Exposure!D35","v":"Energy"},{"$f":"Exposure!J35","v":1},null,"Low",null,null,null,null,null,null,null,null,null,null,null,null,null,"Energy",{"$f":"AVERAGE(AL436)-AVERAGE(AL435,AQ436,AQ444)","v":1.3333333333333333},null,"High",{"$f":"AVERAGE(Z435,Z438,Z440,Z441,Z442,Z443,Z444,Z445)","v":0.88749999999999996},1,2.1666666666666665,1.6097222222222221,null,{"$f":"IF(BC446<=$E$444,$C$444,IF(BC446>=$D$446,$C$446,$C$445))","v":"Low"},null,{"$f":"BG478","v":"Livelihoods"},{"$f":"$D$444+($F$446/2)","v":1.3333333333333335},{"$f":"$E$446-($F$446/2)","v":4.666666666666667},{"$f":"BH446+$F$446","v":3},{"$f":"BH478","v":2.7208333333333332}]
[null,null,null,null,null,null,null,null,null,null,null,null,null,null,null,null,null,null,null,null,null,null,null,null,null,null,null,null,null,null,{"$f":"Exposure!D36","v":"Roads & Public Infra"},{"$f":"Exposure!J36","v":1},null,"Low",null,null,null,"Average:",{"$f":"AVERAGE(AM422,AM428,AM433,AM439,AM444)","v":3},{"$f":"IF(AM447<=$D$422,$C$422,IF(AM447=$D$423,$C$423,$C$424))","v":"High"},null,null,"Average:",{"$f":"AVERAGE(AR422,AR428,AR433,AR439,AR444)","v":1},{"$f":"IF(AR447<=$D$429,$C$429,IF(AR447=$D$430,$C$430,$C$431))","v":"Poor"},null,null,"Roads & Public Infra",{"$f":"AVERAGE(AL435)-AVERAGE(AQ435,AQ445)","v":2},null,"High",{"$f":"AVERAGE(Z435,Z438,Z440,Z441,Z442,Z443,Z444,Z445)","v":0.88749999999999996},1,2.5,1.7208333333333332,null,{"$f":"IF(BC447<=$E$444,$C$444,IF(BC447>=$D$446,$C$446,$C$445))","v":"Low"},null,{"$f":"BG479","v":"Health & Safety"},{"$f":"$D$444+($F$446/2)","v":1.3333333333333335},{"$f":"$E$446-($F$446/2)","v":4.666666666666667},{"$f":"BH447+$F$446","v":3},{"$f":"BH479","v":1.4533333333333331}]
[null,null,"low Risk is good",null,null,null,null,null,null,null,null,null,null,null,null,null,null,null,null,null,null,null,null,null,null,null,null,null,null,null,null,null,null,null,null,null,null,null,null,null,null,null,null,null,null,null,null,null,null,null,null,null,null,null,null,null,null,null,{"$f":"BG480","v":"Services"},1.3333333333333335,4.666666666666667,3,{"$f":"BH480","v":3.027166666666667}]
[null,null,"Risk",null,null,null,null,null,null,null,null,null,null,null,null,null,null,null,null,null,null,null,null,null,null,null,null,null,null,null,null,null,null,null,null,null,null,null,null,null,null,null,null,null,null,null,null,null,null,null,null,null,null,null,null,null,null,null,{"$f":"BG481","v":"Water Supply"},1.3333333333333335,4.666666666666667,3,{"$f":"BH481","v":2.9088571428571428}]
[null,null,null,"Bottom","Top",null,null,null,null,null,null,null,null,null,null,null,null,null,null,null,null,null,"FUTURE HAZARDS",null,null,null,null,null,"FUTURE EXPOSURE",null,null,null,null,null,"FUTURE SENSITIVITY",null,null,null,null,null,"FUTURE ADAPTIVE CAPACITY",null,null,null,null,"FUTURE VULNERABILITY",null,null,null,null,null,"FUTURE RISK",null,null,null,null,null,null,{"$f":"BG482","v":"Infrastructure"},1.3333333333333335,4.666666666666667,3,{"$f":"BH482","v":2.7684259259259263},"CURRENT"]
[null,null,"Low",0.05,{"$f":"D451+G453","v":0.05},null,null,null,null,null,null,null,null,null,null,null,null,null,null,null,null,null,null,null,null,null,null,null,null,null,null,null,null,null,null,null,null,null,null,null,null,null,null,null,null,null,null,null,null,null,null,null,null,null,null,null,null,"Current Vulnerability",null,null,null,null,null,"VULN"]
[null,null,"Med",{"$f":"E451","v":0.05},{"$f":"D453","v":20.7},null,null,null,null,null,null,null,null,null,null,null,null,null,null,null,null,null,"Hazard",null,null,{"$f":"$Z$421","v":"Rating?"},"Average",null,"Exposure",null,null,{"$f":"$Z$421","v":"Rating?"},"Average",null,"Sensitivity",null,null,{"$f":"$Z$421","v":"Rating?"},"Average",null,"Adaptive Capacity",null,{"$f":"$Z$421","v":"Rating?"},"Average",null,"Vulnerability",null,{"$f":"$Z$421","v":"Rating?"},"Average",null,null,"Hazard","Exp","Vul","Risk",null,null,null,{"$f":"BG420","v":"Livelihoods"},-1.33,1.33,0,{"$f":"BH420","v":2}]
[null,null,"High",{"$f":"E453-G453","v":20.7},20.7,null,null,null,null,null,null,null,null,null,null,null,null,null,null,null,null,null,1,{"$f":"Hazard!C41","v":"Temperature"},{"$f":"Hazard!D41","v":"Seasons"},{"$f":"Hazard!I41","v":3},{"$f":"AVERAGE(Z453:Z455)","v":2.3333333333333335},{"$f":"IF(Z453<=$D$422,$C$422,IF(Z453=$D$423,$C$423,$C$424))","v":"High"},{"$f":"AC422","v":1},"Livelihoods","Food security",{"$f":"Exposure!J43","v":1},{"$f":"AVERAGE(AF453:AF455)","v":1},{"$f":"IF(AF453<=$D$422,$C$422,IF(AF453=$D$423,$C$423,$C$424))","v":"Low"},{"$f":"AI422","v":1},"Human","Diverse Livelihoods",{"$f":"Sensitivity!J41","v":3},{"$f":"AVERAGE(AL453:AL457)","v":3},{"$f":"IF(AL453<=$D$422,$C$422,IF(AL453=$D$423,$C$423,$C$424))","v":"High"},{"$f":"AJ453","v":"Human"},{"$f":"AP422","v":"Climate Info"},{"$f":"'Adaptive Capacity'!J41","v":1},{"$f":"AVERAGE(AQ453:AQ457)","v":1},{"$f":"IF(AQ453<=$D$429,$C$429,IF(AQ453=$D$430,$C$430,$C$431))","v":"Poor"},{"$f":"AC453","v":1},{"$f":"AU422","v":"Livelihoods"},{"$f":"AV422","v":"Food security"},{"$f":"AVERAGE(AL453,AL454,AL455,AL456,AL459,AL460,AL475,AL476)-AVERAGE(AQ453,AQ456,AQ464,AQ475)","v":2},{"$f":"AVERAGE(AW453:AW455)","v":2},{"$f":"IF(AW453<=$E$436,$C$436,IF(AW453>=$D$438,$C$438,$C$437))","v":"High"},{"$f":"AVERAGE(Z453,Z454,Z455,Z457,Z458,Z459,Z461,Z464)","v":1.8875},{"$f":"AF453","v":1},{"$f":"(AW453+3)/2","v":2.5},{"$f":"AZ453+((BA453*BB453)/3)","v":2.7208333333333332},{"$f":"AVERAGE(BC453:BC455)","v":2.7208333333333332},{"$f":"IF(BC453<=$E$444,$C$444,IF(BC453>=$D$446,$C$446,$C$445))","v":"Med"},null,{"$f":"BG421","v":"Health & Safety"},-1.33,1.33,0,{"$f":"BH421","v":2}]
[null,null,null,null,null,null,null,null,null,null,null,null,null,null,null,null,null,null,null,null,null,null,null,null,{"$f":"Hazard!D42","v":"Annual Trends"},{"$f":"Hazard!I42","v":3},null,{"$f":"IF(Z454<=$D$422,$C$422,IF(Z454=$D$423,$C$423,$C$424))","v":"High"},null,null,"Crops",{"$f":"Exposure!J44","v":1},null,{"$f":"IF(AF454<=$D$422,$C$422,IF(AF454=$D$423,$C$423,$C$424))","v":"Low"},null,null,"Climate Information",{"$f":"Sensitivity!J42","v":3},null,{"$f":"IF(AL454<=$D$422,$C$422,IF(AL454=$D$423,$C$423,$C$424))","v":"High"},null,"Climate Smart Agr",{"$f":"'Adaptive Capacity'!J42","v":1},null,{"$f":"IF(AQ454<=$D$429,$C$429,IF(AQ454=$D$430,$C$430,$C$431))","v":"Poor"},null,null,{"$f":"AV423","v":"Crops"},{"$f":"AVERAGE(AL454,AL455,AL456,AL459,AL460,AL473)-AVERAGE(AQ454,AQ456,AQ464,AQ473)","v":2},null,{"$f":"IF(AW454<=$E$436,$C$436,IF(AW454>=$D$438,$C$438,$C$437))","v":"High"},{"$f":"AVERAGE(Z453,Z454,Z455,Z457,Z458,Z459,Z461,Z464)","v":1.8875},{"$f":"AF454","v":1},{"$f":"(AW454+3)/2","v":2.5},{"$f":"AZ454+((BA454*BB454)/3)","v":2.7208333333333332},null,{"$f":"IF(BC454<=$E$444,$C$444,IF(BC454>=$D$446,$C$446,$C$445))","v":"Med"},null,{"$f":"BG422","v":"Services"},-1.33,1.33,0,{"$f":"BH422","v":2}]
[null,null,null,null,null,null,null,null,null,null,null,null,null,null,null,null,null,null,null,null,null,null,null,null,{"$f":"Hazard!D43","v":"Changes"},{"$f":"Hazard!I43","v":1},null,{"$f":"IF(Z455<=$D$422,$C$422,IF(Z455=$D$423,$C$423,$C$424))","v":"Low"},null,null,"Livestock",{"$f":"Exposure!J45","v":1},null,"Low",null,null,"Agric Information",{"$f":"Sensitivity!J43","v":3},null,{"$f":"IF(AL455<=$D$422,$C$422,IF(AL455=$D$423,$C$423,$C$424))","v":"High"},null,"EWS Info",{"$f":"'Adaptive Capacity'!J43","v":1},null,{"$f":"IF(AQ455<=$D$429,$C$429,IF(AQ455=$D$430,$C$430,$C$431))","v":"Poor"},null,null,"Livestock",{"$f":"AVERAGE(AL454,AL455,AL456,AL459,AL460,AL473)-AVERAGE(AQ454,AQ456,AQ464,AQ473)","v":2},null,{"$f":"IF(AW455<=$E$436,$C$436,IF(AW455>=$D$438,$C$438,$C$437))","v":"High"},{"$f":"AVERAGE(Z453,Z454,Z455,Z457,Z458,Z459,Z461,Z464)","v":1.8875},{"$f":"AF455","v":1},2.5,2.7208333333333332,null,{"$f":"IF(BC455<=$E$444,$C$444,IF(BC455>=$D$446,$C$446,$C$445))","v":"Med"},null,{"$f":"BG423","v":"Water Supply"},-1.33,1.33,0,{"$f":"BH423","v":2}]
[null,null,null,null,null,null,null,null,null,null,null,null,null,null,null,null,null,null,null,null,null,null,{"$f":"\" \"","v":" "},{"$f":"\" \"","v":" "},{"$f":"\" \"","v":" "},null,null,null," "," "," ",{"$f":"Exposure!J46","v":""},null,null,null,null,"Women",{"$f":"Sensitivity!J44","v":3},null,{"$f":"IF(AL456<=$D$422,$C$422,IF(AL456=$D$423,$C$423,$C$424))","v":"High"},null,"Women",{"$f":"'Adaptive Capacity'!J44","v":1},null,{"$f":"IF(AQ456<=$D$429,$C$429,IF(AQ456=$D$430,$C$430,$C$431))","v":"Poor"},{"$f":"AC456","v":" "},{"$f":"AU425","v":" "}," ",null,null,null,null,null,null,null,null,null,null,{"$f":"BG424","v":"Infrastructure"},-1.33,1.33,0,{"$f":"BH424","v":1.8888888888888891}]
[null,null,null,null,null,null,null,null,null,null,null,null,null,null,null,null,null,null,null,null,null,null,2,{"$f":"Hazard!C45","v":"Rainfall"},{"$f":"Hazard!D45","v":"Seasons"},{"$f":"Hazard!I45","v":3},{"$f":"AVERAGE(Z457:Z459)","v":2.3333333333333335},{"$f":"IF(Z457<=$D$422,$C$422,IF(Z457=$D$423,$C$423,$C$424))","v":"High"},2,"Health & Safety","Water Borne Diseases ",{"$f":"Exposure!J47","v":1},{"$f":"AVERAGE(AF457:AF459)","v":1},{"$f":"IF(AF457<=$D$422,$C$422,IF(AF457=$D$423,$C$423,$C$424))","v":"Low"},null,null,"Health",{"$f":"Sensitivity!J45","v":3},null,{"$f":"IF(AL457<=$D$422,$C$422,IF(AL457=$D$423,$C$423,$C$424))","v":"High"},null,"Health Awareness",{"$f":"'Adaptive Capacity'!J45","v":1},null,{"$f":"IF(AQ457<=$D$429,$C$429,IF(AQ457=$D$430,$C$430,$C$431))","v":"Poor"},{"$f":"AC457","v":2},{"$f":"AU426","v":"Health & Safety"},"Water Borne Diseases ",{"$f":"AVERAGE(AL457,AL462,AL471,AL472)-AVERAGE(AQ457,AQ462,AQ464,AQ471,AQ472)","v":2},{"$f":"AVERAGE(AW457:AW459)","v":2},{"$f":"IF(AW457<=$E$436,$C$436,IF(AW457>=$D$438,$C$438,$C$437))","v":"High"},{"$f":"AVERAGE(Z455,Z459,Z461,Z464,Z466,Z469)","v":0.69999999999999984},{"$f":"AF457","v":1},{"$f":"(AW457+3)/2","v":2.5},{"$f":"AZ457+((BA457*BB457)/3)","v":1.5333333333333332},{"$f":"AVERAGE(BC457:BC459)","v":1.4533333333333331},{"$f":"IF(BC457<=$E$444,$C$444,IF(BC457>=$D$446,$C$446,$C$445))","v":"Low"},"Future Vulnerability"]
[null,null,null,null,null,null,null,null,null,null,null,null,null,null,null,null,null,null,null,null,null,null,null,null,{"$f":"Hazard!D46","v":"Annual Trends"},{"$f":"Hazard!I46","v":3},null,{"$f":"IF(Z458<=$D$422,$C$422,IF(Z458=$D$423,$C$423,$C$424))","v":"High"},null,null,"Vector Diseases",{"$f":"Exposure!J48","v":1},null,{"$f":"IF(AF458<=$D$422,$C$422,IF(AF458=$D$423,$C$423,$C$424))","v":"Low"}," "," "," ",{"$f":"Sensitivity!J46","v":""},null,null," "," ",{"$f":"'Adaptive Capacity'!J46","v":""},null,null,null,null,"Vector Diseases",{"$f":"AVERAGE(AL457,AL462,AL471,AL472)-AVERAGE(AQ457,AQ462,AQ464,AQ471,AQ472)","v":2},null,{"$f":"IF(AW458<=$E$436,$C$436,IF(AW458>=$D$438,$C$438,$C$437))","v":"High"},{"$f":"AVERAGE(Z455,Z459,Z461,Z464,Z466,Z469)","v":0.69999999999999984},{"$f":"AF458","v":1},{"$f":"(AW458+3)/2","v":2.5},{"$f":"AZ458+((BA458*BB458)/3)","v":1.5333333333333332},null,{"$f":"IF(BC458<=$E$444,$C$444,IF(BC458>=$D$446,$C$446,$C$445))","v":"Low"},null,{"$f":"BG452","v":"Livelihoods"},-1.33,1.33,0,{"$f":"$AX$453","v":2}]
[null,null,null,null,null,null,null,null,null,null,null,null,null,null,null,null,null,null,null,null,null,null,null,null,{"$f":"Hazard!D47","v":"Changes"},{"$f":"Hazard!I47","v":1},null,{"$f":"IF(Z459<=$D$422,$C$422,IF(Z459=$D$423,$C$423,$C$424))","v":"Low"},null,null,"Safety",{"$f":"Exposure!J49","v":1},null,"Low",2,"Institutions","Water user forums",{"$f":"Sensitivity!J47","v":3},{"$f":"AVERAGE(AL459:AL462)","v":3},{"$f":"IF(AL459<=$D$422,$C$422,IF(AL459=$D$423,$C$423,$C$424))","v":"High"},"Institutions","EWS",{"$f":"'Adaptive Capacity'!J47","v":1},{"$f":"AVERAGE(AQ459:AQ462)","v":1},{"$f":"IF(AQ459<=$D$429,$C$429,IF(AQ459=$D$430,$C$430,$C$431))","v":"Poor"},null,null,"Safety",{"$f":"AVERAGE(AL454,AL461)-AVERAGE(AQ453,AQ455,AQ459,AQ476)","v":2},null,{"$f":"IF(AW459<=$E$436,$C$436,IF(AW459>=$D$438,$C$438,$C$437))","v":"High"},{"$f":"AVERAGE(Z459,Z466,Z467,Z468,Z469)","v":0.46000000000000008},{"$f":"AF459","v":1},2.5,1.2933333333333334,null,{"$f":"IF(BC459<=$E$444,$C$444,IF(BC459>=$D$446,$C$446,$C$445))","v":"Low"},null,"Health & Safety",-1.33,1.33,0,{"$f":"$AX$457","v":2}]
[null,null,null,null,null,null,null,null,null,null,null,null,null,null,null,null,null,null,null,null,null,null,{"$f":"\" \"","v":" "},{"$f":"\" \"","v":" "},{"$f":"\" \"","v":" "},null,null,null," "," "," ",{"$f":"Exposure!J50","v":""},null,null,null,null,"Farming forums",{"$f":"Sensitivity!J48","v":3},null,{"$f":"IF(AL460<=$D$422,$C$422,IF(AL460=$D$423,$C$423,$C$424))","v":"High"},null,"Engagement",{"$f":"'Adaptive Capacity'!J48","v":1},null,{"$f":"IF(AQ460<=$D$429,$C$429,IF(AQ460=$D$430,$C$430,$C$431))","v":"Poor"},{"$f":"AC460","v":" "},{"$f":"AU429","v":" "}," ",null,null,null,null,null,null,null,null,null,null,"Services",-1.33,1.33,0,{"$f":"$AX$461","v":2}]
[null,null,null,null,null,null,null,null,null,null,null,null,null,null,null,null,null,null,null,null,null,null,3,{"$f":"Hazard!C49","v":"Droughts"},{"$f":"Hazard!D49","v":"Events"},{"$f":"Hazard!I49","v":1},{"$f":"AVERAGE(Z461:Z464)","v":0.32500000000000007},{"$f":"IF(Z461<=$D$422,$C$422,IF(Z461=$D$423,$C$423,$C$424))","v":"Low"},3,"Services","Housing",{"$f":"Exposure!J51","v":3},{"$f":"AVERAGE(AF461:AF465)","v":2.6},{"$f":"IF(AF461<=$D$422,$C$422,IF(AF461=$D$423,$C$423,$C$424))","v":"High"},null,null,"Weather data",{"$f":"Sensitivity!J49","v":3},null,{"$f":"IF(AL461<=$D$422,$C$422,IF(AL461=$D$423,$C$423,$C$424))","v":"High"},null,"Resources",{"$f":"'Adaptive Capacity'!J49","v":1},null,{"$f":"IF(AQ461<=$D$429,$C$429,IF(AQ461=$D$430,$C$430,$C$431))","v":"Poor"},{"$f":"AC461","v":3},{"$f":"AU430","v":"Services"},"Housing",{"$f":"AVERAGE(AL468,AL475,AL476)-AVERAGE(AQ460,AQ476)","v":2},{"$f":"AVERAGE(AW461:AW465)","v":2},{"$f":"IF(AW461<=$E$436,$C$436,IF(AW461>=$D$438,$C$438,$C$437))","v":"High"},{"$f":"AVERAGE(Z466,Z469,Z471,Z472,Z473,Z474,Z475,Z476)","v":0.88749999999999996},{"$f":"AF461","v":3},{"$f":"(AW461+3)/2","v":2.5},{"$f":"AZ461+((BA461*BB461)/3)","v":3.3875000000000002},{"$f":"AVERAGE(BC461:BC465)","v":3.027166666666667},{"$f":"IF(BC461<=$E$444,$C$444,IF(BC461>=$D$446,$C$446,$C$445))","v":"Med"},null,"Water Supply",-1.33,1.33,0,{"$f":"$AX$467","v":2}]
[null,null,null,null,null,null,null,null,null,null,null,null,null,null,null,null,null,null,null,null,null,null,null,null,{"$f":"Hazard!D50","v":"Timing"},{"$f":"Hazard!I50","v":0.1},null,{"$f":"IF(Z462<=$D$422,$C$422,IF(Z462=$D$423,$C$423,$C$424))","v":"Low"},null,null,"Land",{"$f":"Exposure!J52","v":3},null,{"$f":"IF(AF462<=$D$422,$C$422,IF(AF462=$D$423,$C$423,$C$424))","v":"High"},null,null,"Health",{"$f":"Sensitivity!J50","v":3},null,{"$f":"IF(AL462<=$D$422,$C$422,IF(AL462=$D$423,$C$423,$C$424))","v":"High"},null,"Health",{"$f":"'Adaptive Capacity'!J50","v":1},null,{"$f":"IF(AQ462<=$D$429,$C$429,IF(AQ462=$D$430,$C$430,$C$431))","v":"Poor"},null,null,"Land",{"$f":"AVERAGE(AL454,AL470)-AVERAGE(AQ470,AQ475,AQ476)","v":2},null,{"$f":"IF(AW462<=$E$436,$C$436,IF(AW462>=$D$438,$C$438,$C$437))","v":"High"},{"$f":"AVERAGE(Z466,Z469,Z471,Z472,Z473,Z474,Z475,Z476)","v":0.88749999999999996},{"$f":"AF462","v":3},{"$f":"(AW462+3)/2","v":2.5},{"$f":"AZ462+((BA462*BB462)/3)","v":3.3875000000000002},null,{"$f":"IF(BC462<=$E$444,$C$444,IF(BC462>=$D$446,$C$446,$C$445))","v":"Med"},null,"Infrastructure",-1.33,1.33,0,{"$f":"$AX$473","v":1.8888888888888891}]
[null,null,null,null,null,null,null,null,null,null,null,null,null,null,null,null,null,null,null,null,null,null,null,null,{"$f":"Hazard!D51","v":"Extent"},{"$f":"Hazard!I51","v":0.1},null,{"$f":"IF(Z463<=$D$422,$C$422,IF(Z463=$D$423,$C$423,$C$424))","v":"Low"},null,null,"Community",{"$f":"Exposure!J53","v":1},null,{"$f":"IF(AF463<=$D$422,$C$422,IF(AF463=$D$423,$C$423,$C$424))","v":"Low"}," "," "," ",{"$f":"Sensitivity!J51","v":""},null,null," "," ",{"$f":"'Adaptive Capacity'!J51","v":""},null,null,null,null,"Community",{"$f":"AVERAGE(AL454,AL465:AL468)-AVERAGE(AQ460,AQ461)","v":2},null,{"$f":"IF(AW463<=$E$436,$C$436,IF(AW463>=$D$438,$C$438,$C$437))","v":"High"},{"$f":"AVERAGE(Z466,Z469,Z471,Z472,Z473,Z474,Z475,Z476)","v":0.88749999999999996},{"$f":"AF463","v":1},2.5,1.7208333333333332,null,{"$f":"IF(BC463<=$E$444,$C$444,IF(BC463>=$D$446,$C$446,$C$445))","v":"Low"}]
[null,null,null,null,null,null,null,null,null,null,null,null,null,null,null,null,null,null,null,null,null,null,null,null,{"$f":"Hazard!D52","v":"Effect"},{"$f":"Hazard!I52","v":0.1},null,{"$f":"IF(Z464<=$D$422,$C$422,IF(Z464=$D$423,$C$423,$C$424))","v":"Low"},null,null,"Sanitation",{"$f":"Exposure!J54","v":3},null,{"$f":"IF(AF464<=$D$422,$C$422,IF(AF464=$D$423,$C$423,$C$424))","v":"High"},3,"Infrastructure","Water Storage",{"$f":"Sensitivity!J52","v":3},{"$f":"AVERAGE(AL464:AL468)","v":3},{"$f":"IF(AL464<=$D$422,$C$422,IF(AL464=$D$423,$C$423,$C$424))","v":"High"},"Infrastructure","Water Storage",{"$f":"'Adaptive Capacity'!J52","v":1},{"$f":"AVERAGE(AQ464:AQ468)","v":1},{"$f":"IF(AQ464<=$D$429,$C$429,IF(AQ464=$D$430,$C$430,$C$431))","v":"Poor"},null,null,"Sanitation",{"$f":"AVERAGE(AL457,AL468,AL475)-AVERAGE(AQ462,AQ476)","v":2},null,{"$f":"IF(AW464<=$E$436,$C$436,IF(AW464>=$D$438,$C$438,$C$437))","v":"High"},{"$f":"AVERAGE(Z461,Z464,Z466,Z469,Z471,Z472,Z473,Z474,Z475,Z476)","v":0.82},{"$f":"AF464","v":3},2.5,{"$f":"AZ464+((BA464*BB464)/3)","v":3.32},null,{"$f":"IF(BC464<=$E$444,$C$444,IF(BC464>=$D$446,$C$446,$C$445))","v":"Med"},"FUTURE VULNERABILITY"]
[null,null,null,null,null,null,null,null,null,null,null,null,null,null,null,null,null,null,null,null,null,null,{"$f":"\" \"","v":" "},{"$f":"\" \"","v":" "},{"$f":"\" \"","v":" "},null,null,null,null,null,"Energy",{"$f":"Exposure!J55","v":3},null,{"$f":"IF(AF465<=$D$422,$C$422,IF(AF465=$D$423,$C$423,$C$424))","v":"High"},null,null,"Water Supply",{"$f":"Sensitivity!J53","v":3},null,{"$f":"IF(AL465<=$D$422,$C$422,IF(AL465=$D$423,$C$423,$C$424))","v":"High"},null,"Green Infra",{"$f":"'Adaptive Capacity'!J53","v":1},null,{"$f":"IF(AQ465<=$D$429,$C$429,IF(AQ465=$D$430,$C$430,$C$431))","v":"Poor"},null,null,"Energy",{"$f":"AVERAGE(AL467,AL475,AL476)-AVERAGE(AQ468,AQ475)","v":2},null,{"$f":"IF(AW465<=$E$436,$C$436,IF(AW465>=$D$438,$C$438,$C$437))","v":"High"},{"$f":"AVERAGE(Z461,Z464,Z466,Z469,Z471,Z472,Z473,Z474,Z475,Z476)","v":0.82},{"$f":"AF465","v":3},2.5,3.32,null,{"$f":"IF(BC465<=$E$444,$C$444,IF(BC465>=$D$446,$C$446,$C$445))","v":"Med"},null,{"$f":"$AU$422","v":"Livelihoods"},{"$f":"$AX$453","v":2},{"$f":"IF(BH465<=$E$436,$C$436,IF(BH465>=$D$438,$C$438,$C$437))","v":"High"},null,null,"FUTURE"]
[null,null,null,null,null,null,null,null,null,null,null,null,null,null,null,null,null,null,null,null,null,null,4,{"$f":"Hazard!C54","v":"Floods"},{"$f":"Hazard!D54","v":"Events"},{"$f":"Hazard!I54","v":1},{"$f":"AVERAGE(Z466:Z469)","v":0.32500000000000007},{"$f":"IF(Z466<=$D$422,$C$422,IF(Z466=$D$423,$C$423,$C$424))","v":"Low"}," "," "," ",{"$f":"Exposure!J56","v":""},null,null,null,null,"Roads & Transport",{"$f":"Sensitivity!J54","v":3},null,{"$f":"IF(AL466<=$D$422,$C$422,IF(AL466=$D$423,$C$423,$C$424))","v":"High"},null,"Roads & Transport",{"$f":"'Adaptive Capacity'!J54","v":1},null,{"$f":"IF(AQ466<=$D$429,$C$429,IF(AQ466=$D$430,$C$430,$C$431))","v":"Poor"},{"$f":"AC466","v":" "},{"$f":"AU435","v":" "},null,null,null,null,null,null,null,null,null,null,null,{"$f":"$AU$426","v":"Health & Safety"},{"$f":"$AX$457","v":2},{"$f":"IF(BH466<=$E$436,$C$436,IF(BH466>=$D$438,$C$438,$C$437))","v":"High"},null,null,"VULN"]
[null,null,null,null,null,null,null,null,null,null,null,null,null,null,null,null,null,null,null,null,null,null,null,null,{"$f":"Hazard!D55","v":"Timing"},{"$f":"Hazard!I55","v":0.1},null,{"$f":"IF(Z467<=$D$422,$C$422,IF(Z467=$D$423,$C$423,$C$424))","v":"Low"},4,"Water Supply","Access",{"$f":"Exposure!J57","v":3},{"$f":"AVERAGE(AF467:AF471)","v":1.8},{"$f":"IF(AF467<=$D$422,$C$422,IF(AF467=$D$423,$C$423,$C$424))","v":"High"},null,null,"Energy",{"$f":"Sensitivity!J55","v":3},null,{"$f":"IF(AL467<=$D$422,$C$422,IF(AL467=$D$423,$C$423,$C$424))","v":"High"},null,"Maintenance",{"$f":"'Adaptive Capacity'!J55","v":1},null,{"$f":"IF(AQ467<=$D$429,$C$429,IF(AQ467=$D$430,$C$430,$C$431))","v":"Poor"},{"$f":"AC467","v":4},{"$f":"AU436","v":"Water Supply"},{"$f":"AV436","v":"Access"},{"$f":"AVERAGE(AL454,AL464,AL471,AL475,AL476)-AVERAGE(AQ453,AQ464,AQ471,AQ475)","v":2},{"$f":"AVERAGE(AW467:AW471)","v":2},{"$f":"IF(AW467<=$E$436,$C$436,IF(AW467>=$D$438,$C$438,$C$437))","v":"High"},{"$f":"AVERAGE(Z457,Z458,Z459,Z461,Z462,Z463,Z464)","v":1.1857142857142855},{"$f":"AF467","v":3},{"$f":"(AW467+3)/2","v":2.5},{"$f":"AZ467+((BA467*BB467)/3)","v":3.6857142857142855},{"$f":"AVERAGE(BC467:BC471)","v":2.9088571428571428},{"$f":"IF(BC467<=$E$444,$C$444,IF(BC467>=$D$446,$C$446,$C$445))","v":"Med"},null,{"$f":"$AU$430","v":"Services"},{"$f":"$AX$461","v":2},{"$f":"IF(BH467<=$E$436,$C$436,IF(BH467>=$D$438,$C$438,$C$437))","v":"High"}]
[null,null,null,null,null,null,null,null,null,null,null,null,null,null,null,null,null,null,null,null,null,null,null,null,{"$f":"Hazard!D56","v":"Extent"},{"$f":"Hazard!I56","v":0.1},null,{"$f":"IF(Z468<=$D$422,$C$422,IF(Z468=$D$423,$C$423,$C$424))","v":"Low"},null,null,"Quality",{"$f":"Exposure!J58","v":3},null,{"$f":"IF(AF468<=$D$422,$C$422,IF(AF468=$D$423,$C$423,$C$424))","v":"High"},null,null,"Housing / Shelter",{"$f":"Sensitivity!J56","v":3},null,{"$f":"IF(AL468<=$D$422,$C$422,IF(AL468=$D$423,$C$423,$C$424))","v":"High"},null,"Housing / Shelter",{"$f":"'Adaptive Capacity'!J56","v":1},null,{"$f":"IF(AQ468<=$D$429,$C$429,IF(AQ468=$D$430,$C$430,$C$431))","v":"Poor"},null,null,"Quality",{"$f":"AVERAGE(AL454,AL464,AL471,AL475,AL476)-AVERAGE(AQ453,AQ462,AQ472,AQ475)","v":2},null,{"$f":"IF(AW468<=$E$436,$C$436,IF(AW468>=$D$438,$C$438,$C$437))","v":"High"},{"$f":"AVERAGE(Z453,Z454,Z455,Z457,Z458,Z459,Z461)","v":2.1428571428571428},{"$f":"AF468","v":3},{"$f":"(AW468+3)/2","v":2.5},{"$f":"AZ468+((BA468*BB468)/3)","v":4.6428571428571423},null,{"$f":"IF(BC468<=$E$444,$C$444,IF(BC468>=$D$446,$C$446,$C$445))","v":"High"},null,{"$f":"$AU$436","v":"Water Supply"},{"$f":"$AX$467","v":2},{"$f":"IF(BH468<=$E$436,$C$436,IF(BH468>=$D$438,$C$438,$C$437))","v":"High"}]
[null,null,null,null,null,null,null,null,null,null,null,null,null,null,null,null,null,null,null,null,null,null,null,null,{"$f":"Hazard!D57","v":"Effect"},{"$f":"Hazard!I57","v":0.1},null,{"$f":"IF(Z469<=$D$422,$C$422,IF(Z469=$D$423,$C$423,$C$424))","v":"Low"},null,null,"Droughts",{"$f":"Exposure!J59","v":1},null,"Low"," "," "," ",{"$f":"Sensitivity!J57","v":""},null,null," "," ",{"$f":"'Adaptive Capacity'!J57","v":""},null,null,null,null,"Droughts",{"$f":"AVERAGE(AL454,AL461,AL475,AL476)-AVERAGE(AQ453,AQ455,AQ460,AQ461,AQ464,AQ476)","v":2},null,{"$f":"IF(AW469<=$E$436,$C$436,IF(AW469>=$D$438,$C$438,$C$437))","v":"High"},{"$f":"AVERAGE(Z453,Z454,Z455,Z457,Z458,Z459,Z461,Z462,Z463,Z464)","v":1.5299999999999998},{"$f":"AF469","v":1},2.5,2.3633333333333333,null,{"$f":"IF(BC469<=$E$444,$C$444,IF(BC469>=$D$446,$C$446,$C$445))","v":"Med"},null,{"$f":"$AU$442","v":"Infrastructure"},{"$f":"$AX$473","v":1.8888888888888891},{"$f":"IF(BH469<=$E$436,$C$436,IF(BH469>=$D$438,$C$438,$C$437))","v":"High"}]
[null,null,null,null,null,null,null,null,null,null,null,null,null,null,null,null,null,null,null,null,null,null,{"$f":"\" \"","v":" "},{"$f":"\" \"","v":" "},{"$f":"\" \"","v":" "},null,null,null,null,null,"Floods",{"$f":"Exposure!J60","v":1},null,"Low",4,"Natural Resources","Land",{"$f":"Sensitivity!J58","v":3},{"$f":"AVERAGE(AL470:AL473)","v":3},{"$f":"IF(AL470<=$D$422,$C$422,IF(AL470=$D$423,$C$423,$C$424))","v":"High"},"Natural Resources","Land",{"$f":"'Adaptive Capacity'!J58","v":1},{"$f":"AVERAGE(AQ470:AQ473)","v":1},{"$f":"IF(AQ470<=$D$429,$C$429,IF(AQ470=$D$430,$C$430,$C$431))","v":"Poor"},null,null,"Floods",{"$f":"AVERAGE(AL454,AL461,AL475,AL476)-AVERAGE(AQ453,AQ455,AQ459,AQ460,AQ461,AQ476)","v":2},null,{"$f":"IF(AW470<=$E$436,$C$436,IF(AW470>=$D$438,$C$438,$C$437))","v":"High"},{"$f":"AVERAGE(Z457,Z458,Z459,Z466,Z467,Z468,Z469)","v":1.1857142857142855},{"$f":"AF470","v":1},2.5,2.019047619047619,null,{"$f":"IF(BC470<=$E$444,$C$444,IF(BC470>=$D$446,$C$446,$C$445))","v":"Low"}]
[null,null,null,null,null,null,null,null,null,null,null,null,null,null,null,null,null,null,null,null,null,null,5,{"$f":"Hazard!C59","v":"Other Factors"},{"$f":"Hazard!D59","v":"Fire"},{"$f":"Hazard!I59","v":1},{"$f":"AVERAGE(Z471:Z476)","v":1},{"$f":"IF(Z471<=$D$422,$C$422,IF(Z471=$D$423,$C$423,$C$424))","v":"Low"},null,null,"Other Climate Hazards",{"$f":"Exposure!J61","v":1},null,"Low",null,null,"Water Resources",{"$f":"Sensitivity!J59","v":3},null,{"$f":"IF(AL471<=$D$422,$C$422,IF(AL471=$D$423,$C$423,$C$424))","v":"High"},null,"Water Resources",{"$f":"'Adaptive Capacity'!J59","v":1},null,{"$f":"IF(AQ471<=$D$429,$C$429,IF(AQ471=$D$430,$C$430,$C$431))","v":"Poor"},null,null,"Other Climate Hazards",{"$f":"AVERAGE(AL454,AL461,AL475,AL476)-AVERAGE(AQ453,AQ455,AQ459,AQ460,AQ461,AQ476)","v":2},null,{"$f":"IF(AW471<=$E$436,$C$436,IF(AW471>=$D$438,$C$438,$C$437))","v":"High"},{"$f":"AVERAGE(Z471,Z472,Z473,Z474,Z475,Z476)","v":1},{"$f":"AF471","v":1},2.5,1.8333333333333335,null,{"$f":"IF(BC471<=$E$444,$C$444,IF(BC471>=$D$446,$C$446,$C$445))","v":"Low"},null,{"$f":"$AH$279","v":"Human"},{"$f":"AM453-AR453","v":2},{"$f":"IF(BH471<=$E$436,$C$436,IF(BH471>=$D$438,$C$438,$C$437))","v":"High"}]
[null,null,null,null,null,null,null,null,null,null,null,null,null,null,null,null,null,null,null,null,null,null,null,null,{"$f":"Hazard!D60","v":"Snow"},{"$f":"Hazard!I60","v":1},null,"Low"," "," "," ",{"$f":"Exposure!J62","v":""},null,null,null,null,"Ecosystems",{"$f":"Sensitivity!J60","v":3},null,{"$f":"IF(AL472<=$D$422,$C$422,IF(AL472=$D$423,$C$423,$C$424))","v":"High"},null,"Ecosystems",{"$f":"'Adaptive Capacity'!J60","v":1},null,{"$f":"IF(AQ472<=$D$429,$C$429,IF(AQ472=$D$430,$C$430,$C$431))","v":"Poor"},{"$f":"AC472","v":" "},{"$f":"AU441","v":" "}," ",null,null,null,null,null,null,null,null,null,null,{"$f":"$AH$285","v":"Institutions"},{"$f":"AM459-AR459","v":2},{"$f":"IF(BH472<=$E$436,$C$436,IF(BH472>=$D$438,$C$438,$C$437))","v":"High"}]
[null,null,null,null,null,null,null,null,null,null,null,null,null,null,null,null,null,null,null,null,null,null,null,null,{"$f":"Hazard!D61","v":"Hail"},{"$f":"Hazard!I61","v":1},null,"Low",5,"Infrastructure","Water Supply",{"$f":"Exposure!J63","v":3},{"$f":"AVERAGE(AF473:AF478)","v":2.3333333333333335},{"$f":"IF(AF473<=$D$422,$C$422,IF(AF473=$D$423,$C$423,$C$424))","v":"High"},null,null,"Soil",{"$f":"Sensitivity!J61","v":3},null,{"$f":"IF(AL473<=$D$422,$C$422,IF(AL473=$D$423,$C$423,$C$424))","v":"High"},null,"Soil",{"$f":"'Adaptive Capacity'!J61","v":1},null,{"$f":"IF(AQ473<=$D$429,$C$429,IF(AQ473=$D$430,$C$430,$C$431))","v":"Poor"},{"$f":"AC473","v":5},{"$f":"AU442","v":"Infrastructure"},"Water Supply",{"$f":"AVERAGE(AL465,AL471)-AVERAGE(AQ467,AQ471)","v":2},{"$f":"AVERAGE(AW473:AW478)","v":1.8888888888888891},{"$f":"IF(AW473<=$E$436,$C$436,IF(AW473>=$D$438,$C$438,$C$437))","v":"High"},{"$f":"AVERAGE(Z461,Z464,Z466,Z469,Z471,Z472,Z473,Z474,Z475,Z476)","v":0.82},{"$f":"AF473","v":3},{"$f":"(AW473+3)/2","v":2.5},{"$f":"AZ473+((BA473*BB473)/3)","v":3.32},{"$f":"AVERAGE(BC473:BC478)","v":2.7684259259259263},{"$f":"IF(BC473<=$E$444,$C$444,IF(BC473>=$D$446,$C$446,$C$445))","v":"Med"},null,{"$f":"$AH$290","v":"Infrastructure"},{"$f":"AM464-AR464","v":2},{"$f":"IF(BH473<=$E$436,$C$436,IF(BH473>=$D$438,$C$438,$C$437))","v":"High"}]
[null,null,null,null,null,null,null,null,null,null,null,null,null,null,null,null,null,null,null,null,null,null,null,null,{"$f":"Hazard!D62","v":"Tornado"},{"$f":"Hazard!I62","v":1},null,"Low",null,null,"Water Treatment",{"$f":"Exposure!J64","v":3},null,{"$f":"IF(AF474<=$D$422,$C$422,IF(AF474=$D$423,$C$423,$C$424))","v":"High"}," "," "," ",{"$f":"Sensitivity!J62","v":""},null,null," "," ",{"$f":"'Adaptive Capacity'!J62","v":""},null,null,null,null,"Water Treatment",{"$f":"AVERAGE(AL465,AL471)-AVERAGE(AQ467)","v":2},null,"High",{"$f":"AVERAGE(Z461,Z464,Z466,Z469,Z471,Z472,Z473,Z474,Z475,Z476)","v":0.82},3,{"$f":"(AW474+3)/2","v":2.5},3.32,null,{"$f":"IF(BC474<=$E$444,$C$444,IF(BC474>=$D$446,$C$446,$C$445))","v":"Med"},null,{"$f":"$AH$296","v":"Natural Resources"},{"$f":"AM470-AR470","v":2},{"$f":"IF(BH474<=$E$436,$C$436,IF(BH474>=$D$438,$C$438,$C$437))","v":"High"}]
[null,null,null,null,null,null,null,null,null,null,null,null,null,null,null,null,null,null,null,null,null,null,null,null,{"$f":"Hazard!D63","v":"Earthquake"},{"$f":"Hazard!I63","v":1},null,"Low",null,null,"Water Storage",{"$f":"Exposure!J65","v":3},null,"High",5,"Financial Resources","Sustainable Income",{"$f":"Sensitivity!J63","v":3},{"$f":"AVERAGE(AL475:AL476)","v":3},{"$f":"IF(AL475<=$D$422,$C$422,IF(AL475=$D$423,$C$423,$C$424))","v":"High"},"Financial Resources","Finance",{"$f":"'Adaptive Capacity'!J63","v":1},{"$f":"AVERAGE(AQ475:AQ476)","v":1},{"$f":"IF(AQ475<=$D$429,$C$429,IF(AQ475=$D$430,$C$430,$C$431))","v":"Poor"},null,null,"Water Storage",{"$f":"AVERAGE(AL465)-AVERAGE(AQ467)","v":2},null,"High",{"$f":"AVERAGE(Z461,Z464,Z466,Z469,Z471,Z472,Z473,Z474,Z475,Z476)","v":0.82},3,2.5,3.32,null,{"$f":"IF(BC475<=$E$444,$C$444,IF(BC475>=$D$446,$C$446,$C$445))","v":"Med"},null,{"$f":"$AH$301","v":"Financial Resources"},{"$f":"AM475-AR475","v":2},{"$f":"IF(BH475<=$E$436,$C$436,IF(BH475>=$D$438,$C$438,$C$437))","v":"High"}]
[null,null,null,null,null,null,null,null,null,null,null,null,null,null,null,null,null,null,null,null,null,null,null,null,{"$f":"Hazard!D64","v":"Volcano"},{"$f":"Hazard!I64","v":1},null,"Low",null,null,"Ecol & Green Infra",{"$f":"Exposure!J66","v":3},null,"High",null,null,"Diverse Income",{"$f":"Sensitivity!J64","v":3},null,{"$f":"IF(AL476<=$D$422,$C$422,IF(AL476=$D$423,$C$423,$C$424))","v":"High"},null,"Insurance",{"$f":"'Adaptive Capacity'!J64","v":1},null,{"$f":"IF(AQ476<=$D$429,$C$429,IF(AQ476=$D$430,$C$430,$C$431))","v":"Poor"},null,null,"Ecol & Green Infra",{"$f":"AVERAGE(AL471,AL472)-AVERAGE(AQ465,AQ471,AQ472)","v":2},null,"High",{"$f":"AVERAGE(Z461,Z464,Z466,Z469,Z471,Z472,Z473,Z474,Z475,Z476)","v":0.82},3,{"$f":"(AW476+3)/2","v":2.5},3.32,null,{"$f":"IF(BC476<=$E$444,$C$444,IF(BC476>=$D$446,$C$446,$C$445))","v":"Med"}]
[null,null,null,null,null,null,null,null,null,null,null,null,null,null,null,null,null,null,null,null,null,null,null,null,null,null,null,null,null,null,"Energy",{"$f":"Exposure!J67","v":1},null,"Low",null,null,null,null,null,null,null,null,null,null,null,null,null,"Energy",{"$f":"AVERAGE(AL467)-AVERAGE(AL466,AQ467,AQ475)","v":1.3333333333333333},null,"High",{"$f":"AVERAGE(Z466,Z469,Z471,Z472,Z473,Z474,Z475,Z476)","v":0.88749999999999996},1,2.1666666666666665,1.6097222222222221,null,{"$f":"IF(BC477<=$E$444,$C$444,IF(BC477>=$D$446,$C$446,$C$445))","v":"Low"},"FUTURE RISK"]
[null,null,null,null,null,null,null,null,null,null,null,null,null,null,null,null,null,null,null,null,null,null,null,null,null,null,null,null,null,null,"Roads & Public Infra",{"$f":"Exposure!J68","v":1},null,"Low",null,null,null,"Average:",{"$f":"AVERAGE(AM453,AM459,AM464,AM470,AM475)","v":3},{"$f":"IF(AM478<=$D$422,$C$422,IF(AM478=$D$423,$C$423,$C$424))","v":"High"},null,null,"Average:",{"$f":"AVERAGE(AR453,AR459,AR464,AR470,AR475)","v":1},{"$f":"IF(AR478<=$D$429,$C$429,IF(AR478=$D$430,$C$430,$C$431))","v":"Poor"},null,null,"Roads & Public Infra",{"$f":"AVERAGE(AL466)-AVERAGE(AQ466,AQ476)","v":2},null,"High",{"$f":"AVERAGE(Z466,Z469,Z471,Z472,Z473,Z474,Z475,Z476)","v":0.88749999999999996},1,2.5,1.7208333333333332,null,{"$f":"IF(BC478<=$E$444,$C$444,IF(BC478>=$D$446,$C$446,$C$445))","v":"Low"},null,{"$f":"$AU$422","v":"Livelihoods"},{"$f":"$BD$453","v":2.7208333333333332},{"$f":"IF(BH478<=$E$444,$C$444,IF(BH478>=$D$446,$C$446,$C$445))","v":"Med"}]
[null,null,null,null,null,null,null,null,null,null,null,null,null,null,null,null,null,null,null,null,null,null,null,null,null,null,null,null,null,null,null,null,null,null,null,null,null,null,null,null,null,null,null,null,null,null,null,null,null,null,null,null,null,null,null,null,null,null,{"$f":"$AU$426","v":"Health & Safety"},{"$f":"$BD$457","v":1.4533333333333331},{"$f":"IF(BH479<=$E$444,$C$444,IF(BH479>=$D$446,$C$446,$C$445))","v":"Low"}]
[null,null,null,null,null,null,null,null,null,null,null,null,null,null,null,null,null,null,null,null,null,null,null,null,null,null,null,null,null,null,null,null,null,null,null,null,null,null,null,null,null,null,null,null,null,null,null,null,null,null,null,null,null,null,null,null,null,null,{"$f":"$AU$430","v":"Services"},{"$f":"$BD$461","v":3.027166666666667},{"$f":"IF(BH480<=$E$444,$C$444,IF(BH480>=$D$446,$C$446,$C$445))","v":"Med"}]
[null,null,null,null,null,null,null,null,null,null,null,null,null,null,null,null,null,null,null,null,null,null,null,null,null,null,null,null,null,null,null,null,null,null,null,null,null,null,null,null,null,null,null,null,null,null,null,null,null,null,null,null,null,null,null,null,null,null,{"$f":"$AU$436","v":"Water Supply"},{"$f":"$BD$467","v":2.9088571428571428},{"$f":"IF(BH481<=$E$444,$C$444,IF(BH481>=$D$446,$C$446,$C$445))","v":"Med"}]
[null,null,null,null,null,null,null,null,null,null,null,null,null,null,null,null,null,null,null,null,null,null,null,null,null,null,null,null,null,null,null,null,null,null,null,null,null,null,null,null,null,null,null,null,null,null,null,null,null,null,null,null,null,null,null,null,null,null,{"$f":"$AU$442","v":"Infrastructure"},{"$f":"$BD$473","v":2.7684259259259263},{"$f":"IF(BH482<=$E$444,$C$444,IF(BH482>=$D$446,$C$446,$C$445))","v":"Med"}]

{"sheet":"Responses","index":7,"n_rows":159,"n_cols":44,"rows_kept":159,"cut":false,"hidden":false,"merged":[[36,18,36,45],[37,18,37,45],[39,18,39,45],[40,18,40,45],[60,18,60,45],[55,18,55,45],[56,18,56,45],[57,18,57,45],[58,18,58,45],[18,3,18,6],[18,7,18,10],[18,11,18,14],[18,15,18,18],[18,19,18,22],[19,3,19,22],[16,3,16,22],[16,26,16,45],[24,26,24,28],[24,29,24,32],[24,33,24,35],[24,36,24,38],[24,39,24,42],[24,43,24,45],[22,26,22,29],[22,30,22,33],[22,34,22,37],[22,38,22,41],[22,42,22,45],[23,26,23,29],[23,30,23,33],[23,34,23,37],[23,38,23,41],[23,42,23,45],[23,7,23,10],[23,11,23,14],[23,15,23,18],[23,19,23,22],[18,26,18,29],[18,30,18,33],[18,34,18,37],[18,38,18,41],[18,42,18,45],[19,26,19,45],[20,26,20,32],[20,33,20,38],[20,39,20,45],[21,26,21,32],[21,33,21,38],[21,39,21,45],[129,2,129,8],[129,9,129,14],[129,15,129,21],[130,2,130,8],[130,9,130,14],[130,15,130,21],[20,3,20,9],[20,10,20,15],[20,16,20,22],[21,3,21,9],[21,10,21,15],[21,16,21,22],[24,3,24,5],[24,6,24,9],[24,10,24,12],[24,13,24,15],[24,16,24,19],[24,20,24,22],[22,3,22,6],[22,7,22,10],[22,11,22,14],[22,15,22,18],[22,19,22,22],[23,3,23,6],[133,2,133,4],[133,5,133,8],[133,9,133,11],[133,12,133,14],[133,15,133,18],[133,19,133,21],[131,2,131,5],[131,6,131,9],[131,10,131,13],[131,14,131,17],[131,18,131,21],[132,2,132,5],[132,6,132,9],[132,10,132,13],[132,14,132,17],[132,18,132,21],[127,2,127,4],[127,5,127,8],[127,9,127,11],[127,12,127,14],[127,15,127,18],[127,19,127,21],[125,2,125,5],[125,6,125,9],[125,10,125,13],[125,14,125,17],[125,18,125,21],[126,2,126,5],[126,6,126,9],[126,10,126,13],[126,14,126,17],[126,18,126,21],[121,19,121,21],[123,2,123,8],[123,9,123,14],[123,15,123,21],[124,2,124,8],[124,9,124,14],[124,15,124,21],[120,2,120,5],[120,6,120,9],[120,10,120,13],[120,14,120,17],[120,18,120,21],[121,2,121,4],[121,5,121,8],[121,9,121,11],[121,12,121,14],[121,15,121,18],[119,18,119,21],[114,2,114,5],[114,6,114,9],[114,10,114,13],[114,14,114,17],[114,18,114,21],[117,2,117,8],[117,9,117,14],[117,15,117,21],[110,18,110,21],[112,2,112,5],[112,6,112,9],[112,10,112,13],[112,14,112,17],[112,18,112,21],[41,18,41,45],[118,2,118,8],[118,9,118,14],[118,15,118,21],[59,18,59,45],[49,18,49,45],[50,18,50,45],[51,18,51,45],[52,18,52,45],[53,18,53,45],[43,18,43,45],[44,18,44,45],[45,18,45,45],[46,18,46,45],[47,18,47,45],[51,5,51,7],[51,8,51,10],[52,5,52,7],[33,11,33,13],[33,14,33,16],[33,5,33,7],[33,8,33,10],[35,11,35,13],[35,14,35,16],[35,5,35,7],[35,8,35,10],[27,2,28,36],[32,11,32,16],[32,5,32,10],[32,18,33,45],[32,1,33,3],[35,18,35,45],[36,11,36,13],[36,14,36,16],[36,5,36,7],[36,8,36,10],[37,5,37,7],[37,8,37,10],[43,5,43,7],[43,8,43,10],[44,5,44,7],[44,8,44,10],[37,11,37,13],[37,14,37,16],[39,11,39,13],[39,14,39,16],[40,11,40,13],[40,14,40,16],[41,11,41,13],[41,14,41,16],[43,11,43,13],[43,14,43,16],[44,11,44,13],[44,14,44,16],[52,8,52,10],[53,5,53,7],[53,8,53,10],[39,5,39,7],[39,8,39,10],[40,5,40,7],[40,8,40,10],[41,5,41,7],[41,8,41,10],[45,5,45,7],[45,8,45,10],[46,5,46,7],[46,8,46,10],[47,5,47,7],[47,8,47,10],[49,5,49,7],[49,8,49,10],[50,5,50,7],[50,8,50,10],[55,5,55,7],[55,8,55,10],[56,5,56,7],[56,8,56,10],[57,5,57,7],[57,8,57,10],[58,5,58,7],[58,8,58,10],[59,5,59,7],[59,8,59,10],[45,11,45,13],[45,14,45,16],[46,11,46,13],[46,14,46,16],[47,11,47,13],[47,14,47,16],[49,11,49,13],[49,14,49,16],[50,11,50,13],[50,14,50,16],[51,11,51,13],[51,14,51,16],[52,11,52,13],[52,14,52,16],[53,11,53,13],[53,14,53,16],[55,11,55,13],[55,14,55,16],[56,11,56,13],[56,14,56,16],[57,11,57,13],[57,14,57,16],[58,11,58,13],[58,14,58,16],[59,11,59,13],[59,14,59,16],[60,11,60,13],[60,14,60,16],[142,2,142,8],[142,9,142,14],[136,2,136,5],[136,6,136,9],[136,10,136,13],[136,14,136,17],[60,5,60,7],[60,8,60,10],[110,2,110,5],[110,6,110,9],[110,10,110,13],[110,14,110,17],[119,2,119,5],[119,6,119,9],[119,10,119,13],[119,14,119,17],[142,15,142,21],[143,2,143,8],[143,9,143,14],[143,15,143,21],[144,2,144,5],[144,6,144,9],[144,10,144,13],[144,14,144,17],[144,18,144,21],[145,2,145,5],[145,6,145,9],[145,10,145,13],[145,14,145,17],[145,18,145,21],[146,2,146,4],[146,5,146,8],[146,9,146,11],[146,12,146,14],[146,15,146,18],[146,19,146,21],[148,2,148,8],[148,9,148,14],[148,15,148,21],[149,2,149,8],[149,9,149,14],[149,15,149,21],[150,2,150,5],[150,6,150,9],[150,10,150,13],[150,14,150,17],[150,18,150,21],[151,2,151,5],[151,6,151,9],[151,10,151,13],[151,14,151,17],[151,18,151,21],[152,2,152,4],[152,5,152,8],[152,9,152,11],[152,12,152,14],[152,15,152,18],[152,19,152,21],[154,2,154,8],[154,9,154,14],[154,15,154,21],[155,2,155,8],[155,9,155,14],[155,15,155,21],[156,2,156,5],[156,6,156,9],[156,10,156,13],[156,14,156,17],[156,18,156,21],[157,2,157,5],[157,6,157,9],[157,10,157,13],[157,14,157,17],[157,18,157,21],[158,2,158,4],[158,5,158,8],[158,9,158,11],[158,12,158,14],[158,15,158,18],[158,19,158,21],[136,18,136,21],[138,2,138,5],[138,6,138,9],[138,10,138,13],[138,14,138,17],[138,18,138,21],[140,2,140,5],[140,6,140,9],[140,10,140,13],[140,14,140,17],[140,18,140,21],[6,3,6,22],[6,26,6,45],[8,3,8,6],[8,7,8,10],[8,11,8,14],[8,15,8,18],[8,19,8,22],[8,26,8,29],[8,30,8,33],[8,34,8,37],[8,38,8,41],[8,42,8,45],[10,3,10,9],[10,10,10,15],[10,16,10,22],[10,26,10,32],[10,33,10,38],[10,39,10,45],[11,3,11,9],[11,10,11,15],[11,16,11,22],[11,26,11,32],[11,33,11,38],[11,39,11,45],[13,42,13,45],[12,3,12,6],[12,7,12,10],[12,11,12,14],[12,15,12,18],[12,19,12,22],[12,26,12,29],[12,30,12,33],[12,34,12,37],[12,38,12,41],[14,36,14,38],[14,39,14,42],[14,43,14,45],[9,3,9,22],[9,26,9,45],[14,3,14,5],[14,6,14,9],[14,10,14,12],[14,13,14,15],[14,16,14,19],[14,20,14,22],[14,26,14,28],[14,29,14,32],[14,33,14,35],[12,42,12,45],[13,3,13,6],[13,7,13,10],[13,11,13,14],[13,15,13,18],[13,19,13,22],[13,26,13,29],[13,30,13,33],[13,34,13,37],[13,38,13,41]]}
[]
[]
[]
[]
[null,null,"According to the vulnerability and risk assessment, the following areas can be rated as high:"]
[]
[null,null,null,"CURRENT VULNERABILITY",null,null,null,null,null,null,null,null,null,null,null,null,null,null,null,null,null,null,null,null,null,null,"FUTURE VULNERABILITY"]
[]
[null,null,null,{"$f":"D19","v":"Livelihoods"},null,null,null,{"$f":"H19","v":"Health & Safety"},null,null,null,{"$f":"L19","v":"Services"},null,null,null,{"$f":"P19","v":"Water Supply"},null,null,null,{"$f":"T19","v":"Infrastructure"},null,null,null,null,null,null,{"$f":"AA19","v":"Livelihoods"},null,null,null,{"$f":"AE19","v":"Health & Safety"},null,null,null,{"$f":"AI19","v":"Services"},null,null,null,{"$f":"AM19","v":"Water Supply"},null,null,null,{"$f":"AQ19","v":"Infrastructure"}]
[null,null,null,"In more detail:",null,null,null,null,null,null,null,null,null,null,null,null,null,null,null,null,null,null,null,null,null,null,"In more detail:"]
[null,null,{"$f":"C21","v":"Livelihoods"},"Food security",null,null,null,null,null,null,{"$f":"K21","v":"Crops"},null,null,null,null,null,{"$f":"Q21","v":"Livestock"},null,null,null,null,null,null,null,null,{"$f":"C11","v":"Livelihoods"},{"$f":"AA21","v":"Food security"},null,null,null,null,null,null,{"$f":"AH21","v":"Crops"},null,null,null,null,null,{"$f":"AN21","v":"Livestock"}]
[null,null,"Health & Safety","Water Borne Diseases ",null,null,null,null,null,null,{"$f":"K22","v":"Vector Diseases"},null,null,null,null,null,{"$f":"Q22","v":"Safety"},null,null,null,null,null,null,null,null,"Health & Safety",{"$f":"AA22","v":"Water Borne Diseases "},null,null,null,null,null,null,{"$f":"AH22","v":"Vector Diseases"},null,null,null,null,null,{"$f":"AN22","v":"Safety"}]
[null,null,"Services","Housing",null,null,null,{"$f":"H23","v":"Land"},null,null,null,{"$f":"L23","v":"Community"},null,null,null,{"$f":"P23","v":"Sanitation"},null,null,null,{"$f":"T23","v":"Energy"},null,null,null,null,null,"Services",{"$f":"AA23","v":"Housing"},null,null,null,{"$f":"AE23","v":"Land"},null,null,null,{"$f":"AI23","v":"Community"},null,null,null,{"$f":"AM23","v":"Sanitation"},null,null,null,{"$f":"AQ23","v":"Energy"}]
[null,null,"Water Supply","Access",null,null,null,{"$f":"H24","v":"Quality"},null,null,null,{"$f":"L24","v":"Droughts"},null,null,null,{"$f":"P24","v":"Floods"},null,null,null,{"$f":"T24","v":"Other Climate Hazards"},null,null,null,null,null,"Water Supply",{"$f":"AA24","v":"Access"},null,null,null,{"$f":"AE24","v":"Quality"},null,null,null,{"$f":"AI24","v":"Droughts"},null,null,null,{"$f":"AM24","v":"Floods"},null,null,null,{"$f":"AQ24","v":"Other Climate Hazards"}]
[null,null,"Infrastructure","Water Supply",null,null,{"$f":"G25","v":"Water Treatment"},null,null,null,{"$f":"K25","v":"Water Storage"},null,null,{"$f":"N25","v":"Ecol & Green Infra"},null,null,{"$f":"Q25","v":"Energy"},null,null,null,{"$f":"U25","v":"Roads & Public Infra"},null,null,null,null,"Infrastructure",{"$f":"AA25","v":"Water Supply"},null,null,{"$f":"AD25","v":"Water Treatment"},null,null,null,{"$f":"AH25","v":"Water Storage"},null,null,{"$f":"AK25","v":"Ecol & Green Infra"},null,null,{"$f":"AN25","v":"Energy"},null,null,null,{"$f":"AR25","v":"Roads & Public Infra"}]
[]
[null,null,null,"CURRENT RISK",null,null,null,null,null,null,null,null,null,null,null,null,null,null,null,null,null,null,null,null,null,null,"FUTURE RISK"]
[]
[null,null,null,{"$f":"C111","v":"Livelihoods"},null,null,null,"Health & Safety",null,null,null,"Services",null,null,null,"Water Supply",null,null,null,"Infrastructure",null,null,null,null,null,null,{"$f":"C111","v":"Livelihoods"},null,null,null,{"$f":"G111","v":"Health & Safety"},null,null,null,{"$f":"K111","v":"Services"},null,null,null,{"$f":"O111","v":"Water Supply"},null,null,null,{"$f":"S111","v":"Infrastructure"}]
[null,null,null,"In more detail:",null,null,null,null,null,null,null,null,null,null,null,null,null,null,null,null,null,null,null,null,null,null,"In more detail:"]
[null,null,{"$f":"B118","v":"Livelihoods"},{"$f":"C118","v":"Food security"},null,null,null,null,null,null,"Crops",null,null,null,null,null,"Livestock",null,null,null,null,null,null,null,null,{"$f":"C21","v":"Livelihoods"},{"$f":"C118","v":"Food security"},null,null,null,null,null,null,"Crops",null,null,null,null,null,{"$f":"P118","v":"Livestock"}]
[null,null,"Health & Safety",{"$f":"C119","v":"Water Borne Diseases "},null,null,null,null,null,null,"Vector Diseases",null,null,null,null,null,"Safety",null,null,null,null,null,null,null,null,"Health & Safety","Water Borne Diseases ",null,null,null,null,null,null,"Vector Diseases",null,null,null,null,null,{"$f":"P119","v":"Safety"}]
[null,null,"Services",{"$f":"C120","v":"Housing"},null,null,null,"Land",null,null,null,"Community",null,null,null,"Sanitation",null,null,null,"Energy",null,null,null,null,null,"Services","Housing",null,null,null,"Land",null,null,null,"Community",null,null,null,{"$f":"O120","v":"Sanitation"},null,null,null,{"$f":"S120","v":"Energy"}]
[null,null,"Water Supply",{"$f":"C121","v":"Access"},null,null,null,"Quality",null,null,null,"Droughts",null,null,null,"Floods",null,null,null,"Other Climate Hazards",null,null,null,null,null,"Water Supply","Access",null,null,null,"Quality",null,null,null,"Droughts",null,null,null,{"$f":"O121","v":"Floods"},null,null,null,{"$f":"S121","v":"Other Climate Hazards"}]
[null,null,"Infrastructure",{"$f":"C122","v":"Water Supply"},null,null,"Water Treatment",null,null,null,"Water Storage",null,null,"Ecol & Green Infra",null,null,"Energy",null,null,null,"Roads & Public Infra",null,null,null,null,"Infrastructure","Water Supply",null,null,"Water Treatment",null,null,null,"Water Storage",null,null,{"$f":"M122","v":"Ecol & Green Infra"},null,null,{"$f":"P122","v":"Energy"},null,null,null,{"$f":"T122","v":"Roads & Public Infra"}]
[]
[]
[null,null,"To view the responses required for each of the current and future high risk and high vulnerability areas, please click on this tab. This tab should also be clicked after any changes are made to the questionnaire. Once the tab has been clicked, please scroll below."]
[]
[]
[]
[]
[null,"CATEGORIES",null,null,null,"VULNERABILITY",null,null,null,null,null,"RISK",null,null,null,null,null,{"$f":"\"Not High\"","v":"Not High"},"IN ORDER TO REDUCE VULNERABILITY AND RISK, YOU WOULD NEED TO IMPLEMENT THE FOLLOWING RESPONSE ACTIONS:"]
[null,null,null,null,null,"CURRENT",null,null,"FUTURE",null,null,"CURRENT",null,null,"FUTURE",null,null,"High"]
[null,{"$f":"RVAT_Output!$AU422","v":"Livelihoods"},null,null,null,null,null,null,null,null,null,null,null,null,null,null,null,{"$f":"IF(OR(R36=$R$34,R37=$R$34,R38=$R$34),$R$34,$R$33)","v":"High"},"."]
[null,null,{"$f":"RVAT_Output!AV422","v":"Food security"},null,null,"HIGH",null,null,{"$f":"RVAT_Output!AP338","v":"High"},null,null,{"$f":"RVAT_Output!BE422","v":"Med"},null,null,{"$f":"RVAT_Output!BE453","v":"Med"},null,null,{"$f":"IF(L36=$R$34,$R$34,IF(O36=$R$34,$R$34,IF(F36=$R$34,$R$34,IF(I36=$R$34,$R$34,$R$33))))","v":"High"},"Human: Create information centres in villages; Organize training sessions for villages to better understand climate information; Sharing of information on climate general info and climate-induced disasters through existing networks.\nDiversify your economic activities to diversify exposure to external shocks and stresses.\nWomen: Organize training sessions to better understand climate smart agriculture; Organise other women empowerment sessions.\nInstitutions: Organise meetups between villages from different villages in the region, where to discuss farming challenges in the area; As a group, prioritise the main farming challenges, and brainstorm on best practices. Organise meetups between villages from different villages in the region, where to discuss water challenges in the area; As a group, prioritise the main water challenges.\nSet up groups/organizations that disseminate climate and weather data; Expand current initiative to share climate information; Create a mechanism to communicate challenges with relevant governmental institutions.\t\t\t\t\t\t\t\nInfrastructure: Water storage: Install a rainwater harvesting system - deep pit (well, shaft, or borehole), reservoir with percolation, dew/fog with nets, or other tools); Put a proposal by the village development committee on water on possible options for water storage (show initiative). \nNatural Resources: Sustainable waste management, including training and capacity development; Adopt more sustainable livelihoods practices - Changes in cropping patterns, natural soil erosion control, creating local ecosystems through planting indigenous trees and diversifying vegetation; \nPlanting of vegetation (e.g. broom grass) in degraded and erosion prone areas, and in river beds to limit flooding and damage to infrastructure; Employ soil improvement techniques, e.g. crop rotation and contour farming (to control erosion).\nFinancial Resources: Sustainable Income: Training centres and microfinance to develop skills for off-farming season activities; Vocational training - especially for youth, in placed with high in-migration; and creation of markets and training in other sector skills including hairdressing, sewing, carpentry (Training to obtain skills for work in other sectors).\nDiverse Income: Supporting diversification of livelihoods, including non-agricultural livelihoods strategies; Improved post harvest technologies such as setting up small-scale agro processing industries to utilize farm product.\nFinance & Insurance; Encourage social support networks; Encourage rotational credits; Promoting savings and building capacity to plan for risk management; Government to strengthen social protection schemes.\t\t\t\t\t\t\t"]
[null,null,{"$f":"RVAT_Output!AV423","v":"Crops"},null,null,{"$f":"RVAT_Output!AP294","v":"High"},null,null,{"$f":"RVAT_Output!AP339","v":"High"},null,null,{"$f":"RVAT_Output!BE423","v":"Med"},null,null,{"$f":"RVAT_Output!BE454","v":"Med"},null,null,{"$f":"IF(L37=$R$34,$R$34,IF(O37=$R$34,$R$34,IF(F37=$R$34,$R$34,IF(I37=$R$34,$R$34,$R$33))))","v":"High"},"Human: Diversify your economic activities to diversify exposure to external shocks and stresses. \nOrganize training sessions for villages to better understand climate information and climate smart agriculture; Building knowledge and skills on adaptation strategies;  Promoting climate resilient agricultural practices:  (a)  Promote inter-cropping, natural fertilizer/pesticides and avoid monocultures\",  (b)  Promotion of drought resistant local crops and species through community based nursery,  (c)  Promotion of local seed exchange system to conserve the environmentally stressed varieties, and (d)  Prompting sustainable agriculture, organic farming, and appropriate technology to reduce degradation. ; Promote awareness about health risks.\nWomen: Organize training sessions to better understand climate smart agriculture; Organise other women empowerment sessions\nInstitutions: Organise meetups between villages from different villages in the region, where to discuss farming challenges in the area; As a group, prioritise the main farming challenges, and brainstorm on best practices. Organise meetups between villages from different villages in the region, where to discuss water challenges in the area; As a group, prioritise the main water challenges.\nSet up groups/organizations that disseminate climate and weather data; Expand current initiative to share climate information; Create a mechanism to communicate challenges with relevant governmental institutions.\nInfrastructure: Introducing technologies to address water stresses for agriculture; Install a rainwater harvesting system - deep pit (well, shaft, or borehole), reservoir with percolation, dew/fog with nets, or other tools).\t\t\t\nFood reserves: Promote local and community food storage, grain/seed banks and silos - establishing food and seed banks in places sage from hazards. \nNatural Resources: Sustainable waste management, including training and capacity development; Adopt more sustainable livelihoods practices - Changes in cropping patterns, natural soil erosion control, creating local ecosystems through planting indigenous trees and diversifying vegetation; \nPlanting of vegetation (e.g. broom grass) in degraded and erosion prone areas, and in river beds; Employ soil improvement techniques, e.g. crop rotation and contour farming (to control erosion).\nFinancial Resources: Sustainable Income: Training centres and microfinance to develop skills for off-farming season activities; Vocational training - especially for youth, in placed with high in-migration; and creation of markets and training in other sector skills including hairdressing, sewing, carpentry (Training to obtain skills for work in other sectors).\nDiverse Income: Supporting diversification of livelihoods, including non-agricultural livelihoods strategies; Improved post harvest technologies such as setting up small-scale agro processing industries to utilize farm product.\nFinance & Insurance; Encourage social support networks; Encourage rotational credits; Promoting savings and building capacity to plan for risk management; Government to strengthen social protection schemes."]
[null,{"$f":"RVAT_Output!$AU425","v":" "},{"$f":"RVAT_Output!AV424","v":"Livestock"},null,null,{"$f":"RVAT_Output!AP295","v":"High"},null,null,{"$f":"RVAT_Output!AP340","v":"High"},null,null,{"$f":"RVAT_Output!BE424","v":"Med"},null,null,{"$f":"RVAT_Output!BE455","v":"Med"},null,null,{"$f":"IF(L38=$R$34,$R$34,IF(O38=$R$34,$R$34,IF(F38=$R$34,$R$34,IF(I38=$R$34,$R$34,$R$33))))","v":"High"},"Human:  Organize training sessions for villages to better understand climate information and climate smart agriculture; Building knowledge and skills on adaptation strategies; Promoting climate resilient livestock practices; Promote awareness about health risks.\nDiversify your economic activities to diversify exposure to external shocks and stresses.\nWomen: Organize training sessions to better understand climate smart agriculture; Organise other women empowerment sessions.\nInstitutions: Organise meetups between villages from different villages in the region, where to discuss farming challenges in the area; As a group, prioritise the main farming challenges, and brainstorm on best practices. Organise meetups between villages from different villages in the region, where to discuss water challenges in the area; As a group, prioritise the main water challenges.\nSet up groups/organizations that disseminate climate and weather data; Expand current initiative to share climate information; Create a mechanism to communicate challenges with relevant governmental institutions.\t\nInfrastructure: Introducing technologies to address water stresses for agriculture; Install a rainwater harvesting system - deep pit (well, shaft, or borehole), reservoir with percolation, dew/fog with nets, or other tools). \nNatural Resources: Sustainable waste management, including training and capacity development; Adopt more sustainable livelihoods practices; \nPlanting of vegetation in degraded and erosion prone areas, and in river beds; Employ livestock rotation techniques (to control erosion).\nFinancial Resources: Sustainable Income: Training centres and microfinance to develop skills for off-farming season activities; Vocational training - especially for youth, in placed with high in-migration; and creation of markets and training in other sector skills including hairdressing, sewing, carpentry (Training to obtain skills for work in other sectors).\nDiverse Income: Supporting diversification of livelihoods, including non-agricultural livelihoods strategies; Improved post harvest technologies such as setting up small-scale agro processing industries to utilize farm product.\nFinance & Insurance; Encourage social support networks; Encourage rotational credits; Promoting savings and building capacity to plan for risk management; Government to strengthen social protection schemes."]
[null,{"$f":"RVAT_Output!$AU426","v":"Health & Safety"},null,null,null,null,null,null,null,null,null,null,null,null,null,null,null,{"$f":"IF(OR(R40=$R$34,R41=$R$34,R42=$R$34),$R$34,$R$33)","v":"High"},"."]
[null,null,{"$f":"RVAT_Output!AV426","v":"Water Borne Diseases "},null,null,{"$f":"RVAT_Output!AP297","v":"High"},null,null,{"$f":"RVAT_Output!AP342","v":"High"},null,null,{"$f":"RVAT_Output!BE426","v":"Low"},null,null,{"$f":"RVAT_Output!BE457","v":"Low"},null,null,{"$f":"IF(L40=$R$34,$R$34,IF(O40=$R$34,$R$34,IF(F40=$R$34,$R$34,IF(I40=$R$34,$R$34,$R$33))))","v":"High"},"Human: Sharing of information on climate general info and climate-induced disasters through existing networks. \nEWS, such as organise training sessions for villager on responses to climate risk information; strengthening access to EWS / building capacity to analyse risks; Implement/Expand SMS system to send villagers relevant information; Consider a \"village committee\" to promote sharing of EWS information.\nWomen: Organize training sessions to better understand climate smart agriculture; Organise other women empowerment sessions.\nHealth: Expand the number of health surveillance assistants; Promote awareness about health risks..\nInstitutions: Expand proximity health services; Facilitate transport to health facilities. \nOrganise meetups between villages from different villages in the region, where to discuss water challenges in the area; As a group, prioritise the main water challenges. \nSet up groups/organizations that disseminate climate and weather data; Expand current initiative to share climate information; Create a mechanism to communicate challenges with relevant governmental institutions.\nInfrastructure: Improving health services to withstand hazards, including road and transportation network to promote access.\nNatural Resources: Implement ecological infrastructure (e.g. wetlands) to promote healthy ecosystems.\nFinancial Resources:  Encourage social support networks; Encourage rotational credits; Promoting savings and building capacity to plan for risk management; Government to strengthen social protection schemes."]
[null,null,{"$f":"RVAT_Output!AV427","v":"Vector Diseases"},null,null,{"$f":"RVAT_Output!AP298","v":"High"},null,null,{"$f":"RVAT_Output!AP343","v":"High"},null,null,{"$f":"RVAT_Output!BE427","v":"Low"},null,null,{"$f":"RVAT_Output!BE458","v":"Low"},null,null,{"$f":"IF(L41=$R$34,$R$34,IF(O41=$R$34,$R$34,IF(F41=$R$34,$R$34,IF(I41=$R$34,$R$34,$R$33))))","v":"High"},"Human: Sharing of information on climate general info and climate-induced disasters through existing networks.\nEWS, such as organise training sessions for villager on responses to climate risk information; strengthening access to EWS / building capacity to analyse risks; Implement/Expand SMS system to send villagers relevant information; Consider a \"village committee\" to promote sharing of EWS information.\nWomen: Organize training sessions to better understand climate smart agriculture; Organise other women empowerment sessions.\nHealth: Expand the number of health surveillance assistants; Promote awareness about health risks\nInstitutions: Expand proximity health services; Facilitate transport to health facilities. \nOrganise meetups between villages from different villages in the region, where to discuss water challenges in the area; As a group, prioritise the main water challenges. \nSet up groups/organizations that disseminate climate and weather data; Expand current initiative to share climate information; Create a mechanism to communicate challenges with relevant governmental institutions.\nInfrastructure: Improving health services to withstand hazards, including transportation network to promote access.\nNatural Resources: Implement ecological infrastructure (e.g. wetlands) to promote healthy ecosystems\nFinancial Resources: Encourage social support networks; Encourage rotational credits; Promoting savings and building capacity to plan for risk management; Government to strengthen social protection schemes."]
[null,{"$f":"RVAT_Output!$AU429","v":" "},{"$f":"RVAT_Output!AV428","v":"Safety"},null,null,{"$f":"RVAT_Output!AP299","v":"High"},null,null,{"$f":"RVAT_Output!AP344","v":"High"},null,null,{"$f":"RVAT_Output!BE428","v":"Low"},null,null,{"$f":"RVAT_Output!BE459","v":"Low"},null,null,{"$f":"IF(L42=$R$34,$R$34,IF(O42=$R$34,$R$34,IF(F42=$R$34,$R$34,IF(I42=$R$34,$R$34,$R$33))))","v":"High"},"Human: Create information centres in villages; Organize training sessions for villages to better understand climate information; Sharing of information on climate general info and climate-induced disasters through existing networks.\nEWS, such as organise training sessions for villager on responses to climate risk information; strengthening access to EWS / building capacity to analyse risks; Implement/Expand SMS system to send villagers relevant information; Consider a \"village committee\" to promote sharing of EWS information.\nWomen: Organize training sessions to better understand climate smart agriculture; Organise other women empowerment sessions.\nInstitutions: Organise meetups between villages from different villages in the region, where to discuss water challenges in the area; As a group, prioritise the main water challenges.\nSet up groups/organizations that disseminate climate and weather data; Expand current initiative to share climate information; Create a mechanism to communicate challenges with relevant governmental institutions.\nInfrastructure: Improving shelters and communities to withstand hazards, including road and  transportation network to promote access.\nNatural Resources: Hill stabilisation and catchment restoration (by planting trees) to prevent erosion and promote stability (to minimise land slides / other impacts).\nFinancial Resources: Encourage social support networks; Encourage rotational credits; Promoting savings and building capacity to plan for risk management; Government to strengthen social protection schemes."]
[null,{"$f":"RVAT_Output!$AU430","v":"Services"},null,null,null,null,null,null,null,null,null,null,null,null,null,null,null,{"$f":"IF(OR(R44=$R$34,R45=$R$34,R46=$R$34,R47=$R$34,R48=$R$34),$R$34,$R$33)","v":"High"},"."]
[null,null,{"$f":"RVAT_Output!AV430","v":"Housing"},null,null,{"$f":"RVAT_Output!AP301","v":"High"},null,null,{"$f":"RVAT_Output!AP346","v":"High"},null,null,{"$f":"RVAT_Output!BE430","v":"Med"},null,null,{"$f":"RVAT_Output!BE461","v":"Med"},null,null,{"$f":"IF(L44=$R$34,$R$34,IF(O44=$R$34,$R$34,IF(F44=$R$34,$R$34,IF(I44=$R$34,$R$34,$R$33))))","v":"High"},"Human:  Create information centres in villages; Organize training sessions for villages to better understand climate information; Sharing of information on climate general info and climate-induced disasters through existing networks.\nEWS, such as organise training sessions for villager on responses to climate risk information; strengthening access to EWS / building capacity to analyse risks; Implement/Expand SMS system to send villagers relevant information; Consider a \"village committee\" to promote sharing of EWS information\nInstitutions: Set up groups/organizations that disseminate climate and weather data; Expand current initiative to share climate information; Create a mechanism to communicate challenges with relevant governmental institutions.\nSet up groups/organizations that disseminate climate and weather data; Expand current initiative to share climate information; Create a mechanism to communicate challenges with relevant governmental institutions.\nInfrastructure: Improving shelters to withstand hazards\nNatural Resources: Do land zonation and rehabilitation; Hill stabilisation and catchment restoration (by planting trees) to prevent erosion and promote stability (to minimise land slides / other impacts). \nFinancial Resources: Encourage social support networks; Encourage rotational credits; Promoting savings and building capacity to plan for risk management; Government to strengthen social protection schemes."]
[null,null,{"$f":"RVAT_Output!AV431","v":"Land"},null,null,{"$f":"RVAT_Output!AP302","v":"High"},null,null,{"$f":"RVAT_Output!AP347","v":"High"},null,null,{"$f":"RVAT_Output!BE431","v":"Med"},null,null,{"$f":"RVAT_Output!BE462","v":"Med"},null,null,{"$f":"IF(L45=$R$34,$R$34,IF(O45=$R$34,$R$34,IF(F45=$R$34,$R$34,IF(I45=$R$34,$R$34,$R$33))))","v":"High"},"Human:  Create information centres in villages; Organize training sessions for villages to better understand climate information; Sharing of information on climate general info and climate-induced disasters through existing networks.\nEWS, such as organise training sessions for villager on responses to climate risk information; strengthening access to EWS / building capacity to analyse risks; Implement/Expand SMS system to send villagers relevant information; Consider a \"village committee\" to promote sharing of EWS information\nInstitutions: Expand proximity health services; Facilitate transport to health facilities. \nSet up groups/organizations that disseminate climate and weather data; Expand current initiative to share climate information; Create a mechanism to communicate challenges with relevant governmental institutions; Increase institutional finance and human resource capacity.\t\nInfrastructure: Improving access in the face of hazards, including road network to promote access.\nNatural Resources: Adopt legislation protecting land rights; Do land zonation and rehabilitation.\nFinancial Resources: Encourage social support networks; Encourage rotational credits; Promoting savings and building capacity to plan for risk management; Government to strengthen social protection schemes."]
[null,null,{"$f":"RVAT_Output!AV432","v":"Community"},null,null,{"$f":"RVAT_Output!AP303","v":"High"},null,null,{"$f":"RVAT_Output!AP348","v":"High"},null,null,{"$f":"RVAT_Output!BE432","v":"Low"},null,null,{"$f":"RVAT_Output!BE463","v":"Low"},null,null,{"$f":"IF(L46=$R$34,$R$34,IF(O46=$R$34,$R$34,IF(F46=$R$34,$R$34,IF(I46=$R$34,$R$34,$R$33))))","v":"High"},"Human: Sharing of information on climate general info and climate-induced disasters through existing networks.\nEWS, such as or strengthening access to EWS / building capacity to analyse risks; Implement/Expand SMS system to send relevant information.\nInstitutions: Expand proximity and/or facilitate transport to health services and other facilities (e.g. school, church). \n Set up groups/organizations that disseminate climate and weather data; Expand current initiative to share climate information; Create a mechanism to communicate challenges with relevant governmental institutions.\nInfrastructure: Improving community services to withstand hazards, including road and transportation network to promote access.\nNatural Resources: Sustainable water and waste management, including trainings and capacity development; Hill stabilisation and catchment restoration (by planting trees) to prevent erosion and promote stability (to minimise land slides / other impacts).\nFinancial Resources: Encourage social support networks; Encourage rotational credits; Promoting savings and building capacity to plan for risk management; Government to strengthen social protection schemes."]
[null,null,{"$f":"RVAT_Output!AV433","v":"Sanitation"},null,null,{"$f":"RVAT_Output!AP304","v":"High"},null,null,{"$f":"RVAT_Output!AP349","v":"High"},null,null,{"$f":"RVAT_Output!BE433","v":"Med"},null,null,{"$f":"RVAT_Output!BE464","v":"Med"},null,null,{"$f":"IF(L47=$R$34,$R$34,IF(O47=$R$34,$R$34,IF(F47=$R$34,$R$34,IF(I47=$R$34,$R$34,$R$33))))","v":"High"},"Human: Organize training sessions for villages to better understand climate information; Sharing of information on climate general info and climate-induced disasters through existing networks.\nEWS, such as or strengthening access to EWS / building capacity to analyse risks; Implement/Expand SMS system to send relevant information.\nInstitutions: Set up groups/organizations that disseminate climate and weather data; Expand current initiative to share climate information; Create a mechanism to communicate challenges with relevant governmental institutions; Increase institutional finance and human resource capacity.\nInfrastructure: Promoting access to good quality sanitation that can withstand climate hazards; Promote access to a centralised sanitation system.\nNatural Resources: Sustainable waste management, including trainings and capacity development; Catchment restoration and implementing green infrastructure such as wetlands to improve water quality (due to poor sanitation).\nFinancial Resources: Encourage social support networks; Encourage rotational credits; Promoting savings and building capacity to plan for risk management; Government to strengthen social protection schemes."]
[null,{"$f":"RVAT_Output!$AU435","v":" "},{"$f":"RVAT_Output!AV434","v":"Energy"},null,null,{"$f":"RVAT_Output!AP305","v":"High"},null,null,{"$f":"RVAT_Output!AP350","v":"High"},null,null,{"$f":"RVAT_Output!BE434","v":"Med"},null,null,{"$f":"RVAT_Output!BE465","v":"Med"},null,null,{"$f":"IF(L48=$R$34,$R$34,IF(O48=$R$34,$R$34,IF(F48=$R$34,$R$34,IF(I48=$R$34,$R$34,$R$33))))","v":"High"},"Human: Sharing of information on climate general info and climate-induced disasters through existing networks.\nEWS, such as or strengthening access to EWS / building capacity to analyse risks; Implement/Expand SMS system to send relevant information.\nInstitutions: Set up groups/organizations that disseminate climate and weather data; Expand current initiative to share climate information; Create a mechanism to communicate challenges with relevant governmental institutions; Increase institutional finance and human resource capacity.\nInfrastructure:  Promote a diversified energy supply sources; Promote access to national grid\nNatural Resources:  Sustainable waste management, including trainings and capacity development - such as promoting the implementation of the water-energy-food nexus. Catchment restoration - for deforestation. \nFinancial Resources: Encourage social support networks; Encourage rotational credits; Promoting savings and building capacity to plan for risk management; Government to strengthen social protection schemes."]
[null,{"$f":"RVAT_Output!$AU436","v":"Water Supply"},null,null,null,null,null,null,null,null,null,null,null,null,null,null,null,{"$f":"IF(OR(R50=$R$34,R51=$R$34,R52=$R$34,R53=$R$34,R54=$R$34),$R$34,$R$33)","v":"High"},"."]
[null,null,{"$f":"RVAT_Output!AV436","v":"Access"},null,null,{"$f":"RVAT_Output!AP307","v":"High"},null,null,{"$f":"RVAT_Output!AP352","v":"High"},null,null,{"$f":"RVAT_Output!BE436","v":"Med"},null,null,{"$f":"RVAT_Output!BE467","v":"Med"},null,null,{"$f":"IF(L50=$R$34,$R$34,IF(O50=$R$34,$R$34,IF(F50=$R$34,$R$34,IF(I50=$R$34,$R$34,$R$33))))","v":"High"},"Human: Create information centres in villages; Organize training sessions for villages to better understand climate information; Sharing of information on climate general info and climate-induced disasters through existing networks.\nEWS, such as organise training sessions for villager on responses to climate risk information; strengthening access to EWS / building capacity to analyse risks; Implement/Expand SMS system to send villagers relevant information; Consider a \"village committee\" to promote sharing of EWS information.\nWomen: Organize training sessions to better understand climate smart agriculture; Organise other women empowerment sessions.\nInstitutions: Organise meetups between villages from different villages in the region, where to discuss water challenges in the area; As a group, prioritise the main water challenges. \nSet up groups/organizations that disseminate climate and weather data; Expand current initiative to share climate information; Create a mechanism to communicate challenges with relevant governmental institutions.\nInfrastructure: Install/update a rainwater harvesting system - tank, deep pit (well, shaft, or borehole), reservoir with percolation, dew/fog with nets, or other tools)\nNatural Resources: Sustainable waste management, including training and capacity development; Adopt more sustainable livelihoods practices; Planting of vegetation in degraded and erosion prone areas, and in river beds.\nFinancial Resources: Encourage social support networks; Encourage rotational credits; Promoting savings and building capacity to plan for risk management; Government to strengthen social protection schemes."]
[null,null,{"$f":"RVAT_Output!AV437","v":"Quality"},null,null,{"$f":"RVAT_Output!AP308","v":"High"},null,null,{"$f":"RVAT_Output!AP353","v":"High"},null,null,{"$f":"RVAT_Output!BE437","v":"High"},null,null,{"$f":"RVAT_Output!BE468","v":"High"},null,null,{"$f":"IF(L51=$R$34,$R$34,IF(O51=$R$34,$R$34,IF(F51=$R$34,$R$34,IF(I51=$R$34,$R$34,$R$33))))","v":"High"},"Human: Create information centres in villages; Organize training sessions for villages to better understand climate information; Sharing of information on climate general info and climate-induced disasters through existing networks.\nEWS, such as organise training sessions for villager on responses to climate risk information; strengthening access to EWS / building capacity to analyse risks; Implement/Expand SMS system to send villagers relevant information; Consider a \"village committee\" to promote sharing of EWS information.\nWomen: Organize training sessions, specifically for women, to better understand climate smart agriculture; Organise other women empowerment sessions.\nInstitutions: Organise meetups between villages from different villages in the region, where to discuss water challenges in the area; As a group, prioritise the main water challenges.\nSet up groups/organizations that disseminate climate and weather data; Expand current initiative to share climate information; Create a mechanism to communicate challenges with relevant governmental institutions.\nInfrastructure: Install/update a rainwater harvesting system - tank, deep pit (well, shaft, or borehole), reservoir with percolation, dew/fog with nets, or other tools)\nNatural Resources: Sustainable waste management, including training and capacity development; Catchment restoration and implementing green infrastructure such as wetlands to improve water quality (due to poor water quality).\nFinancial Resources: Encourage social support networks; Encourage rotational credits; Promoting savings and building capacity to plan for risk management; Government to strengthen social protection schemes."]
[null,null,{"$f":"RVAT_Output!AV438","v":"Droughts"},null,null,{"$f":"RVAT_Output!AP309","v":"High"},null,null,{"$f":"RVAT_Output!AP354","v":"High"},null,null,{"$f":"RVAT_Output!BE438","v":"Med"},null,null,{"$f":"RVAT_Output!BE469","v":"Med"},null,null,{"$f":"IF(L52=$R$34,$R$34,IF(O52=$R$34,$R$34,IF(F52=$R$34,$R$34,IF(I52=$R$34,$R$34,$R$33))))","v":"High"},"Human: Create information centres in villages; Organize training sessions for villages to better understand climate information; Sharing of information on climate general info and climate-induced disasters through existing networks.\nEWS, such as organise training sessions for villager on responses to climate risk information; strengthening access to EWS / building capacity to analyse risks; Implement/Expand SMS system to send villagers relevant information; Consider a \"village committee\" to promote sharing of EWS information. \t\nInstitutions: Organise meetups between villages from different villages in the region, where to discuss water challenges in the area; As a group, prioritise the main water challenges.\nInfrastructure:  Install/update a rainwater harvesting system - tank, deep pit (well, shaft, or borehole), reservoir with percolation, dew/fog with nets, or other tools)\nNatural Resources: Sustainable waste management, including training and capacity development; Catchment restoration and implementing green infrastructure such as wetlands to minimise drought impacts.\nFinancial Resources: Encourage social support networks; Encourage rotational credits; Promoting savings and building capacity to plan for risk management; Government to strengthen social protection schemes."]
[null,null,{"$f":"RVAT_Output!AV439","v":"Floods"},null,null,{"$f":"RVAT_Output!AP310","v":"High"},null,null,{"$f":"RVAT_Output!AP355","v":"High"},null,null,{"$f":"RVAT_Output!BE439","v":"Low"},null,null,{"$f":"RVAT_Output!BE470","v":"Low"},null,null,{"$f":"IF(L53=$R$34,$R$34,IF(O53=$R$34,$R$34,IF(F53=$R$34,$R$34,IF(I53=$R$34,$R$34,$R$33))))","v":"High"},"Human: Create information centres in villages; Organize training sessions for villages to better understand climate information; Sharing of information on climate general info and climate-induced disasters through existing networks.\nEWS, such as organise training sessions for villager on responses to climate risk information; strengthening access to EWS / building capacity to analyse risks; Implement/Expand SMS system to send villagers relevant information; Consider a \"village committee\" to promote sharing of EWS information.\t\nInstitutions: Organise meetups between villages from different villages in the region, where to discuss water challenges in the area; As a group, prioritise the main water challenges.\nSet up groups/organizations that disseminate climate and weather data; Expand current initiative to share climate information; Create a mechanism to communicate challenges with relevant governmental institutions.\nInfrastructure: Improving households to withstand hazards\nNatural Resources: Hill stabilisation and catchment restoration (by planting trees) to prevent erosion and promote stability (to minimise land slides / other impacts); Implementing green infrastructure such as wetlands to minimise flood impacts.\nFinancial Resources: Encourage social support networks; Encourage rotational credits; Promoting savings and building capacity to plan for risk management; Government to strengthen social protection schemes."]
[null,{"$f":"RVAT_Output!$AU441","v":" "},{"$f":"RVAT_Output!AV440","v":"Other Climate Hazards"},null,null,{"$f":"RVAT_Output!AP311","v":"High"},null,null,{"$f":"RVAT_Output!AP356","v":"High"},null,null,{"$f":"RVAT_Output!BE440","v":"Low"},null,null,{"$f":"RVAT_Output!BE471","v":"Low"},null,null,{"$f":"IF(L54=$R$34,$R$34,IF(O54=$R$34,$R$34,IF(F54=$R$34,$R$34,IF(I54=$R$34,$R$34,$R$33))))","v":"High"},"Human: Create information centres in villages; Organize training sessions for villages to better understand climate information; Sharing of information on climate general info and climate-induced disasters through existing networks.\nEWS, such as organise training sessions for villager on responses to climate risk information; strengthening access to EWS / building capacity to analyse risks; Implement/Expand SMS system to send villagers relevant information; Consider a \"village committee\" to promote sharing of EWS information. \nInstitutions: Set up groups/organizations that disseminate climate and weather data; Expand current initiative to share climate information; Create a mechanism to communicate challenges with relevant governmental institutions.\nInfrastructure: Improving shelters to withstand hazards\nNatural Resources: Hill stabilisation and catchment restoration (by planting trees) to prevent erosion and promote stability; Implementing green infrastructure such as wetlands to minimise impacts.\nFinancial Resources: Encourage social support networks; Encourage rotational credits; Promoting savings and building capacity to plan for risk management; Government to strengthen social protection schemes."]
[null,{"$f":"RVAT_Output!$AU442","v":"Infrastructure"},null,null,null,null,null,null,null,null,null,null,null,null,null,null,null,{"$f":"IF(OR(R56=$R$34,R57=$R$34,R58=$R$34,R59=$R$34,R60=$R$34),$R$34,$R$33)","v":"High"},"."]
[null,null,{"$f":"RVAT_Output!AV442","v":"Water Supply"},null,null,{"$f":"RVAT_Output!AP313","v":"High"},null,null,{"$f":"RVAT_Output!AP358","v":"High"},null,null,{"$f":"RVAT_Output!BE442","v":"Med"},null,null,{"$f":"RVAT_Output!BE473","v":"Med"},null,null,{"$f":"IF(L56=$R$34,$R$34,IF(O56=$R$34,$R$34,IF(F56=$R$34,$R$34,IF(I56=$R$34,$R$34,$R$33))))","v":"High"},"Human: Sharing of information on climate general info and climate-induced disasters through existing networks.\nEWS, such as or strengthening access to EWS / building capacity to analyse risks; Implement/Expand SMS system to send relevant information.\nInstitutions: Organise meetups between villages from different villages in the region, where to discuss water challenges in the area; As a group, prioritise the main water challenges. \nExpand current initiative to share climate information; Create a mechanism to communicate challenges with relevant governmental institutions; Increase institutional finance and human resource capacity.\nInfrastructure: Building small and medium dams; Expand supply networks; Put together a plan for future developments in water infrastructure; Install a rainwater harvesting system - deep pit (well, shaft, or borehole), reservoir with percolation, dew/fog with nets, or other tools); Promote operational maintenance.\nNatural Resources: Sustainable waste management, including training and capacity development; Planting of vegetation (e.g. broom grass) in degraded and erosion prone areas, and in river beds to limit flooding and damage to infrastructure.\t\nFinancial Resources: Government should explore innovative funding/financial arrangements (GCF, PPPs); Promoting gov-led savings and building capacity to plan for risk management; Government to strengthen social protection schemes."]
[null,null,{"$f":"RVAT_Output!AV443","v":"Water Treatment"},null,null,{"$f":"RVAT_Output!AP314","v":"High"},null,null,{"$f":"RVAT_Output!AP359","v":"High"},null,null,{"$f":"RVAT_Output!BE443","v":"Med"},null,null,{"$f":"RVAT_Output!BE474","v":"Med"},null,null,"High","Human: Sharing of information on climate general info and climate-induced disasters through existing networks.\nEWS, such as or strengthening access to EWS / building capacity to analyse risks; Implement/Expand SMS system to send relevant information.\nInstitutions: Organise meetups between villages from different villages in the region, where to discuss water challenges in the area; As a group, prioritise the main water challenges.\nExpand current initiative to share climate information; Create a mechanism to communicate challenges with relevant governmental institutions; Increase institutional finance and human resource capacity.\nInfrastructure: Building/upgrade water treatment systems; Use small scale/on-site low-cost water treatment; Promote operational maintenance.\nNatural Resources: Implementing green infrastructure such as wetlands to minimise water quality impacts. Sustainable waste management, including training and capacity development; Planting of vegetation in degraded and erosion prone areas, and in river beds to limit flooding and damage to infrastructure.\nFinancial Resources: Government should explore innovative funding/financial arrangements (GCF, PPPs); Promoting gov-led savings and building capacity to plan for risk management; Government to strengthen social protection schemes."]
[null,null,{"$f":"RVAT_Output!AV444","v":"Water Storage"},null,null,{"$f":"RVAT_Output!AP315","v":"High"},null,null,{"$f":"RVAT_Output!AP360","v":"High"},null,null,{"$f":"RVAT_Output!BE444","v":"Med"},null,null,{"$f":"RVAT_Output!BE475","v":"Med"},null,null,"High","Human: Sharing of information on climate general info and climate-induced disasters through existing networks.\nEWS, such as or strengthening access to EWS / building capacity to analyse risks; Implement/Expand SMS system to send relevant information.\nInstitutions: Organise meetups between villages from different villages in the region, where to discuss water challenges in the area; As a group, prioritise the main water challenges.\nExpand current initiative to share climate information; Create a mechanism to communicate challenges with relevant governmental institutions; Increase institutional finance and human resource capacity.\nInfrastructure: Put together a plan for future developments in water infrastructure; Building small and medium projects\nNatural Resources: Sustainable waste management, including training and capacity development; Promoting blue-green infrastructure balance - creating local ecosystems through planting indigenous trees and diversifying vegetation; Planting of vegetation in degraded and erosion prone areas, and in river beds to limit flooding and damage to infrastructure.\t\nFinancial Resources: Government should explore innovative funding/financial arrangements (GCF, PPPs); Promoting gov-led savings and building capacity to plan for risk management; Government to strengthen social protection schemes."]
[null,null,{"$f":"RVAT_Output!AV445","v":"Ecol & Green Infra"},null,null,{"$f":"RVAT_Output!AP316","v":"High"},null,null,{"$f":"RVAT_Output!AP361","v":"High"},null,null,{"$f":"RVAT_Output!BE445","v":"Med"},null,null,{"$f":"RVAT_Output!BE476","v":"Med"},null,null,"High","Human: Sharing of information on climate general info and climate-induced disasters through existing networks.\nEWS, such as or strengthening access to EWS / building capacity to analyse risks; Implement/Expand SMS system to send relevant information.\nInstitutions: Organise meetups between villages from different villages in the region, where to discuss water challenges in the area; As a group, prioritise the main water challenges.\nInfrastructure: Supplement blue and green infrastructure - promote payment for ecosystem services (PES) or water-energy-food (WEF) Nexus\nNatural Resources: Sustainable waste management, including training and capacity development; Creating local ecosystems through planting indigenous trees and diversifying vegetation; Planting of vegetation in degraded and erosion prone areas, and in river beds.\nFinancial Resources: Government should explore innovative funding/financial arrangements (GCF, PPPs); Promoting gov-led savings and building capacity to plan for risk management; Government to strengthen social protection schemes."]
[null,null,{"$f":"RVAT_Output!AV446","v":"Energy"},null,null,{"$f":"RVAT_Output!AP317","v":"High"},null,null,{"$f":"RVAT_Output!AP362","v":"High"},null,null,{"$f":"RVAT_Output!BE446","v":"Low"},null,null,{"$f":"RVAT_Output!BE477","v":"Low"},null,null,"High","Human: Sharing of information on climate general info and climate-induced disasters through existing networks.\nEWS, such as or strengthening access to EWS / building capacity to analyse risks; Implement/Expand SMS system to send relevant information.\nInstitutions: Expand current initiative to share climate information; Create a mechanism to communicate challenges with relevant governmental institutions; Increase institutional finance and human resource capacity.\nInfrastructure: Promote a diversified energy network - explore alternative and decentralised energy, e.g. solar, wind; Develop an energy infrastructure resilience strategy; Promote operational maintenance\nNatural Resources: Sustainable waste management, including trainings and capacity development - such as promoting the implementation of the water-energy-food nexus.\nFinancial Resources: Government should explore innovative funding/financial arrangements (GCF, PPPs); Promoting gov-led savings and building capacity to plan for risk management; Government to strengthen social protection schemes."]
[null,null,{"$f":"RVAT_Output!AV447","v":"Roads & Public Infra"},null,null,{"$f":"RVAT_Output!AP318","v":"High"},null,null,{"$f":"RVAT_Output!AP363","v":"High"},null,null,{"$f":"RVAT_Output!BE447","v":"Low"},null,null,{"$f":"RVAT_Output!BE478","v":"Low"},null,null,"High","Human: Sharing of information on climate general info and climate-induced disasters through existing networks.\nEWS, such as or strengthening access to EWS / building capacity to analyse risks; Implement/Expand SMS system to send relevant information.\nInstitutions: Expand current initiative to share climate information; Create a mechanism to communicate challenges with relevant governmental institutions; Increase institutional finance and human resource capacity.\nInfrastructure: Develop a road and infrastructure resilience strategy for roads and infrastructure in the community;  Build and/or improve the road network and existing infrastructure to make it resilient to climate events  (incl. disasters-resistant) - to ensure market access. For example, villages can dig their own small scale road drainage; Promote operational maintenance.\nNatural Resources: Planting of vegetation (e.g. broom grass) in degraded and erosion prone areas, and in river beds to limit flooding and damage to infrastructure.\t\nFinancial Resources: Government should explore innovative funding/financial arrangements (GCF, PPPs); Promoting gov-led savings and building capacity to plan for risk management; Government to strengthen social protection schemes."]
[]
[]
[]
[]
[]
[]
[]
[]
[]
[]
[]
[]
[]
[]
[]
[]
[]
[]
[]
[]
[]
[]
[]
[]
[]
[]
[]
[]
[]
[]
[]
[]
[]
[]
[]
[]
[]
[]
[]
[]
[]
[]
[]
[]
[]
[]
[]
[]
[{"$f":"RVAT_Output!B391","v":"RISK"}]
[null,null,{"$f":"RVAT_Output!D392","v":"Livelihoods"},null,null,null,{"$f":"RVAT_Output!H392","v":"Health & Safety"},null,null,null,{"$f":"RVAT_Output!L392","v":"Services"},null,null,null,{"$f":"RVAT_Output!P392","v":"Water Supply"},null,null,null,{"$f":"RVAT_Output!T392","v":"Infrastructure"}]
[{"$f":"RVAT_Output!B393","v":"CURRENT"}]
[null,null,{"$f":"RVAT_Output!D394","v":"Med"},null,null,null,{"$f":"RVAT_Output!H394","v":"Low"},null,null,null,{"$f":"RVAT_Output!L394","v":"Med"},null,null,null,{"$f":"RVAT_Output!P394","v":"Med"},null,null,null,{"$f":"RVAT_Output!T394","v":"Med"}]
[{"$f":"RVAT_Output!B395","v":"FUTURE"}]
[null,null,{"$f":"RVAT_Output!D396","v":"Med"},null,null,null,{"$f":"RVAT_Output!H396","v":"Low"},null,null,null,{"$f":"RVAT_Output!L396","v":"Med"},null,null,null,{"$f":"RVAT_Output!P396","v":"Med"},null,null,null,{"$f":"RVAT_Output!T396","v":"Med"}]
[]
[{"$f":"RVAT_Output!B398","v":"RISK - Part 2"}]
[null,{"$f":"RVAT_Output!C399","v":"Livelihoods"},{"$f":"RVAT_Output!D399","v":"Food security"},null,null,null,null,null,null,{"$f":"RVAT_Output!K399","v":"Crops"},null,null,null,null,null,{"$f":"RVAT_Output!Q399","v":"Livestock"}]
[null,{"$f":"RVAT_Output!C400","v":"Health & Safety"},{"$f":"RVAT_Output!D400","v":"Water Borne Diseases "},null,null,null,null,null,null,{"$f":"RVAT_Output!K400","v":"Vector Diseases"},null,null,null,null,null,{"$f":"RVAT_Output!Q400","v":"Safety"}]
[null,{"$f":"RVAT_Output!C401","v":"Services"},{"$f":"RVAT_Output!D401","v":"Housing"},null,null,null,{"$f":"RVAT_Output!H401","v":"Land"},null,null,null,{"$f":"RVAT_Output!L401","v":"Community"},null,null,null,{"$f":"RVAT_Output!P401","v":"Sanitation"},null,null,null,{"$f":"RVAT_Output!T401","v":"Energy"}]
[null,{"$f":"RVAT_Output!C402","v":"Water Supply"},{"$f":"RVAT_Output!D402","v":"Access"},null,null,null,{"$f":"RVAT_Output!H402","v":"Quality"},null,null,null,{"$f":"RVAT_Output!L402","v":"Droughts"},null,null,null,{"$f":"RVAT_Output!P402","v":"Floods"},null,null,null,{"$f":"RVAT_Output!T402","v":"Other Climate Hazards"}]
[null,{"$f":"RVAT_Output!C403","v":"Infrastructure"},{"$f":"RVAT_Output!D403","v":"Water Supply"},null,null,{"$f":"RVAT_Output!G403","v":"Water Treatment"},null,null,null,{"$f":"RVAT_Output!K403","v":"Water Storage"},null,null,{"$f":"RVAT_Output!N403","v":"Ecol & Green Infra"},null,null,{"$f":"RVAT_Output!Q403","v":"Energy"},null,null,null,{"$f":"RVAT_Output!U403","v":"Roads & Public Infra"}]
[{"$f":"RVAT_Output!B404","v":"CURRENT"}]
[null,{"$f":"RVAT_Output!C405","v":"Livelihoods"},{"$f":"RVAT_Output!D405","v":"Med"},null,null,null,null,null,null,{"$f":"RVAT_Output!K405","v":"Med"},null,null,null,null,null,{"$f":"RVAT_Output!Q405","v":"Med"}]
[null,{"$f":"RVAT_Output!C406","v":"Health & Safety"},{"$f":"RVAT_Output!D406","v":"Low"},null,null,null,null,null,null,{"$f":"RVAT_Output!K406","v":"Low"},null,null,null,null,null,{"$f":"RVAT_Output!Q406","v":"Low"}]
[null,{"$f":"RVAT_Output!C407","v":"Services"},{"$f":"RVAT_Output!D407","v":"Med"},null,null,null,{"$f":"RVAT_Output!H407","v":"Med"},null,null,null,{"$f":"RVAT_Output!L407","v":"Low"},null,null,null,{"$f":"RVAT_Output!P407","v":"Med"},null,null,null,{"$f":"RVAT_Output!T407","v":"Med"}]
[null,{"$f":"RVAT_Output!C408","v":"Water Supply"},{"$f":"RVAT_Output!D408","v":"Med"},null,null,null,{"$f":"RVAT_Output!H408","v":"High"},null,null,null,{"$f":"RVAT_Output!L408","v":"Med"},null,null,null,{"$f":"RVAT_Output!P408","v":"Low"},null,null,null,{"$f":"RVAT_Output!T408","v":"Low"}]
[null,{"$f":"RVAT_Output!C409","v":"Infrastructure"},{"$f":"RVAT_Output!D409","v":"Med"},null,null,{"$f":"RVAT_Output!G409","v":"Med"},null,null,null,{"$f":"RVAT_Output!K409","v":"Med"},null,null,{"$f":"RVAT_Output!N409","v":"Med"},null,null,{"$f":"RVAT_Output!Q409","v":"Low"},null,null,null,{"$f":"RVAT_Output!U409","v":"Low"}]
[{"$f":"RVAT_Output!B410","v":"FUTURE"}]
[null,{"$f":"RVAT_Output!C411","v":"Livelihoods"},{"$f":"RVAT_Output!D411","v":"Med"},null,null,null,null,null,null,{"$f":"RVAT_Output!K411","v":"Med"},null,null,null,null,null,{"$f":"RVAT_Output!Q411","v":"Med"}]
[null,{"$f":"RVAT_Output!C412","v":"Health & Safety"},{"$f":"RVAT_Output!D412","v":"Low"},null,null,null,null,null,null,{"$f":"RVAT_Output!K412","v":"Low"},null,null,null,null,null,{"$f":"RVAT_Output!Q412","v":"Low"}]
[null,{"$f":"RVAT_Output!C413","v":"Services"},{"$f":"RVAT_Output!D413","v":"Med"},null,null,null,{"$f":"RVAT_Output!H413","v":"Med"},null,null,null,{"$f":"RVAT_Output!L413","v":"Low"},null,null,null,{"$f":"RVAT_Output!P413","v":"Med"},null,null,null,{"$f":"RVAT_Output!T413","v":"Med"}]
[null,{"$f":"RVAT_Output!C414","v":"Water Supply"},{"$f":"RVAT_Output!D414","v":"Med"},null,null,null,{"$f":"RVAT_Output!H414","v":"High"},null,null,null,{"$f":"RVAT_Output!L414","v":"Med"},null,null,null,{"$f":"RVAT_Output!P414","v":"Low"},null,null,null,{"$f":"RVAT_Output!T414","v":"Low"}]
[null,{"$f":"RVAT_Output!C415","v":"Infrastructure"},{"$f":"RVAT_Output!D415","v":"Med"},null,null,{"$f":"RVAT_Output!G415","v":"Med"},null,null,null,{"$f":"RVAT_Output!K415","v":"Med"},null,null,{"$f":"RVAT_Output!N415","v":"Med"},null,null,{"$f":"RVAT_Output!Q415","v":"Low"},null,null,null,{"$f":"RVAT_Output!U415","v":"Low"},null,null,null,"High"]
[]
[{"$f":"RVAT_Output!B365","v":"VULNERABILITY - Part 2"}]
[null,null,{"$f":"RVAT_Output!D366","v":"Livelihoods"},null,null,null,{"$f":"RVAT_Output!H366","v":"Health & Safety"},null,null,null,{"$f":"RVAT_Output!L366","v":"Services"},null,null,null,{"$f":"RVAT_Output!P366","v":"Water Supply"},null,null,null,{"$f":"RVAT_Output!T366","v":"Infrastructure"}]
[{"$f":"RVAT_Output!B367","v":"CURRENT"}]
[null,null,{"$f":"RVAT_Output!D368","v":"High"},null,null,null,{"$f":"RVAT_Output!H368","v":"High"},null,null,null,{"$f":"RVAT_Output!L368","v":"High"},null,null,null,{"$f":"RVAT_Output!P368","v":"High"},null,null,null,{"$f":"RVAT_Output!T368","v":"High"}]
[{"$f":"RVAT_Output!B369","v":"FUTURE"}]
[null,null,{"$f":"RVAT_Output!D370","v":"High"},null,null,null,{"$f":"RVAT_Output!H370","v":"High"},null,null,null,{"$f":"RVAT_Output!L370","v":"High"},null,null,null,{"$f":"RVAT_Output!P370","v":"High"},null,null,null,{"$f":"RVAT_Output!T370","v":"High"}]
[{"$f":"RVAT_Output!B372","v":"VULNERABILITY - Part 3"}]
[null,{"$f":"RVAT_Output!C373","v":"Livelihoods"},{"$f":"RVAT_Output!D373","v":"Food security"},null,null,null,null,null,null,{"$f":"RVAT_Output!K373","v":"Crops"},null,null,null,null,null,{"$f":"RVAT_Output!Q373","v":"Livestock"}]
[null,{"$f":"RVAT_Output!C374","v":"Health & Safety"},{"$f":"RVAT_Output!D374","v":"Water Borne Diseases "},null,null,null,null,null,null,{"$f":"RVAT_Output!K374","v":"Vector Diseases"},null,null,null,null,null,{"$f":"RVAT_Output!Q374","v":"Safety"}]
[null,{"$f":"RVAT_Output!C375","v":"Services"},{"$f":"RVAT_Output!D375","v":"Housing"},null,null,null,{"$f":"RVAT_Output!H375","v":"Land"},null,null,null,{"$f":"RVAT_Output!L375","v":"Community"},null,null,null,{"$f":"RVAT_Output!P375","v":"Sanitation"},null,null,null,{"$f":"RVAT_Output!T375","v":"Energy"}]
[null,{"$f":"RVAT_Output!C376","v":"Water Supply"},{"$f":"RVAT_Output!D376","v":"Access"},null,null,null,{"$f":"RVAT_Output!H376","v":"Quality"},null,null,null,{"$f":"RVAT_Output!L376","v":"Droughts"},null,null,null,{"$f":"RVAT_Output!P376","v":"Floods"},null,null,null,{"$f":"RVAT_Output!T376","v":"Other Climate Hazards"}]
[null,{"$f":"RVAT_Output!C377","v":"Infrastructure"},{"$f":"RVAT_Output!D377","v":"Water Supply"},null,null,{"$f":"RVAT_Output!G377","v":"Water Treatment"},null,null,null,{"$f":"RVAT_Output!K377","v":"Water Storage"},null,null,{"$f":"RVAT_Output!N377","v":"Ecol & Green Infra"},null,null,{"$f":"RVAT_Output!Q377","v":"Energy"},null,null,null,{"$f":"RVAT_Output!U377","v":"Roads & Public Infra"}]
[{"$f":"RVAT_Output!B378","v":"CURRENT"}]
[null,{"$f":"RVAT_Output!C379","v":"Livelihoods"},{"$f":"RVAT_Output!D379","v":"High"},null,null,null,null,null,null,{"$f":"RVAT_Output!K379","v":"High"},null,null,null,null,null,{"$f":"RVAT_Output!Q379","v":"High"}]
[null,{"$f":"RVAT_Output!C380","v":"Health & Safety"},{"$f":"RVAT_Output!D380","v":"High"},null,null,null,null,null,null,{"$f":"RVAT_Output!K380","v":"High"},null,null,null,null,null,{"$f":"RVAT_Output!Q380","v":"High"}]
[null,{"$f":"RVAT_Output!C381","v":"Services"},{"$f":"RVAT_Output!D381","v":"High"},null,null,null,{"$f":"RVAT_Output!H381","v":"High"},null,null,null,{"$f":"RVAT_Output!L381","v":"High"},null,null,null,{"$f":"RVAT_Output!P381","v":"High"},null,null,null,{"$f":"RVAT_Output!T381","v":"High"}]
[null,{"$f":"RVAT_Output!C382","v":"Water Supply"},{"$f":"RVAT_Output!D382","v":"High"},null,null,null,{"$f":"RVAT_Output!H382","v":"High"},null,null,null,{"$f":"RVAT_Output!L382","v":"High"},null,null,null,{"$f":"RVAT_Output!P382","v":"High"},null,null,null,{"$f":"RVAT_Output!T382","v":"High"}]
[null,{"$f":"RVAT_Output!C383","v":"Infrastructure"},{"$f":"RVAT_Output!D383","v":"High"},null,null,{"$f":"RVAT_Output!G383","v":"High"},null,null,null,{"$f":"RVAT_Output!K383","v":"High"},null,null,{"$f":"RVAT_Output!N383","v":"High"},null,null,{"$f":"RVAT_Output!Q383","v":"High"},null,null,null,{"$f":"RVAT_Output!U383","v":"High"}]
[{"$f":"RVAT_Output!B384","v":"FUTURE"}]
[null,{"$f":"RVAT_Output!C385","v":"Livelihoods"},{"$f":"RVAT_Output!D385","v":"High"},null,null,null,null,null,null,{"$f":"RVAT_Output!K385","v":"High"},null,null,null,null,null,{"$f":"RVAT_Output!Q385","v":"High"}]
[null,{"$f":"RVAT_Output!C386","v":"Health & Safety"},{"$f":"RVAT_Output!D386","v":"High"},null,null,null,null,null,null,{"$f":"RVAT_Output!K386","v":"High"},null,null,null,null,null,{"$f":"RVAT_Output!Q386","v":"High"}]
[null,{"$f":"RVAT_Output!C387","v":"Services"},{"$f":"RVAT_Output!D387","v":"High"},null,null,null,{"$f":"RVAT_Output!H387","v":"High"},null,null,null,{"$f":"RVAT_Output!L387","v":"High"},null,null,null,{"$f":"RVAT_Output!P387","v":"High"},null,null,null,{"$f":"RVAT_Output!T387","v":"High"}]
[null,{"$f":"RVAT_Output!C388","v":"Water Supply"},{"$f":"RVAT_Output!D388","v":"High"},null,null,null,{"$f":"RVAT_Output!H388","v":"High"},null,null,null,{"$f":"RVAT_Output!L388","v":"High"},null,null,null,{"$f":"RVAT_Output!P388","v":"High"},null,null,null,{"$f":"RVAT_Output!T388","v":"High"}]
[null,{"$f":"RVAT_Output!C389","v":"Infrastructure"},{"$f":"RVAT_Output!D389","v":"High"},null,null,{"$f":"RVAT_Output!G389","v":"High"},null,null,null,{"$f":"RVAT_Output!K389","v":"High"},null,null,{"$f":"RVAT_Output!N389","v":"High"},null,null,{"$f":"RVAT_Output!Q389","v":"High"},null,null,null,{"$f":"RVAT_Output!U389","v":"High"}]